Body_Code,Body_Name,Service,GL Code,GL Code Desc,Posting Date,Doc Number,Doc Net Amount,Supplier Name
http://statistics.data.gov.uk/id/local-authority/38,Oxfordshire County Council,ICT Operations & Maintenance,5086,Other Communications,19/09/2016,2200221795,703.88,(aq) Ltd
http://statistics.data.gov.uk/id/local-authority/38,Oxfordshire County Council,LOOKED AFTER CITY 1,5227,Other Transport Arrangements,08/09/2016,3110138979,534.50,001 Alpha Cars Ltd
http://statistics.data.gov.uk/id/local-authority/38,Oxfordshire County Council,LD CLIENTS CITY,5227,Other Transport Arrangements,08/09/2016,3110138957,600.00,001 Alpha Cars Ltd
http://statistics.data.gov.uk/id/local-authority/38,Oxfordshire County Council,CSB - DIDCOT,5689,,21/09/2016,3110143439,603.37,1 to 1 Care
http://statistics.data.gov.uk/id/local-authority/38,Oxfordshire County Council,CSB - DIDCOT,5689,,21/09/2016,3110143429,621.29,1 to 1 Care
http://statistics.data.gov.uk/id/local-authority/38,Oxfordshire County Council,CSB - CITY,5689,,21/09/2016,3110143425,982.79,1 to 1 Care
http://statistics.data.gov.uk/id/local-authority/38,Oxfordshire County Council,CSB - DIDCOT,5689,,21/09/2016,3110143431,"1,011.71",1 to 1 Care
http://statistics.data.gov.uk/id/local-authority/38,Oxfordshire County Council,CSB - DIDCOT,5689,,21/09/2016,3110143435,"1,053.19",1 to 1 Care
http://statistics.data.gov.uk/id/local-authority/38,Oxfordshire County Council,CSB - DIDCOT,5689,,21/09/2016,3110143436,"1,135.53",1 to 1 Care
http://statistics.data.gov.uk/id/local-authority/38,Oxfordshire County Council,CSB - DIDCOT,5689,,21/09/2016,3110143437,"1,360.37",1 to 1 Care
http://statistics.data.gov.uk/id/local-authority/38,Oxfordshire County Council,CSB - DIDCOT,5689,,21/09/2016,3110143433,"1,470.14",1 to 1 Care
http://statistics.data.gov.uk/id/local-authority/38,Oxfordshire County Council,CSB - DIDCOT,5689,,21/09/2016,3110143438,"1,586.75",1 to 1 Care
http://statistics.data.gov.uk/id/local-authority/38,Oxfordshire County Council,CSB - ABINGDON,5689,,21/09/2016,3110143441,"1,880.29",1 to 1 Care
http://statistics.data.gov.uk/id/local-authority/38,Oxfordshire County Council,LD CLIENTS SOUTH,5689,,21/09/2016,3110143443,"2,000.52",1 to 1 Care
http://statistics.data.gov.uk/id/local-authority/38,Oxfordshire County Council,CSB - ABINGDON,5689,,21/09/2016,3110143440,"2,334.92",1 to 1 Care
http://statistics.data.gov.uk/id/local-authority/38,Oxfordshire County Council,CSB - CITY,5689,,21/09/2016,3110143426,"2,421.80",1 to 1 Care
http://statistics.data.gov.uk/id/local-authority/38,Oxfordshire County Council,CSB - CITY,5689,,21/09/2016,3110143427,"3,217.13",1 to 1 Care
http://statistics.data.gov.uk/id/local-authority/38,Oxfordshire County Council,Shakespeare Project,4940,Other Services,21/09/2016,2200223502,500.00,1623 theatre
http://statistics.data.gov.uk/id/local-authority/38,Oxfordshire County Council,MH SPOT FUNDING,5686,,13/09/2016,3110139464,"12,008.58",2 CARE-A PART OF THE RICHMOND FELLO
http://statistics.data.gov.uk/id/local-authority/38,Oxfordshire County Council,SM QUALITY ASSURANCE,2040,Agency Staff,02/09/2016,2200211802,"-1,779.05",3D Recruit Ltd
http://statistics.data.gov.uk/id/local-authority/38,Oxfordshire County Council,FPT SOUTH/VALE,2040,Agency Staff,01/09/2016,2200211522,"-1,536.34",3D Recruit Ltd
http://statistics.data.gov.uk/id/local-authority/38,Oxfordshire County Council,LEARN DISAB TEAM NTH,2040,Agency Staff,08/09/2016,2200215166,"-1,317.11",3D Recruit Ltd
http://statistics.data.gov.uk/id/local-authority/38,Oxfordshire County Council,FPT SOUTH/VALE,2040,Agency Staff,01/09/2016,2200211520,"-1,301.25",3D Recruit Ltd
http://statistics.data.gov.uk/id/local-authority/38,Oxfordshire County Council,LEARN DISAB TEAM NTH,2040,Agency Staff,06/09/2016,2200213521,"-1,193.80",3D Recruit Ltd
http://statistics.data.gov.uk/id/local-authority/38,Oxfordshire County Council,Delayed Patient Care Beds,2040,Agency Staff,29/09/2016,2200228321,502.95,3D Recruit Ltd
http://statistics.data.gov.uk/id/local-authority/38,Oxfordshire County Council,FPT SOUTH/VALE,2040,Agency Staff,29/09/2016,2200228411,510.67,3D Recruit Ltd
http://statistics.data.gov.uk/id/local-authority/38,Oxfordshire County Council,Delayed Patient Care Beds,2040,Agency Staff,30/09/2016,2200228814,526.35,3D Recruit Ltd
http://statistics.data.gov.uk/id/local-authority/38,Oxfordshire County Council,DIDCOT HUB,2040,Agency Staff,19/09/2016,2200221140,538.95,3D Recruit Ltd
http://statistics.data.gov.uk/id/local-authority/38,Oxfordshire County Council,FPT SOUTH/VALE,2040,Agency Staff,19/09/2016,2200221152,541.67,3D Recruit Ltd
http://statistics.data.gov.uk/id/local-authority/38,Oxfordshire County Council,FPT SOUTH/VALE,2040,Agency Staff,29/09/2016,2200228409,552.45,3D Recruit Ltd
http://statistics.data.gov.uk/id/local-authority/38,Oxfordshire County Council,FPT SOUTH/VALE,2040,Agency Staff,29/09/2016,2200228410,559.65,3D Recruit Ltd
http://statistics.data.gov.uk/id/local-authority/38,Oxfordshire County Council,FPT SOUTH/VALE,2040,Agency Staff,30/09/2016,2200228588,570.08,3D Recruit Ltd
http://statistics.data.gov.uk/id/local-authority/38,Oxfordshire County Council,FPT SOUTH/VALE,2040,Agency Staff,30/09/2016,2200228622,570.08,3D Recruit Ltd
http://statistics.data.gov.uk/id/local-authority/38,Oxfordshire County Council,MASH PROJECT,2040,Agency Staff,19/09/2016,2200221835,574.88,3D Recruit Ltd
http://statistics.data.gov.uk/id/local-authority/38,Oxfordshire County Council,FPT SOUTH/VALE,2040,Agency Staff,30/09/2016,2200228609,658.62,3D Recruit Ltd
http://statistics.data.gov.uk/id/local-authority/38,Oxfordshire County Council,LOCALITY TEAM - CITY,2040,Agency Staff,02/09/2016,2200212024,687.37,3D Recruit Ltd
http://statistics.data.gov.uk/id/local-authority/38,Oxfordshire County Council,SM QUALITY ASSURANCE,2040,Agency Staff,19/09/2016,2200221134,718.50,3D Recruit Ltd
http://statistics.data.gov.uk/id/local-authority/38,Oxfordshire County Council,LOCALITY TEAM - CITY,2040,Agency Staff,09/09/2016,2200216255,720.90,3D Recruit Ltd
http://statistics.data.gov.uk/id/local-authority/38,Oxfordshire County Council,CM & SW COUNTY TEAM,2040,Agency Staff,28/09/2016,2200227113,747.24,3D Recruit Ltd
http://statistics.data.gov.uk/id/local-authority/38,Oxfordshire County Council,NORTH&WEST HOSP TEAM,2040,Agency Staff,29/09/2016,2200228311,754.43,3D Recruit Ltd
http://statistics.data.gov.uk/id/local-authority/38,Oxfordshire County Council,Delayed Patient Care Beds,2040,Agency Staff,19/09/2016,2200221144,806.52,3D Recruit Ltd
http://statistics.data.gov.uk/id/local-authority/38,Oxfordshire County Council,FAMILY SUPPORT N'TH2,2040,Agency Staff,15/09/2016,2200219549,808.43,3D Recruit Ltd
http://statistics.data.gov.uk/id/local-authority/38,Oxfordshire County Council,FAMILY SUPPORT N'TH2,2040,Agency Staff,19/09/2016,2200221859,808.43,3D Recruit Ltd
http://statistics.data.gov.uk/id/local-authority/38,Oxfordshire County Council,Delayed Patient Care Beds,2040,Agency Staff,22/09/2016,2200224764,865.37,3D Recruit Ltd
http://statistics.data.gov.uk/id/local-authority/38,Oxfordshire County Council,LOCALITY TEAM - CITY,2040,Agency Staff,30/09/2016,2200228800,888.55,3D Recruit Ltd
http://statistics.data.gov.uk/id/local-authority/38,Oxfordshire County Council,NORTH&WEST HOSP TEAM,2040,Agency Staff,20/09/2016,2200222431,938.84,3D Recruit Ltd
http://statistics.data.gov.uk/id/local-authority/38,Oxfordshire County Council,LEARN DISAB TEAM STH,2040,Agency Staff,20/09/2016,2200222444,938.84,3D Recruit Ltd
http://statistics.data.gov.uk/id/local-authority/38,Oxfordshire County Council,CM & SW COUNTY TEAM,2040,Agency Staff,19/09/2016,2200221829,964.75,3D Recruit Ltd
http://statistics.data.gov.uk/id/local-authority/38,Oxfordshire County Council,Delayed Patient Care Beds,2040,Agency Staff,19/09/2016,2200221843,991.71,3D Recruit Ltd
http://statistics.data.gov.uk/id/local-authority/38,Oxfordshire County Council,NORTH&WEST HOSP TEAM,2040,Agency Staff,09/09/2016,2200215448,"1,022.67",3D Recruit Ltd
http://statistics.data.gov.uk/id/local-authority/38,Oxfordshire County Council,Delayed Patient Care Beds,2040,Agency Staff,19/09/2016,2200221847,"1,022.67",3D Recruit Ltd
http://statistics.data.gov.uk/id/local-authority/38,Oxfordshire County Council,NORTH&WEST HOSP TEAM,2040,Agency Staff,19/09/2016,2200221837,"1,039.43",3D Recruit Ltd
http://statistics.data.gov.uk/id/local-authority/38,Oxfordshire County Council,Delayed Patient Care Beds,2040,Agency Staff,29/09/2016,2200228316,"1,056.20",3D Recruit Ltd
http://statistics.data.gov.uk/id/local-authority/38,Oxfordshire County Council,DIDCOT HUB,2040,Agency Staff,16/09/2016,2200220576,"1,068.49",3D Recruit Ltd
http://statistics.data.gov.uk/id/local-authority/38,Oxfordshire County Council,Delayed Patient Care Beds,2040,Agency Staff,20/09/2016,2200222474,"1,097.83",3D Recruit Ltd
http://statistics.data.gov.uk/id/local-authority/38,Oxfordshire County Council,LOOKED AFTER SOUTH,2040,Agency Staff,20/09/2016,2200222438,"1,099.09",3D Recruit Ltd
http://statistics.data.gov.uk/id/local-authority/38,Oxfordshire County Council,LEARN DISAB TEAM STH,2040,Agency Staff,22/09/2016,2200224761,"1,104.57",3D Recruit Ltd
http://statistics.data.gov.uk/id/local-authority/38,Oxfordshire County Council,Delayed Patient Care Beds,2040,Agency Staff,14/09/2016,2200218710,"1,106.49",3D Recruit Ltd
http://statistics.data.gov.uk/id/local-authority/38,Oxfordshire County Council,LOCALITY TEAM - CITY,2040,Agency Staff,19/09/2016,2200221137,"1,108.29",3D Recruit Ltd
http://statistics.data.gov.uk/id/local-authority/38,Oxfordshire County Council,LEARN DISAB TEAM NTH,2040,Agency Staff,20/09/2016,2200222432,"1,136.64",3D Recruit Ltd
http://statistics.data.gov.uk/id/local-authority/38,Oxfordshire County Council,FAMILY SUPPORT N'TH2,2040,Agency Staff,09/09/2016,2200216252,"1,147.56",3D Recruit Ltd
http://statistics.data.gov.uk/id/local-authority/38,Oxfordshire County Council,LOCALITY TEAM - CITY,2040,Agency Staff,12/09/2016,2200216366,"1,156.79",3D Recruit Ltd
http://statistics.data.gov.uk/id/local-authority/38,Oxfordshire County Council,LOCALITY TEAM - CITY,2040,Agency Staff,29/09/2016,2200228315,"1,156.79",3D Recruit Ltd
http://statistics.data.gov.uk/id/local-authority/38,Oxfordshire County Council,LOCALITY TEAM - CITY,2040,Agency Staff,30/09/2016,2200228579,"1,165.34",3D Recruit Ltd
http://statistics.data.gov.uk/id/local-authority/38,Oxfordshire County Council,LEARN DISAB TEAM NTH,2040,Agency Staff,20/09/2016,2200222402,"1,193.80",3D Recruit Ltd
http://statistics.data.gov.uk/id/local-authority/38,Oxfordshire County Council,MASH PROJECT,2040,Agency Staff,09/09/2016,2200216253,"1,201.24",3D Recruit Ltd
http://statistics.data.gov.uk/id/local-authority/38,Oxfordshire County Council,CM & SW COUNTY TEAM,2040,Agency Staff,30/09/2016,2200228587,"1,205.92",3D Recruit Ltd
http://statistics.data.gov.uk/id/local-authority/38,Oxfordshire County Council,LOCALITY TM CHERWELL,2040,Agency Staff,30/09/2016,2200228748,"1,209.98",3D Recruit Ltd
http://statistics.data.gov.uk/id/local-authority/38,Oxfordshire County Council,LOCALITY TM CHERWELL,2040,Agency Staff,19/09/2016,2200220975,"1,215.90",3D Recruit Ltd
http://statistics.data.gov.uk/id/local-authority/38,Oxfordshire County Council,CM & SW COUNTY TEAM,2040,Agency Staff,30/09/2016,2200228578,"1,235.34",3D Recruit Ltd
http://statistics.data.gov.uk/id/local-authority/38,Oxfordshire County Council,LEARN DISAB TEAM STH,2040,Agency Staff,29/09/2016,2200228312,"1,240.61",3D Recruit Ltd
http://statistics.data.gov.uk/id/local-authority/38,Oxfordshire County Council,Delayed Patient Care Beds,2040,Agency Staff,29/09/2016,2200228319,"1,240.61",3D Recruit Ltd
http://statistics.data.gov.uk/id/local-authority/38,Oxfordshire County Council,FAMILY SUPPORT CITY3,2040,Agency Staff,07/09/2016,2200213962,"1,244.67",3D Recruit Ltd
http://statistics.data.gov.uk/id/local-authority/38,Oxfordshire County Council,LOCALITY TM CHERWELL,2040,Agency Staff,20/09/2016,2200222540,"1,246.76",3D Recruit Ltd
http://statistics.data.gov.uk/id/local-authority/38,Oxfordshire County Council,LOCALITY TM CHERWELL,2040,Agency Staff,30/09/2016,2200228584,"1,248.40",3D Recruit Ltd
http://statistics.data.gov.uk/id/local-authority/38,Oxfordshire County Council,LOCALITY TM CHERWELL,2040,Agency Staff,30/09/2016,2200228816,"1,250.69",3D Recruit Ltd
http://statistics.data.gov.uk/id/local-authority/38,Oxfordshire County Council,LOCALITY TM CHERWELL,2040,Agency Staff,19/09/2016,2200221815,"1,260.03",3D Recruit Ltd
http://statistics.data.gov.uk/id/local-authority/38,Oxfordshire County Council,LOCALITY TEAM - CITY,2040,Agency Staff,19/09/2016,2200221833,"1,261.88",3D Recruit Ltd
http://statistics.data.gov.uk/id/local-authority/38,Oxfordshire County Council,Delayed Patient Care Beds,2040,Agency Staff,20/09/2016,2200222480,"1,263.11",3D Recruit Ltd
http://statistics.data.gov.uk/id/local-authority/38,Oxfordshire County Council,LOCALITY TEAM - CITY,2040,Agency Staff,21/09/2016,2200223820,"1,265.48",3D Recruit Ltd
http://statistics.data.gov.uk/id/local-authority/38,Oxfordshire County Council,LEARN DISAB TEAM STH,2040,Agency Staff,30/09/2016,2200228576,"1,275.49",3D Recruit Ltd
http://statistics.data.gov.uk/id/local-authority/38,Oxfordshire County Council,FPT SOUTH/VALE,2040,Agency Staff,01/09/2016,2200211528,"1,301.25",3D Recruit Ltd
http://statistics.data.gov.uk/id/local-authority/38,Oxfordshire County Council,Delayed Patient Care Beds,2040,Agency Staff,29/09/2016,2200228309,"1,307.67",3D Recruit Ltd
http://statistics.data.gov.uk/id/local-authority/38,Oxfordshire County Council,NORTH&WEST HOSP TEAM,2040,Agency Staff,30/09/2016,2200228798,"1,307.67",3D Recruit Ltd
http://statistics.data.gov.uk/id/local-authority/38,Oxfordshire County Council,LOCALITY TEAM - CITY,2040,Agency Staff,30/09/2016,2200228593,"1,311.27",3D Recruit Ltd
http://statistics.data.gov.uk/id/local-authority/38,Oxfordshire County Council,DIDCOT HUB,2040,Agency Staff,23/09/2016,2200225003,"1,336.16",3D Recruit Ltd
http://statistics.data.gov.uk/id/local-authority/38,Oxfordshire County Council,Delayed Patient Care Beds,2040,Agency Staff,20/09/2016,2200222441,"1,341.20",3D Recruit Ltd
http://statistics.data.gov.uk/id/local-authority/38,Oxfordshire County Council,LEARN DISAB TEAM STH,2040,Agency Staff,30/09/2016,2200228662,"1,347.40",3D Recruit Ltd
http://statistics.data.gov.uk/id/local-authority/38,Oxfordshire County Council,DIDCOT HUB,2040,Agency Staff,06/09/2016,2200213389,"1,349.21",3D Recruit Ltd
http://statistics.data.gov.uk/id/local-authority/38,Oxfordshire County Council,DIDCOT HUB,2040,Agency Staff,20/09/2016,2200222400,"1,349.21",3D Recruit Ltd
http://statistics.data.gov.uk/id/local-authority/38,Oxfordshire County Council,CM & SW COUNTY TEAM,2040,Agency Staff,20/09/2016,2200222452,"1,362.54",3D Recruit Ltd
http://statistics.data.gov.uk/id/local-authority/38,Oxfordshire County Council,FAMILY SUPPORT N'TH2,2040,Agency Staff,29/09/2016,2200228314,"1,422.56",3D Recruit Ltd
http://statistics.data.gov.uk/id/local-authority/38,Oxfordshire County Council,MASH PROJECT,2040,Agency Staff,29/09/2016,2200227909,"1,425.20",3D Recruit Ltd
http://statistics.data.gov.uk/id/local-authority/38,Oxfordshire County Council,SM QUALITY ASSURANCE,2040,Agency Staff,09/09/2016,2200215814,"1,437.00",3D Recruit Ltd
http://statistics.data.gov.uk/id/local-authority/38,Oxfordshire County Council,SM QUALITY ASSURANCE,2040,Agency Staff,29/09/2016,2200228317,"1,437.00",3D Recruit Ltd
http://statistics.data.gov.uk/id/local-authority/38,Oxfordshire County Council,FAMILY SUPPORT N'TH2,2040,Agency Staff,19/09/2016,2200221856,"1,443.58",3D Recruit Ltd
http://statistics.data.gov.uk/id/local-authority/38,Oxfordshire County Council,SM QUALITY ASSURANCE,2040,Agency Staff,30/09/2016,2200228582,"1,444.20",3D Recruit Ltd
http://statistics.data.gov.uk/id/local-authority/38,Oxfordshire County Council,SM QUALITY ASSURANCE,2040,Agency Staff,30/09/2016,2200229081,"1,446.00",3D Recruit Ltd
http://statistics.data.gov.uk/id/local-authority/38,Oxfordshire County Council,LOOKED AFTER SOUTH,2040,Agency Staff,19/09/2016,2200221844,"1,462.61",3D Recruit Ltd
http://statistics.data.gov.uk/id/local-authority/38,Oxfordshire County Council,FAMILY SUPPORT N'TH2,2040,Agency Staff,19/09/2016,2200221853,"1,467.34",3D Recruit Ltd
http://statistics.data.gov.uk/id/local-authority/38,Oxfordshire County Council,FAMILY SUPPORT N'TH2,2040,Agency Staff,30/09/2016,2200229079,"1,467.92",3D Recruit Ltd
http://statistics.data.gov.uk/id/local-authority/38,Oxfordshire County Council,FAMILY SUPPORT N'TH2,2040,Agency Staff,09/09/2016,2200215475,"1,475.08",3D Recruit Ltd
http://statistics.data.gov.uk/id/local-authority/38,Oxfordshire County Council,MASH PROJECT,2040,Agency Staff,12/09/2016,2200216361,"1,506.64",3D Recruit Ltd
http://statistics.data.gov.uk/id/local-authority/38,Oxfordshire County Council,FPT SOUTH/VALE,2040,Agency Staff,30/09/2016,2200228637,"1,566.49",3D Recruit Ltd
http://statistics.data.gov.uk/id/local-authority/38,Oxfordshire County Council,2 YEAR OLD FUNDING,5537,Payments to Other Establishments,13/09/2016,3110140438,"1,483.20",A B C Nursery
http://statistics.data.gov.uk/id/local-authority/38,Oxfordshire County Council,NURSERY ED FUND,5537,Payments to Other Establishments,01/09/2016,3110135222,"16,381.68",A B C Nursery
http://statistics.data.gov.uk/id/local-authority/38,Oxfordshire County Council,FOSTERING MAIN,5549,B*Fostering Allowance - Regulation 38,28/09/2016,3110145861,709.16,Redacted Personal Data
http://statistics.data.gov.uk/id/local-authority/38,Oxfordshire County Council,LEGAL SERVICES,5251,Legal Costs,01/09/2016,2200223762,"1,175.00",A Leong
http://statistics.data.gov.uk/id/local-authority/38,Oxfordshire County Council,LEGAL SERVICES,5251,Legal Costs,01/09/2016,2200214544,"1,200.00",A Leong
http://statistics.data.gov.uk/id/local-authority/38,Oxfordshire County Council,LEGAL SERVICES,5251,Legal Costs,01/09/2016,2200214550,"1,500.00",A Leong
http://statistics.data.gov.uk/id/local-authority/38,Oxfordshire County Council,FOSTERING MAIN,5549,B*Fostering Allowance - Regulation 38,07/09/2016,3110138722,567.46,Redacted Personal Data
http://statistics.data.gov.uk/id/local-authority/38,Oxfordshire County Council,FOSTERING MAIN,5549,B*Fostering Allowance - Regulation 38,14/09/2016,3110140010,567.46,Redacted Personal Data
http://statistics.data.gov.uk/id/local-authority/38,Oxfordshire County Council,FOSTERING MAIN,5549,B*Fostering Allowance - Regulation 38,21/09/2016,3110142535,567.46,Redacted Personal Data
http://statistics.data.gov.uk/id/local-authority/38,Oxfordshire County Council,FOSTERING MAIN,5549,B*Fostering Allowance - Regulation 38,28/09/2016,3110145863,567.46,Redacted Personal Data
http://statistics.data.gov.uk/id/local-authority/38,Oxfordshire County Council,DISBTY FAM PLACEMENT,5544,B*Fostering - Temp/Respite,28/09/2016,3110145845,768.54,Redacted Personal Data
http://statistics.data.gov.uk/id/local-authority/38,Oxfordshire County Council,OPPB CONTCARE RNCC,5687,,13/09/2016,3110139556,"60,243.75",Abbey Crest Nursing Home
http://statistics.data.gov.uk/id/local-authority/38,Oxfordshire County Council,HN EARLY YEARS,5537,Payments to Other Establishments,06/09/2016,3110136327,"3,815.00",Abbey Woods Academy
http://statistics.data.gov.uk/id/local-authority/38,Oxfordshire County Council,NURSERY ED FUND,5537,Payments to Other Establishments,01/09/2016,3110135218,"6,809.04",Abbey Woods Academy
http://statistics.data.gov.uk/id/local-authority/38,Oxfordshire County Council,2 YEAR OLD FUNDING,5537,Payments to Other Establishments,13/09/2016,3110140612,"3,720.36",Abbeymeads Day Nurseries Ltd
http://statistics.data.gov.uk/id/local-authority/38,Oxfordshire County Council,NURSERY ED FUND,5537,Payments to Other Establishments,01/09/2016,3110135783,"16,950.02",Abbeymeads Day Nurseries Ltd
http://statistics.data.gov.uk/id/local-authority/38,Oxfordshire County Council,FY SALARIES,3103,Other Training Courses and Qualification,23/09/2016,2200224849,740.00,ABC Does Ltd
http://statistics.data.gov.uk/id/local-authority/38,Oxfordshire County Council,TRANSPORT COSTS,4330,Transport to School Activities,30/09/2016,3110146153,759.00,ABC Travel
http://statistics.data.gov.uk/id/local-authority/38,Oxfordshire County Council,CSB - BANBURY,5689,,21/09/2016,3110144176,512.29,Abicare Services Ltd (Homecare)
http://statistics.data.gov.uk/id/local-authority/38,Oxfordshire County Council,CSB - BANBURY,5689,,21/09/2016,3110144187,515.84,Abicare Services Ltd (Homecare)
http://statistics.data.gov.uk/id/local-authority/38,Oxfordshire County Council,CSB - BANBURY,5689,,21/09/2016,3110144191,541.71,Abicare Services Ltd (Homecare)
http://statistics.data.gov.uk/id/local-authority/38,Oxfordshire County Council,CSB - BANBURY,5689,,21/09/2016,3110144181,576.08,Abicare Services Ltd (Homecare)
http://statistics.data.gov.uk/id/local-authority/38,Oxfordshire County Council,PD COMM SUPP BANB,5689,,21/09/2016,3110144202,608.62,Abicare Services Ltd (Homecare)
http://statistics.data.gov.uk/id/local-authority/38,Oxfordshire County Council,CSB - BANBURY,5689,,21/09/2016,3110144185,630.23,Abicare Services Ltd (Homecare)
http://statistics.data.gov.uk/id/local-authority/38,Oxfordshire County Council,CSB - BANBURY,5689,,21/09/2016,3110144172,632.32,Abicare Services Ltd (Homecare)
http://statistics.data.gov.uk/id/local-authority/38,Oxfordshire County Council,CSB - BANBURY,5689,,21/09/2016,3110144182,673.75,Abicare Services Ltd (Homecare)
http://statistics.data.gov.uk/id/local-authority/38,Oxfordshire County Council,CMPB WITNEY,5689,,21/09/2016,3110144196,707.38,Abicare Services Ltd (Homecare)
http://statistics.data.gov.uk/id/local-authority/38,Oxfordshire County Council,CSB - BANBURY,5689,,21/09/2016,3110144177,726.88,Abicare Services Ltd (Homecare)
http://statistics.data.gov.uk/id/local-authority/38,Oxfordshire County Council,CSB - BANBURY,5689,,21/09/2016,3110144171,731.63,Abicare Services Ltd (Homecare)
http://statistics.data.gov.uk/id/local-authority/38,Oxfordshire County Council,CMPB WITNEY,5689,,21/09/2016,3110144197,866.00,Abicare Services Ltd (Homecare)
http://statistics.data.gov.uk/id/local-authority/38,Oxfordshire County Council,CSB - BANBURY,5689,,21/09/2016,3110144188,882.39,Abicare Services Ltd (Homecare)
http://statistics.data.gov.uk/id/local-authority/38,Oxfordshire County Council,CSB - BANBURY,5689,,21/09/2016,3110144174,"1,161.72",Abicare Services Ltd (Homecare)
http://statistics.data.gov.uk/id/local-authority/38,Oxfordshire County Council,CSB - BANBURY,5689,,21/09/2016,3110144170,"3,665.51",Abicare Services Ltd (Homecare)
http://statistics.data.gov.uk/id/local-authority/38,Oxfordshire County Council,LD CLIENTS SOUTH,5899,Adult Social Care - Direct Payments,07/09/2016,3110137635,"6,427.92",Redacted Personal Data
http://statistics.data.gov.uk/id/local-authority/38,Oxfordshire County Council,RESIDENTIAL STRATEGY,3103,Other Training Courses and Qualification,16/09/2016,2200220238,"1,000.00",Abingdon & Witney College
http://statistics.data.gov.uk/id/local-authority/38,Oxfordshire County Council,2 YEAR OLD FUNDING,5537,Payments to Other Establishments,13/09/2016,3110140439,"3,893.40",Abingdon Kindergarten (Loyd Close)
http://statistics.data.gov.uk/id/local-authority/38,Oxfordshire County Council,NURSERY ED FUND,5537,Payments to Other Establishments,01/09/2016,3110135226,"9,227.23",Abingdon Kindergarten (Loyd Close)
http://statistics.data.gov.uk/id/local-authority/38,Oxfordshire County Council,NURSERY ED FUND,5537,Payments to Other Establishments,01/09/2016,3110135230,"6,285.22",Abingdon Kindergarten (Oxford Road)
http://statistics.data.gov.uk/id/local-authority/38,Oxfordshire County Council,2 YEAR OLD FUNDING,5537,Payments to Other Establishments,13/09/2016,3110140440,"6,856.71",Abingdon Kindergarten (Oxford Road)
http://statistics.data.gov.uk/id/local-authority/38,Oxfordshire County Council,2 YEAR OLD FUNDING,5537,Payments to Other Establishments,13/09/2016,3110140548,648.90,Abingdon Little Angels
http://statistics.data.gov.uk/id/local-authority/38,Oxfordshire County Council,NURSERY ED FUND,5537,Payments to Other Establishments,01/09/2016,3110135690,"5,014.80",Abingdon Little Angels
http://statistics.data.gov.uk/id/local-authority/38,Oxfordshire County Council,DISABILITIES TEAM S,5227,Other Transport Arrangements,12/09/2016,3110139236,552.00,Abingdon Taxis FKN Autotaxis
http://statistics.data.gov.uk/id/local-authority/38,Oxfordshire County Council,LD CLIENTS CITY,5227,Other Transport Arrangements,12/09/2016,3110139248,611.60,Abingdon Taxis FKN Autotaxis
http://statistics.data.gov.uk/id/local-authority/38,Oxfordshire County Council,LD CLIENTS SOUTH,5227,Other Transport Arrangements,12/09/2016,3110139257,"1,096.78",Abingdon Taxis FKN Autotaxis
http://statistics.data.gov.uk/id/local-authority/38,Oxfordshire County Council,LD CLIENTS SOUTH,5227,Other Transport Arrangements,12/09/2016,3110139258,"1,411.00",Abingdon Taxis FKN Autotaxis
http://statistics.data.gov.uk/id/local-authority/38,Oxfordshire County Council,LD CLIENTS SOUTH,5227,Other Transport Arrangements,12/09/2016,3110139254,"1,729.98",Abingdon Taxis FKN Autotaxis
http://statistics.data.gov.uk/id/local-authority/38,Oxfordshire County Council,LD CLIENTS SOUTH,5227,Other Transport Arrangements,12/09/2016,3110139253,"1,912.50",Abingdon Taxis FKN Autotaxis
http://statistics.data.gov.uk/id/local-authority/38,Oxfordshire County Council,CORPORATE LANDLORD,3945,Rent,26/09/2016,3500021729,"2,337.50",Abingdon Town Council
http://statistics.data.gov.uk/id/local-authority/38,Oxfordshire County Council,ON ST PARK ABINGDON,5526,Payments to Private Contractors,28/09/2016,2200227100,"13,083.77",Abingdon Town Council
http://statistics.data.gov.uk/id/local-authority/38,Oxfordshire County Council,LEGAL BUDGET,5251,Legal Costs,20/09/2016,2200222409,"3,167.23",Absolute Translations Ltd
http://statistics.data.gov.uk/id/local-authority/38,Oxfordshire County Council,CARE HOME SPOT SOUTH,5686,,13/09/2016,3110139638,"58,032.58",Acacia Lodge Care Home
http://statistics.data.gov.uk/id/local-authority/38,Oxfordshire County Council,COMMUNICATIONS,5186,Licences,30/09/2016,2200228764,"4,000.00",ACCESS INTELLIGENCE MEDIA AND
http://statistics.data.gov.uk/id/local-authority/38,Oxfordshire County Council,PD COMM SUPP - CITY,5899,Adult Social Care - Direct Payments,07/09/2016,3110137293,"2,424.00",Redacted Personal Data
http://statistics.data.gov.uk/id/local-authority/38,Oxfordshire County Council,CSB - CITY,5689,,21/09/2016,3110143120,502.34,Acquire Care Ltd
http://statistics.data.gov.uk/id/local-authority/38,Oxfordshire County Council,CSB - ABINGDON,5689,,21/09/2016,3110143143,586.21,Acquire Care Ltd
http://statistics.data.gov.uk/id/local-authority/38,Oxfordshire County Council,CSB - CITY,5689,,21/09/2016,3110143126,615.72,Acquire Care Ltd
http://statistics.data.gov.uk/id/local-authority/38,Oxfordshire County Council,CSB - BANBURY,5689,,21/09/2016,3110143098,627.69,Acquire Care Ltd
http://statistics.data.gov.uk/id/local-authority/38,Oxfordshire County Council,CSB - CITY,5689,,21/09/2016,3110143114,636.28,Acquire Care Ltd
http://statistics.data.gov.uk/id/local-authority/38,Oxfordshire County Council,CSB - ABINGDON,5689,,21/09/2016,3110143144,694.72,Acquire Care Ltd
http://statistics.data.gov.uk/id/local-authority/38,Oxfordshire County Council,CSB - CITY,5689,,21/09/2016,3110143130,708.56,Acquire Care Ltd
http://statistics.data.gov.uk/id/local-authority/38,Oxfordshire County Council,CSB - CITY,5689,,21/09/2016,3110143142,709.22,Acquire Care Ltd
http://statistics.data.gov.uk/id/local-authority/38,Oxfordshire County Council,CSB - CITY,5689,,21/09/2016,3110143133,725.32,Acquire Care Ltd
http://statistics.data.gov.uk/id/local-authority/38,Oxfordshire County Council,CSB - BANBURY,5689,,21/09/2016,3110143099,734.44,Acquire Care Ltd
http://statistics.data.gov.uk/id/local-authority/38,Oxfordshire County Council,CSB - CITY,5689,,21/09/2016,3110143123,776.46,Acquire Care Ltd
http://statistics.data.gov.uk/id/local-authority/38,Oxfordshire County Council,PD COMM SUPP - CITY,5689,,21/09/2016,3110143155,846.84,Acquire Care Ltd
http://statistics.data.gov.uk/id/local-authority/38,Oxfordshire County Council,CSB - CITY,5689,,21/09/2016,3110143128,876.67,Acquire Care Ltd
http://statistics.data.gov.uk/id/local-authority/38,Oxfordshire County Council,CSB - CITY,5689,,21/09/2016,3110143136,890.30,Acquire Care Ltd
http://statistics.data.gov.uk/id/local-authority/38,Oxfordshire County Council,CSB - CITY,5689,,21/09/2016,3110143139,895.11,Acquire Care Ltd
http://statistics.data.gov.uk/id/local-authority/38,Oxfordshire County Council,CSB - CITY,5689,,21/09/2016,3110143132,904.24,Acquire Care Ltd
http://statistics.data.gov.uk/id/local-authority/38,Oxfordshire County Council,CSB - CITY,5689,,21/09/2016,3110143108,916.61,Acquire Care Ltd
http://statistics.data.gov.uk/id/local-authority/38,Oxfordshire County Council,CSB - ABINGDON,5689,,21/09/2016,3110143145,945.41,Acquire Care Ltd
http://statistics.data.gov.uk/id/local-authority/38,Oxfordshire County Council,CSB - CITY,5689,,21/09/2016,3110143107,968.61,Acquire Care Ltd
http://statistics.data.gov.uk/id/local-authority/38,Oxfordshire County Council,CSB - CITY,5689,,21/09/2016,3110143141,989.15,Acquire Care Ltd
http://statistics.data.gov.uk/id/local-authority/38,Oxfordshire County Council,CSB - CITY,5689,,21/09/2016,3110143117,992.35,Acquire Care Ltd
http://statistics.data.gov.uk/id/local-authority/38,Oxfordshire County Council,CSB - CITY,5689,,21/09/2016,3110143131,"1,141.96",Acquire Care Ltd
http://statistics.data.gov.uk/id/local-authority/38,Oxfordshire County Council,CSB - BANBURY,5689,,21/09/2016,3110143097,"1,330.80",Acquire Care Ltd
http://statistics.data.gov.uk/id/local-authority/38,Oxfordshire County Council,CSB - BANBURY,5689,,21/09/2016,3110143095,"1,332.59",Acquire Care Ltd
http://statistics.data.gov.uk/id/local-authority/38,Oxfordshire County Council,CSB - BANBURY,5689,,21/09/2016,3110143104,"1,362.42",Acquire Care Ltd
http://statistics.data.gov.uk/id/local-authority/38,Oxfordshire County Council,CSB - CITY,5691,,13/09/2016,2200217337,"1,400.00",Acquire Care Ltd
http://statistics.data.gov.uk/id/local-authority/38,Oxfordshire County Council,DISCHARGE TO ASSESS,5691,,20/09/2016,2200222366,"1,400.00",Acquire Care Ltd
http://statistics.data.gov.uk/id/local-authority/38,Oxfordshire County Council,CSB - CITY,5689,,21/09/2016,3110143109,"1,404.42",Acquire Care Ltd
http://statistics.data.gov.uk/id/local-authority/38,Oxfordshire County Council,CSB - CITY,5689,,21/09/2016,3110143113,"1,408.18",Acquire Care Ltd
http://statistics.data.gov.uk/id/local-authority/38,Oxfordshire County Council,CSB - CITY,5689,,21/09/2016,3110143124,"1,454.95",Acquire Care Ltd
http://statistics.data.gov.uk/id/local-authority/38,Oxfordshire County Council,CSB - BANBURY,5689,,21/09/2016,3110143093,"1,516.38",Acquire Care Ltd
http://statistics.data.gov.uk/id/local-authority/38,Oxfordshire County Council,CSB - BANBURY,5689,,21/09/2016,3110143100,"1,678.62",Acquire Care Ltd
http://statistics.data.gov.uk/id/local-authority/38,Oxfordshire County Council,CSB - CITY,5689,,21/09/2016,3110143138,"1,687.09",Acquire Care Ltd
http://statistics.data.gov.uk/id/local-authority/38,Oxfordshire County Council,CSB - CITY,5689,,21/09/2016,3110143125,"1,793.63",Acquire Care Ltd
http://statistics.data.gov.uk/id/local-authority/38,Oxfordshire County Council,CSB - CITY,5689,,21/09/2016,3110143134,"1,860.22",Acquire Care Ltd
http://statistics.data.gov.uk/id/local-authority/38,Oxfordshire County Council,CSB - CITY,5689,,21/09/2016,3110143121,"1,897.48",Acquire Care Ltd
http://statistics.data.gov.uk/id/local-authority/38,Oxfordshire County Council,CSB - CITY,5689,,21/09/2016,3110143127,"1,943.22",Acquire Care Ltd
http://statistics.data.gov.uk/id/local-authority/38,Oxfordshire County Council,CSB - BANBURY,5689,,21/09/2016,3110143102,"1,973.86",Acquire Care Ltd
http://statistics.data.gov.uk/id/local-authority/38,Oxfordshire County Council,CSB - BANBURY,5689,,21/09/2016,3110143096,"2,045.73",Acquire Care Ltd
http://statistics.data.gov.uk/id/local-authority/38,Oxfordshire County Council,CSB - CITY,5689,,21/09/2016,3110143135,"2,087.30",Acquire Care Ltd
http://statistics.data.gov.uk/id/local-authority/38,Oxfordshire County Council,CSB - CITY,5689,,21/09/2016,3110143115,"2,099.00",Acquire Care Ltd
http://statistics.data.gov.uk/id/local-authority/38,Oxfordshire County Council,CSB - CITY,5689,,21/09/2016,3110143118,"2,141.91",Acquire Care Ltd
http://statistics.data.gov.uk/id/local-authority/38,Oxfordshire County Council,CSB - CITY,5689,,21/09/2016,3110143116,"2,265.15",Acquire Care Ltd
http://statistics.data.gov.uk/id/local-authority/38,Oxfordshire County Council,CSB - CITY,5689,,21/09/2016,3110143137,"2,277.02",Acquire Care Ltd
http://statistics.data.gov.uk/id/local-authority/38,Oxfordshire County Council,PD COMM SUPP - CITY,5689,,21/09/2016,3110143150,"2,376.86",Acquire Care Ltd
http://statistics.data.gov.uk/id/local-authority/38,Oxfordshire County Council,PD COMM SUPP - CITY,5689,,21/09/2016,3110143154,"2,425.26",Acquire Care Ltd
http://statistics.data.gov.uk/id/local-authority/38,Oxfordshire County Council,PD COMM SUPP - CITY,5689,,21/09/2016,3110143152,"2,452.24",Acquire Care Ltd
http://statistics.data.gov.uk/id/local-authority/38,Oxfordshire County Council,CSB - BANBURY,5689,,21/09/2016,3110143101,"2,567.68",Acquire Care Ltd
http://statistics.data.gov.uk/id/local-authority/38,Oxfordshire County Council,CMPB WITNEY,5689,,21/09/2016,3110143147,"2,652.44",Acquire Care Ltd
http://statistics.data.gov.uk/id/local-authority/38,Oxfordshire County Council,PD COMM SUPP BANB,5689,,21/09/2016,3110143149,"2,852.30",Acquire Care Ltd
http://statistics.data.gov.uk/id/local-authority/38,Oxfordshire County Council,CSB - BANBURY,5689,,21/09/2016,3110143094,"2,996.00",Acquire Care Ltd
http://statistics.data.gov.uk/id/local-authority/38,Oxfordshire County Council,PD COMM SUPP AB'DON,5689,,19/09/2016,3110142041,"3,080.00",Acquire Care Ltd
http://statistics.data.gov.uk/id/local-authority/38,Oxfordshire County Council,CSB - CITY,5689,,21/09/2016,3110143119,"3,082.52",Acquire Care Ltd
http://statistics.data.gov.uk/id/local-authority/38,Oxfordshire County Council,PD COMM SUPP AB'DON,5689,,19/09/2016,3110142039,"3,190.00",Acquire Care Ltd
http://statistics.data.gov.uk/id/local-authority/38,Oxfordshire County Council,PD COMM SUPP AB'DON,5689,,22/09/2016,3110144918,"3,190.00",Acquire Care Ltd
http://statistics.data.gov.uk/id/local-authority/38,Oxfordshire County Council,CSB - BANBURY,5689,,09/09/2016,3110139143,"3,640.00",Acquire Care Ltd
http://statistics.data.gov.uk/id/local-authority/38,Oxfordshire County Council,CSB - BANBURY,5689,,09/09/2016,3110139144,"3,640.00",Acquire Care Ltd
http://statistics.data.gov.uk/id/local-authority/38,Oxfordshire County Council,CSB - BANBURY,5689,,22/09/2016,3110144919,"3,770.00",Acquire Care Ltd
http://statistics.data.gov.uk/id/local-authority/38,Oxfordshire County Council,2 YEAR OLD FUNDING,5537,Payments to Other Establishments,13/09/2016,3110140441,"1,730.40",Acre End Pre-School Play
http://statistics.data.gov.uk/id/local-authority/38,Oxfordshire County Council,NURSERY ED FUND,5537,Payments to Other Establishments,01/09/2016,3110135234,"5,279.87",Acre End Pre-School Play
http://statistics.data.gov.uk/id/local-authority/38,Oxfordshire County Council,TREE MAINT OPS,3821,Grounds Maintenance Contracts,16/09/2016,2200220827,"1,130.00",Acreman's Arboriculture Ltd
http://statistics.data.gov.uk/id/local-authority/38,Oxfordshire County Council,TREE MAINT OPS,3821,Grounds Maintenance Contracts,29/09/2016,2200228149,"1,485.00",Acreman's Arboriculture Ltd
http://statistics.data.gov.uk/id/local-authority/38,Oxfordshire County Council,TREE MAINT OPS,5526,Payments to Private Contractors,20/09/2016,2200222382,"4,445.00",Acreman's Arboriculture Ltd
http://statistics.data.gov.uk/id/local-authority/38,Oxfordshire County Council,TREE MAINT OPS,5526,Payments to Private Contractors,21/09/2016,2200223090,"5,995.00",Acreman's Arboriculture Ltd
http://statistics.data.gov.uk/id/local-authority/38,Oxfordshire County Council,TREE MAINT OPS,3821,Grounds Maintenance Contracts,19/09/2016,2200221932,"7,845.00",Acreman's Arboriculture Ltd
http://statistics.data.gov.uk/id/local-authority/38,Oxfordshire County Council,TREE MAINT OPS,5526,Payments to Private Contractors,21/09/2016,2200223094,"8,490.00",Acreman's Arboriculture Ltd
http://statistics.data.gov.uk/id/local-authority/38,Oxfordshire County Council,CHILDREN CENTRES REV,5520,Payments to Voluntary bodies,30/09/2016,3500022114,"184,203.75",Action for Children
http://statistics.data.gov.uk/id/local-authority/38,Oxfordshire County Council,PD RES PURCH - SOUTH,5686,,13/09/2016,3110139439,"4,679.88",ACTION ON HEARING LOSS
http://statistics.data.gov.uk/id/local-authority/38,Oxfordshire County Council,PD COMM SUPP - CITY,5688,,13/09/2016,3110139788,"4,829.91",ACTION ON HEARING LOSS
http://statistics.data.gov.uk/id/local-authority/38,Oxfordshire County Council,LEP,4861,Hired and Contracted Services,22/09/2016,2200224382,"5,000.00",Activate Learning
http://statistics.data.gov.uk/id/local-authority/38,Oxfordshire County Council,ECONOMIC DEVELOPMENT,5195,Grant Aid and Donations,22/09/2016,2200224404,"5,000.00",Activate Learning
http://statistics.data.gov.uk/id/local-authority/38,Oxfordshire County Council,HN IN SEC SCHOOLS,5537,Payments to Other Establishments,21/09/2016,3110144215,"3,313.00",Activate Learning Education Trust
http://statistics.data.gov.uk/id/local-authority/38,Oxfordshire County Council,PDPB CONTCARE H SUPP,5691,,12/09/2016,3110139371,"1,584.17",ACTIVE ASSISTANCE
http://statistics.data.gov.uk/id/local-authority/38,Oxfordshire County Council,PDPB CONTCARE H SUPP,5691,,15/09/2016,3110141815,"1,584.17",ACTIVE ASSISTANCE
http://statistics.data.gov.uk/id/local-authority/38,Oxfordshire County Council,PDPB CONTCARE H SUPP,5691,,15/09/2016,3110141832,"1,584.17",ACTIVE ASSISTANCE
http://statistics.data.gov.uk/id/local-authority/38,Oxfordshire County Council,PDPB CONTCARE H SUPP,5691,,23/09/2016,3110145926,"1,584.17",ACTIVE ASSISTANCE
http://statistics.data.gov.uk/id/local-authority/38,Oxfordshire County Council,PDPB CONTCARE H SUPP,5691,,23/09/2016,3110145940,"1,584.17",ACTIVE ASSISTANCE
http://statistics.data.gov.uk/id/local-authority/38,Oxfordshire County Council,OPPB CONTCARE H SUPP,5691,,28/09/2016,3110146015,"11,217.14",ACTIVE ASSISTANCE
http://statistics.data.gov.uk/id/local-authority/38,Oxfordshire County Council,LD CLIENTS SOUTH,5899,Adult Social Care - Direct Payments,07/09/2016,3110137805,"1,171.48",Redacted Personal Data
http://statistics.data.gov.uk/id/local-authority/38,Oxfordshire County Council,LD CLIENTS SOUTH,5899,Adult Social Care - Direct Payments,07/09/2016,3110137658,"2,076.92",Redacted Personal Data
http://statistics.data.gov.uk/id/local-authority/38,Oxfordshire County Council,DEVELOPMENT MANAGEME,4940,Other Services,26/09/2016,2200225699,"5,500.00",Adams Habermehl Ltd
http://statistics.data.gov.uk/id/local-authority/38,Oxfordshire County Council,DIRECTOR'S OFFICE,3103,Other Training Courses and Qualification,01/09/2016,2200211371,"1,350.00",ADASS
http://statistics.data.gov.uk/id/local-authority/38,Oxfordshire County Council,2 YEAR OLD FUNDING,5537,Payments to Other Establishments,13/09/2016,3110140442,"3,525.69",Adderbury Day Nursery
http://statistics.data.gov.uk/id/local-authority/38,Oxfordshire County Council,NURSERY ED FUND,5537,Payments to Other Establishments,01/09/2016,3110135239,"4,346.16",Adderbury Day Nursery
http://statistics.data.gov.uk/id/local-authority/38,Oxfordshire County Council,GRASS CUTTING DIST.,5526,Payments to Private Contractors,13/09/2016,2200218251,"2,520.43",Adderbury Parish Council
http://statistics.data.gov.uk/id/local-authority/38,Oxfordshire County Council,PD COMM SUPP BANB,5899,Adult Social Care - Direct Payments,07/09/2016,3110137470,792.00,Redacted Personal Data
http://statistics.data.gov.uk/id/local-authority/38,Oxfordshire County Council,LD CLIENTS SOUTH,5689,,19/09/2016,3110142051,518.40,ADVANCE HOUSING & SUPPORT LTD
http://statistics.data.gov.uk/id/local-authority/38,Oxfordshire County Council,LD CLIENTS SOUTH,5689,,19/09/2016,3110142053,777.60,ADVANCE HOUSING & SUPPORT LTD
http://statistics.data.gov.uk/id/local-authority/38,Oxfordshire County Council,LD CLIENTS SOUTH,5689,,19/09/2016,3110142049,948.50,ADVANCE HOUSING & SUPPORT LTD
http://statistics.data.gov.uk/id/local-authority/38,Oxfordshire County Council,LD CLIENTS NORTH,5688,,13/09/2016,3110139789,"25,337.77",ADVANCE HOUSING & SUPPORT LTD
http://statistics.data.gov.uk/id/local-authority/38,Oxfordshire County Council,LD EXT RESP CONTRACT,5544,B*Fostering - Temp/Respite,13/09/2016,3110139444,"55,018.21",ADVANCE HOUSING & SUPPORT LTD
http://statistics.data.gov.uk/id/local-authority/38,Oxfordshire County Council,SM DISABILITIES,5899,Adult Social Care - Direct Payments,28/09/2016,3110145200,517.18,Advance Oxford
http://statistics.data.gov.uk/id/local-authority/38,Oxfordshire County Council,SM DISABILITIES,5899,Adult Social Care - Direct Payments,28/09/2016,3110145189,542.50,Advance Oxford
http://statistics.data.gov.uk/id/local-authority/38,Oxfordshire County Council,SM DISABILITIES,5899,Adult Social Care - Direct Payments,28/09/2016,3110145148,564.20,Advance Oxford
http://statistics.data.gov.uk/id/local-authority/38,Oxfordshire County Council,SM DISABILITIES,5899,Adult Social Care - Direct Payments,28/09/2016,3110145157,564.20,Advance Oxford
http://statistics.data.gov.uk/id/local-authority/38,Oxfordshire County Council,SM DISABILITIES,5899,Adult Social Care - Direct Payments,28/09/2016,3110145159,564.20,Advance Oxford
http://statistics.data.gov.uk/id/local-authority/38,Oxfordshire County Council,SM DISABILITIES,5899,Adult Social Care - Direct Payments,28/09/2016,3110145174,564.20,Advance Oxford
http://statistics.data.gov.uk/id/local-authority/38,Oxfordshire County Council,SM DISABILITIES,5899,Adult Social Care - Direct Payments,28/09/2016,3110145176,564.20,Advance Oxford
http://statistics.data.gov.uk/id/local-authority/38,Oxfordshire County Council,SM DISABILITIES,5899,Adult Social Care - Direct Payments,28/09/2016,3110145178,564.20,Advance Oxford
http://statistics.data.gov.uk/id/local-authority/38,Oxfordshire County Council,SM DISABILITIES,5899,Adult Social Care - Direct Payments,28/09/2016,3110145183,564.20,Advance Oxford
http://statistics.data.gov.uk/id/local-authority/38,Oxfordshire County Council,SM DISABILITIES,5899,Adult Social Care - Direct Payments,28/09/2016,3110145186,564.20,Advance Oxford
http://statistics.data.gov.uk/id/local-authority/38,Oxfordshire County Council,SM DISABILITIES,5899,Adult Social Care - Direct Payments,28/09/2016,3110145192,564.20,Advance Oxford
http://statistics.data.gov.uk/id/local-authority/38,Oxfordshire County Council,SM DISABILITIES,5899,Adult Social Care - Direct Payments,28/09/2016,3110145201,564.20,Advance Oxford
http://statistics.data.gov.uk/id/local-authority/38,Oxfordshire County Council,ContrO ASC Payments Control Account,5899,Adult Social Care - Direct Payments,28/09/2016,3110145168,585.39,Advance Oxford
http://statistics.data.gov.uk/id/local-authority/38,Oxfordshire County Council,SM DISABILITIES,5899,Adult Social Care - Direct Payments,28/09/2016,3110145135,846.30,Advance Oxford
http://statistics.data.gov.uk/id/local-authority/38,Oxfordshire County Council,SM DISABILITIES,5899,Adult Social Care - Direct Payments,28/09/2016,3110145154,846.30,Advance Oxford
http://statistics.data.gov.uk/id/local-authority/38,Oxfordshire County Council,SM DISABILITIES,5899,Adult Social Care - Direct Payments,28/09/2016,3110145162,846.30,Advance Oxford
http://statistics.data.gov.uk/id/local-authority/38,Oxfordshire County Council,SM DISABILITIES,5899,Adult Social Care - Direct Payments,28/09/2016,3110145164,846.30,Advance Oxford
http://statistics.data.gov.uk/id/local-authority/38,Oxfordshire County Council,SM DISABILITIES,5899,Adult Social Care - Direct Payments,28/09/2016,3110145171,846.30,Advance Oxford
http://statistics.data.gov.uk/id/local-authority/38,Oxfordshire County Council,SM DISABILITIES,5899,Adult Social Care - Direct Payments,28/09/2016,3110145172,846.30,Advance Oxford
http://statistics.data.gov.uk/id/local-authority/38,Oxfordshire County Council,SM DISABILITIES,5899,Adult Social Care - Direct Payments,28/09/2016,3110145177,846.30,Advance Oxford
http://statistics.data.gov.uk/id/local-authority/38,Oxfordshire County Council,SM DISABILITIES,5899,Adult Social Care - Direct Payments,28/09/2016,3110145181,846.30,Advance Oxford
http://statistics.data.gov.uk/id/local-authority/38,Oxfordshire County Council,SM DISABILITIES,5899,Adult Social Care - Direct Payments,28/09/2016,3110145187,846.30,Advance Oxford
http://statistics.data.gov.uk/id/local-authority/38,Oxfordshire County Council,SM DISABILITIES,5899,Adult Social Care - Direct Payments,28/09/2016,3110145196,846.30,Advance Oxford
http://statistics.data.gov.uk/id/local-authority/38,Oxfordshire County Council,SM DISABILITIES,5899,Adult Social Care - Direct Payments,28/09/2016,3110145197,846.30,Advance Oxford
http://statistics.data.gov.uk/id/local-authority/38,Oxfordshire County Council,SM DISABILITIES,5899,Adult Social Care - Direct Payments,28/09/2016,3110145199,846.30,Advance Oxford
http://statistics.data.gov.uk/id/local-authority/38,Oxfordshire County Council,ContrO ASC Payments Control Account,5899,Adult Social Care - Direct Payments,28/09/2016,3110145185,854.88,Advance Oxford
http://statistics.data.gov.uk/id/local-authority/38,Oxfordshire County Council,SM DISABILITIES,5899,Adult Social Care - Direct Payments,28/09/2016,3110145143,933.10,Advance Oxford
http://statistics.data.gov.uk/id/local-authority/38,Oxfordshire County Council,SM DISABILITIES,5899,Adult Social Care - Direct Payments,28/09/2016,3110145169,933.10,Advance Oxford
http://statistics.data.gov.uk/id/local-authority/38,Oxfordshire County Council,SM DISABILITIES,5899,Adult Social Care - Direct Payments,28/09/2016,3110145194,933.10,Advance Oxford
http://statistics.data.gov.uk/id/local-authority/38,Oxfordshire County Council,SM DISABILITIES,5899,Adult Social Care - Direct Payments,28/09/2016,3110145170,940.33,Advance Oxford
http://statistics.data.gov.uk/id/local-authority/38,Oxfordshire County Council,SM DISABILITIES,5899,Adult Social Care - Direct Payments,28/09/2016,3110145175,960.00,Advance Oxford
http://statistics.data.gov.uk/id/local-authority/38,Oxfordshire County Council,SM DISABILITIES,5899,Adult Social Care - Direct Payments,28/09/2016,3110145179,"1,019.90",Advance Oxford
http://statistics.data.gov.uk/id/local-authority/38,Oxfordshire County Council,SM DISABILITIES,5899,Adult Social Care - Direct Payments,28/09/2016,3110145222,"1,114.84",Advance Oxford
http://statistics.data.gov.uk/id/local-authority/38,Oxfordshire County Council,SM DISABILITIES,5899,Adult Social Care - Direct Payments,28/09/2016,3110145140,"1,128.40",Advance Oxford
http://statistics.data.gov.uk/id/local-authority/38,Oxfordshire County Council,SM DISABILITIES,5899,Adult Social Care - Direct Payments,28/09/2016,3110145152,"1,128.40",Advance Oxford
http://statistics.data.gov.uk/id/local-authority/38,Oxfordshire County Council,SM DISABILITIES,5899,Adult Social Care - Direct Payments,28/09/2016,3110145166,"1,128.40",Advance Oxford
http://statistics.data.gov.uk/id/local-authority/38,Oxfordshire County Council,SM DISABILITIES,5899,Adult Social Care - Direct Payments,28/09/2016,3110145167,"1,128.40",Advance Oxford
http://statistics.data.gov.uk/id/local-authority/38,Oxfordshire County Council,ContrO ASC Payments Control Account,5899,Adult Social Care - Direct Payments,28/09/2016,3110145190,"1,170.78",Advance Oxford
http://statistics.data.gov.uk/id/local-authority/38,Oxfordshire County Council,SM DISABILITIES,5899,Adult Social Care - Direct Payments,28/09/2016,3110145142,"1,215.20",Advance Oxford
http://statistics.data.gov.uk/id/local-authority/38,Oxfordshire County Council,ContrO ASC Payments Control Account,5899,Adult Social Care - Direct Payments,28/09/2016,3110145217,"1,333.80",Advance Oxford
http://statistics.data.gov.uk/id/local-authority/38,Oxfordshire County Council,SM DISABILITIES,5899,Adult Social Care - Direct Payments,28/09/2016,3110145137,"1,388.80",Advance Oxford
http://statistics.data.gov.uk/id/local-authority/38,Oxfordshire County Council,SM DISABILITIES,5899,Adult Social Care - Direct Payments,28/09/2016,3110145193,"1,733.55",Advance Oxford
http://statistics.data.gov.uk/id/local-authority/38,Oxfordshire County Council,SM DISABILITIES,5899,Adult Social Care - Direct Payments,28/09/2016,3110145207,"2,788.45",Advance Oxford
http://statistics.data.gov.uk/id/local-authority/38,Oxfordshire County Council,SM DISABILITIES,5899,Adult Social Care - Direct Payments,28/09/2016,3110145210,"2,788.45",Advance Oxford
http://statistics.data.gov.uk/id/local-authority/38,Oxfordshire County Council,GYPSY & TRAVELLER SV,4861,Hired and Contracted Services,09/09/2016,2200215986,648.00,Advanced Pest Control Ltd
http://statistics.data.gov.uk/id/local-authority/38,Oxfordshire County Council,CENTRAL COSTS,5186,Licences,08/09/2016,2200214959,715.00,ADVENTURE ACTIVITIES LICENSING AUTH
http://statistics.data.gov.uk/id/local-authority/38,Oxfordshire County Council,MAJOR INFASTRUCTURE,5526,Payments to Private Contractors,21/09/2016,2200223826,"5,070.82",AECOM Infrastructure & Environment
http://statistics.data.gov.uk/id/local-authority/38,Oxfordshire County Council,MAJOR INFASTRUCTURE,5526,Payments to Private Contractors,21/09/2016,2200223824,"5,438.64",AECOM Infrastructure & Environment
http://statistics.data.gov.uk/id/local-authority/38,Oxfordshire County Council,RD COND SURVEYS/INV,4940,Other Services,13/09/2016,2200217389,"6,100.00",AECOM Infrastructure & Environment
http://statistics.data.gov.uk/id/local-authority/38,Oxfordshire County Council,MAJOR INFASTRUCTURE,5526,Payments to Private Contractors,15/09/2016,2200219808,"6,400.00",AECOM Infrastructure & Environment
http://statistics.data.gov.uk/id/local-authority/38,Oxfordshire County Council,MAJOR INFASTRUCTURE,5526,Payments to Private Contractors,29/09/2016,2200228444,"13,440.00",AECOM Infrastructure & Environment
http://statistics.data.gov.uk/id/local-authority/38,Oxfordshire County Council,LD CLIENTS SOUTH,5686,,13/09/2016,3110139425,"7,060.24",AFFINITY TRUST
http://statistics.data.gov.uk/id/local-authority/38,Oxfordshire County Council,LD CLIENTS CITY,5688,,13/09/2016,3110139781,"215,693.21",AFFINITY TRUST
http://statistics.data.gov.uk/id/local-authority/38,Oxfordshire County Council,BUCKS GYPSY &TRAV SV,3956,Non System - Water - Metered,15/09/2016,2200219265,842.08,AFFINITY WATER
http://statistics.data.gov.uk/id/local-authority/38,Oxfordshire County Council,NURSERY ED FUND,5537,Payments to Other Establishments,01/09/2016,3110135245,"14,041.44",Aflah Nursery
http://statistics.data.gov.uk/id/local-authority/38,Oxfordshire County Council,COMM FIRE SAFETY,4940,Other Services,23/09/2016,2200225202,"1,000.00",Age UK Oxfordshire
http://statistics.data.gov.uk/id/local-authority/38,Oxfordshire County Council,AGEING SUCCESSFULLY,5520,Payments to Voluntary bodies,21/09/2016,3500021708,"11,169.00",Age UK Oxfordshire
http://statistics.data.gov.uk/id/local-authority/38,Oxfordshire County Council,CSB - DIDCOT,5899,Adult Social Care - Direct Payments,07/09/2016,3110137238,"2,620.00",Redacted Personal Data
http://statistics.data.gov.uk/id/local-authority/38,Oxfordshire County Council,COMPOSTING,5526,Payments to Private Contractors,09/09/2016,2200216175,"39,357.39",Agrivert (Ardley) Limited
http://statistics.data.gov.uk/id/local-authority/38,Oxfordshire County Council,COMPOSTING,5526,Payments to Private Contractors,28/09/2016,2200227415,"90,334.06",Agrivert (Ardley) Limited
http://statistics.data.gov.uk/id/local-authority/38,Oxfordshire County Council,COMPOSTING,5526,Payments to Private Contractors,01/09/2016,2200211545,"116,596.17",Agrivert (Ardley) Limited
http://statistics.data.gov.uk/id/local-authority/38,Oxfordshire County Council,COMPOSTING,5526,Payments to Private Contractors,01/09/2016,2200211550,"143,480.82",Agrivert (Ardley) Limited
http://statistics.data.gov.uk/id/local-authority/38,Oxfordshire County Council,COMPOSTING,5526,Payments to Private Contractors,01/09/2016,2200211540,"51,762.02",Agrivert (Biogas) Limited
http://statistics.data.gov.uk/id/local-authority/38,Oxfordshire County Council,COMPOSTING,5526,Payments to Private Contractors,28/09/2016,2200227413,"53,530.75",Agrivert (Biogas) Limited
http://statistics.data.gov.uk/id/local-authority/38,Oxfordshire County Council,GP + PHARMACY SERVS,4934,,19/09/2016,3110145585,"1,260.00",Ahmeys Midnight Pharmacy
http://statistics.data.gov.uk/id/local-authority/38,Oxfordshire County Council,GP + PHARMACY SERVS,4934,,19/09/2016,3110145581,756.00,Ahmeys Pharmacy
http://statistics.data.gov.uk/id/local-authority/38,Oxfordshire County Council,LD CLIENTS SOUTH,5899,Adult Social Care - Direct Payments,07/09/2016,3110137623,"1,184.48",Redacted Personal Data
http://statistics.data.gov.uk/id/local-authority/38,Oxfordshire County Council,COMMUNICATIONS,5079,Telephone - Calls,26/09/2016,2200226161,"4,397.55",Airwave Solutions Ltd
http://statistics.data.gov.uk/id/local-authority/38,Oxfordshire County Council,PD COMM SUPP AB'DON,5899,Adult Social Care - Direct Payments,07/09/2016,3110137946,"8,700.00",Redacted Personal Data
http://statistics.data.gov.uk/id/local-authority/38,Oxfordshire County Council,LD CLIENTS NORTH,5686,,13/09/2016,3110139729,"40,462.63",ALBANY FARM CARE
http://statistics.data.gov.uk/id/local-authority/38,Oxfordshire County Council,TRAINING MANAGEMENT,3105,Training related expenditure,05/09/2016,2200212303,"1,650.00",Aldridge Scrap Metal Ltd
http://statistics.data.gov.uk/id/local-authority/38,Oxfordshire County Council,TRAINING MANAGEMENT,3105,Training related expenditure,16/09/2016,2200220633,"3,150.00",Aldridge Scrap Metal Ltd
http://statistics.data.gov.uk/id/local-authority/38,Oxfordshire County Council,CARE HOME SPOT CHERW,5686,,13/09/2016,3110139736,"2,571.43",Alexander Care Home
http://statistics.data.gov.uk/id/local-authority/38,Oxfordshire County Council,LEGAL SERVICES,5251,Legal Costs,01/09/2016,2200223748,550.00,Alexander Forbes
http://statistics.data.gov.uk/id/local-authority/38,Oxfordshire County Council,LEGAL SERVICES,5251,Legal Costs,01/09/2016,2200223813,550.00,Alexander Forbes
http://statistics.data.gov.uk/id/local-authority/38,Oxfordshire County Council,LEGAL SERVICES,5251,Legal Costs,28/09/2016,2200227366,"2,300.00",Alexander Forbes
http://statistics.data.gov.uk/id/local-authority/38,Oxfordshire County Council,SM DISABILITIES,5899,Adult Social Care - Direct Payments,28/09/2016,3110145258,846.30,Redacted Personal Data
http://statistics.data.gov.uk/id/local-authority/38,Oxfordshire County Council,LD CLIENTS SOUTH,5899,Adult Social Care - Direct Payments,07/09/2016,3110137662,"2,995.08",Redacted Personal Data
http://statistics.data.gov.uk/id/local-authority/38,Oxfordshire County Council,SM DISABILITIES,5899,Adult Social Care - Direct Payments,28/09/2016,3110145102,564.20,Redacted Personal Data
http://statistics.data.gov.uk/id/local-authority/38,Oxfordshire County Council,ContrO ASC Payments Control Account,5899,Adult Social Care - Direct Payments,28/09/2016,3110145139,705.25,Redacted Personal Data
http://statistics.data.gov.uk/id/local-authority/38,Oxfordshire County Council,LD CLIENTS CITY,5899,Adult Social Care - Direct Payments,07/09/2016,3110137226,"5,388.00",Redacted Personal Data
http://statistics.data.gov.uk/id/local-authority/38,Oxfordshire County Council,LD CLIENTS CITY,5899,Adult Social Care - Direct Payments,07/09/2016,3110137179,"6,654.76",Redacted Personal Data
http://statistics.data.gov.uk/id/local-authority/38,Oxfordshire County Council,CONTINUING HEALTH CARE - CARE AT HOME,5899,Adult Social Care - Direct Payments,13/09/2016,3110139517,"11,765.28",Redacted Personal Data
http://statistics.data.gov.uk/id/local-authority/38,Oxfordshire County Council,SM DISABILITIES,5899,Adult Social Care - Direct Payments,28/09/2016,3110145221,"1,128.40",Redacted Personal Data
http://statistics.data.gov.uk/id/local-authority/38,Oxfordshire County Council,SM DISABILITIES,5899,Adult Social Care - Direct Payments,28/09/2016,3110145220,846.30,Redacted Personal Data
http://statistics.data.gov.uk/id/local-authority/38,Oxfordshire County Council,LD CLIENTS SOUTH,5899,Adult Social Care - Direct Payments,07/09/2016,3110137802,753.24,Redacted Personal Data
http://statistics.data.gov.uk/id/local-authority/38,Oxfordshire County Council,LD CLIENTS NORTH,5899,Adult Social Care - Direct Payments,07/09/2016,3110137631,"4,493.16",Redacted Personal Data
http://statistics.data.gov.uk/id/local-authority/38,Oxfordshire County Council,DEPUTY DIRECTOR &MAN,2040,Agency Staff,19/09/2016,2200221157,591.89,Allen Associates
http://statistics.data.gov.uk/id/local-authority/38,Oxfordshire County Council,DEPUTY DIRECTOR &MAN,2040,Agency Staff,20/09/2016,2200222450,734.76,Allen Associates
http://statistics.data.gov.uk/id/local-authority/38,Oxfordshire County Council,MH COMMUNITY SUP'T,5899,Adult Social Care - Direct Payments,07/09/2016,3110137478,640.00,Redacted Personal Data
http://statistics.data.gov.uk/id/local-authority/38,Oxfordshire County Council,CARE HOME SPOT CITY,5686,,13/09/2016,3110139721,"3,353.40",ALLIED CARE LTD
http://statistics.data.gov.uk/id/local-authority/38,Oxfordshire County Council,NURSERY ED FUND,5537,Payments to Other Establishments,01/09/2016,3110135250,"5,917.46",Allsorts Pre-School
http://statistics.data.gov.uk/id/local-authority/38,Oxfordshire County Council,PROCUREMENT,4232,Vehicle Fuel,16/09/2016,2200220631,"4,566.34",Allstar Business Solutions Ltd
http://statistics.data.gov.uk/id/local-authority/38,Oxfordshire County Council,LD CLIENTS SOUTH,5686,,13/09/2016,3110139711,"24,271.89",Alocare Group
http://statistics.data.gov.uk/id/local-authority/38,Oxfordshire County Council,RESIDENTIAL STRATEGY,3100,Educational and Vocational Training,12/09/2016,2200216484,700.00,Alpha 1 Training and Consultancy
http://statistics.data.gov.uk/id/local-authority/38,Oxfordshire County Council,NURSERY ED FUND,5537,Payments to Other Establishments,01/09/2016,3110135254,"1,504.44",Alphabet Day Nursery
http://statistics.data.gov.uk/id/local-authority/38,Oxfordshire County Council,2 YEAR OLD FUNDING,5537,Payments to Other Establishments,13/09/2016,3110140444,"1,946.70",Alphabet Day Nursery
http://statistics.data.gov.uk/id/local-authority/38,Oxfordshire County Council,ASSET RATIONALISATN,4940,Other Services,16/09/2016,2200220242,730.00,Alternative Communication Systems
http://statistics.data.gov.uk/id/local-authority/38,Oxfordshire County Council,ICT Operations & Maintenance,5081,HPSN Core Contract,22/09/2016,2200224043,"1,544.00",Alternative Communication Systems
http://statistics.data.gov.uk/id/local-authority/38,Oxfordshire County Council,RFID PROJECT,5081,HPSN Core Contract,26/09/2016,2200226106,"7,000.00",Alternative Communication Systems
http://statistics.data.gov.uk/id/local-authority/38,Oxfordshire County Council,PD COMM SUPP WITNEY,5899,Adult Social Care - Direct Payments,07/09/2016,3110137953,928.00,Redacted Personal Data
http://statistics.data.gov.uk/id/local-authority/38,Oxfordshire County Council,PD COMM SUPP AB'DON,5689,,21/09/2016,3110143062,501.23,Amber Healthcare Personnel Ltd
http://statistics.data.gov.uk/id/local-authority/38,Oxfordshire County Council,PD COMM SUPP AB'DON,5689,,21/09/2016,3110143067,513.70,Amber Healthcare Personnel Ltd
http://statistics.data.gov.uk/id/local-authority/38,Oxfordshire County Council,CSB - ABINGDON,5689,,21/09/2016,3110143048,528.60,Amber Healthcare Personnel Ltd
http://statistics.data.gov.uk/id/local-authority/38,Oxfordshire County Council,CSB - ABINGDON,5689,,21/09/2016,3110143033,537.96,Amber Healthcare Personnel Ltd
http://statistics.data.gov.uk/id/local-authority/38,Oxfordshire County Council,CSB - ABINGDON,5689,,21/09/2016,3110143029,554.97,Amber Healthcare Personnel Ltd
http://statistics.data.gov.uk/id/local-authority/38,Oxfordshire County Council,CSB - ABINGDON,5689,,21/09/2016,3110143056,576.82,Amber Healthcare Personnel Ltd
http://statistics.data.gov.uk/id/local-authority/38,Oxfordshire County Council,CSB - ABINGDON,5689,,21/09/2016,3110143039,587.33,Amber Healthcare Personnel Ltd
http://statistics.data.gov.uk/id/local-authority/38,Oxfordshire County Council,CSB - ABINGDON,5689,,21/09/2016,3110143050,615.39,Amber Healthcare Personnel Ltd
http://statistics.data.gov.uk/id/local-authority/38,Oxfordshire County Council,CSB - ABINGDON,5689,,21/09/2016,3110143055,652.55,Amber Healthcare Personnel Ltd
http://statistics.data.gov.uk/id/local-authority/38,Oxfordshire County Council,CSB - ABINGDON,5689,,21/09/2016,3110143035,666.68,Amber Healthcare Personnel Ltd
http://statistics.data.gov.uk/id/local-authority/38,Oxfordshire County Council,CSB - ABINGDON,5689,,21/09/2016,3110143031,684.87,Amber Healthcare Personnel Ltd
http://statistics.data.gov.uk/id/local-authority/38,Oxfordshire County Council,CSB - ABINGDON,5689,,21/09/2016,3110143041,694.53,Amber Healthcare Personnel Ltd
http://statistics.data.gov.uk/id/local-authority/38,Oxfordshire County Council,CSB - ABINGDON,5689,,21/09/2016,3110143036,697.09,Amber Healthcare Personnel Ltd
http://statistics.data.gov.uk/id/local-authority/38,Oxfordshire County Council,CSB - ABINGDON,5689,,21/09/2016,3110143043,839.45,Amber Healthcare Personnel Ltd
http://statistics.data.gov.uk/id/local-authority/38,Oxfordshire County Council,CSB - ABINGDON,5689,,21/09/2016,3110143034,"1,078.43",Amber Healthcare Personnel Ltd
http://statistics.data.gov.uk/id/local-authority/38,Oxfordshire County Council,CSB - ABINGDON,5689,,21/09/2016,3110143049,"1,127.05",Amber Healthcare Personnel Ltd
http://statistics.data.gov.uk/id/local-authority/38,Oxfordshire County Council,CSB - ABINGDON,5689,,21/09/2016,3110143046,"1,239.75",Amber Healthcare Personnel Ltd
http://statistics.data.gov.uk/id/local-authority/38,Oxfordshire County Council,CSB - ABINGDON,5689,,21/09/2016,3110143054,"1,403.59",Amber Healthcare Personnel Ltd
http://statistics.data.gov.uk/id/local-authority/38,Oxfordshire County Council,PD COMM SUPP AB'DON,5689,,21/09/2016,3110143061,"2,166.16",Amber Healthcare Personnel Ltd
http://statistics.data.gov.uk/id/local-authority/38,Oxfordshire County Council,CSB - ABINGDON,5689,,21/09/2016,3110143051,"2,488.06",Amber Healthcare Personnel Ltd
http://statistics.data.gov.uk/id/local-authority/38,Oxfordshire County Council,CSB - ABINGDON,5689,,21/09/2016,3110143040,"2,587.79",Amber Healthcare Personnel Ltd
http://statistics.data.gov.uk/id/local-authority/38,Oxfordshire County Council,CSB - ABINGDON,5689,,21/09/2016,3110143059,"2,676.40",Amber Healthcare Personnel Ltd
http://statistics.data.gov.uk/id/local-authority/38,Oxfordshire County Council,CMPB WITNEY,5689,,09/09/2016,3110139111,"5,336.00",Amber Healthcare Personnel Ltd
http://statistics.data.gov.uk/id/local-authority/38,Oxfordshire County Council,NURSERY ED FUND,5537,Payments to Other Establishments,01/09/2016,3110135258,"1,404.14",Ambrosden Village Pre-School
http://statistics.data.gov.uk/id/local-authority/38,Oxfordshire County Council,COMM DRAWDOWN FUNDNG,8004,Design Consultant,26/09/2016,2200225962,"1,937.50",AMEC Foster Wheeler Environment &
http://statistics.data.gov.uk/id/local-authority/38,Oxfordshire County Council,COMM DRAWDOWN FUNDNG,8004,Design Consultant,09/09/2016,2200215760,"7,284.79",AMEC Foster Wheeler Environment &
http://statistics.data.gov.uk/id/local-authority/38,Oxfordshire County Council,COMM DRAWDOWN FUNDNG,8004,Design Consultant,28/09/2016,2200227090,"14,040.59",AMEC Foster Wheeler Environment &
http://statistics.data.gov.uk/id/local-authority/38,Oxfordshire County Council,COMM DRAWDOWN FUNDNG,8004,Design Consultant,21/09/2016,2200223844,"16,808.00",AMEC Foster Wheeler Environment &
http://statistics.data.gov.uk/id/local-authority/38,Oxfordshire County Council,COMM DRAWDOWN FUNDNG,8004,Design Consultant,09/09/2016,2200215755,"16,848.15",AMEC Foster Wheeler Environment &
http://statistics.data.gov.uk/id/local-authority/38,Oxfordshire County Council,LD CLIENTS SOUTH,5899,Adult Social Care - Direct Payments,07/09/2016,3110137123,574.04,Redacted Personal Data
http://statistics.data.gov.uk/id/local-authority/38,Oxfordshire County Council,MANAGEMENT & ADMIN,4940,Other Services,20/09/2016,2200222937,"1,100.00",Ameo Professional Services Ltd
http://statistics.data.gov.uk/id/local-authority/38,Oxfordshire County Council,LD CLIENTS SOUTH,5899,Adult Social Care - Direct Payments,07/09/2016,3110137774,"2,171.48",Redacted Personal Data
http://statistics.data.gov.uk/id/local-authority/38,Oxfordshire County Council,RESIDENTIAL TREATMEN,5686,,19/09/2016,2200221365,"1,260.00",ANA
http://statistics.data.gov.uk/id/local-authority/38,Oxfordshire County Council,RESIDENTIAL TREATMEN,5686,,13/09/2016,2200217591,"1,560.00",ANA
http://statistics.data.gov.uk/id/local-authority/38,Oxfordshire County Council,SM DISABILITIES,5899,Adult Social Care - Direct Payments,28/09/2016,3110145101,564.20,Redacted Personal Data
http://statistics.data.gov.uk/id/local-authority/38,Oxfordshire County Council,WOODLANDS CENTRE,4407,Equipment,28/09/2016,2200227422,"-13,739.00",Andrew Davies
http://statistics.data.gov.uk/id/local-authority/38,Oxfordshire County Council,WOODLANDS CENTRE,4407,Equipment,26/09/2016,2200226344,"13,739.00",Andrew Davies
http://statistics.data.gov.uk/id/local-authority/38,Oxfordshire County Council,WOODLANDS CENTRE,4407,Equipment,28/09/2016,2200227423,"15,008.00",Andrew Davies
http://statistics.data.gov.uk/id/local-authority/38,Oxfordshire County Council,PD COMM SUPP DIDCOT,5899,Adult Social Care - Direct Payments,07/09/2016,3110137815,"1,350.48",Redacted Personal Data
http://statistics.data.gov.uk/id/local-authority/38,Oxfordshire County Council,PD COMM SUPP - CITY,5899,Adult Social Care - Direct Payments,07/09/2016,3110137073,"4,000.00",Redacted Personal Data
http://statistics.data.gov.uk/id/local-authority/38,Oxfordshire County Council,TVERC,4494,Purchase of IT Equipment,20/09/2016,2200222406,915.00,Andy Foy Consulting
http://statistics.data.gov.uk/id/local-authority/38,Oxfordshire County Council,PD COMM SUPP BANB,5899,Adult Social Care - Direct Payments,07/09/2016,3110137172,"1,833.60",Redacted Personal Data
http://statistics.data.gov.uk/id/local-authority/38,Oxfordshire County Council,PD COMM SUPP BANB,5899,Adult Social Care - Direct Payments,07/09/2016,3110137803,"1,402.80",Redacted Personal Data
http://statistics.data.gov.uk/id/local-authority/38,Oxfordshire County Council,SM DISABILITIES,5899,Adult Social Care - Direct Payments,28/09/2016,3110145132,846.30,Redacted Personal Data
http://statistics.data.gov.uk/id/local-authority/38,Oxfordshire County Council,FOSTERING MAIN,5548,B*Fostering - Special Rates & Plus Amou,07/09/2016,3110138750,680.74,Redacted Personal Data
http://statistics.data.gov.uk/id/local-authority/38,Oxfordshire County Council,FOSTERING MAIN,5548,B*Fostering - Special Rates & Plus Amou,14/09/2016,3110140037,680.74,Redacted Personal Data
http://statistics.data.gov.uk/id/local-authority/38,Oxfordshire County Council,FOSTERING MAIN,5548,B*Fostering - Special Rates & Plus Amou,28/09/2016,3110145892,680.74,Redacted Personal Data
http://statistics.data.gov.uk/id/local-authority/38,Oxfordshire County Council,FOSTERING MAIN,5548,B*Fostering - Special Rates & Plus Amou,21/09/2016,3110142565,831.23,Redacted Personal Data
http://statistics.data.gov.uk/id/local-authority/38,Oxfordshire County Council,2 YEAR OLD FUNDING,5537,Payments to Other Establishments,13/09/2016,3110140446,648.90,Anita Adams
http://statistics.data.gov.uk/id/local-authority/38,Oxfordshire County Council,NURSERY ED FUND,5537,Payments to Other Establishments,01/09/2016,3110135836,"2,005.92",Anita Joines
http://statistics.data.gov.uk/id/local-authority/38,Oxfordshire County Council,PD COMM SUPP BANB,5899,Adult Social Care - Direct Payments,07/09/2016,3110137228,647.48,Redacted Personal Data
http://statistics.data.gov.uk/id/local-authority/38,Oxfordshire County Council,2 YEAR OLD FUNDING,5537,Payments to Other Establishments,13/09/2016,3110140447,"1,297.80",Annabelles Nursery
http://statistics.data.gov.uk/id/local-authority/38,Oxfordshire County Council,NURSERY ED FUND,5537,Payments to Other Establishments,01/09/2016,3110135262,"19,538.62",Annabelles Nursery
http://statistics.data.gov.uk/id/local-authority/38,Oxfordshire County Council,NURSERY ED FUND,5537,Payments to Other Establishments,01/09/2016,3110135267,"6,177.76",Annabelles Pre-school (Longcot)
http://statistics.data.gov.uk/id/local-authority/38,Oxfordshire County Council,CSB - BANBURY,5899,Adult Social Care - Direct Payments,07/09/2016,3110137512,"5,382.64",Redacted Personal Data
http://statistics.data.gov.uk/id/local-authority/38,Oxfordshire County Council,COUNTY HALL,4705,Printing,27/09/2016,2200226688,666.00,ANNODATA BUSINESS COMMUNICATIONS
http://statistics.data.gov.uk/id/local-authority/38,Oxfordshire County Council,CENTRAL PRINTING,5666,Hire of Admin Equipment,20/09/2016,2200222481,"42,439.87",ANNODATA BUSINESS COMMUNICATIONS
http://statistics.data.gov.uk/id/local-authority/38,Oxfordshire County Council,COUNTY PRINT FINSHRS,4531,Materials,29/09/2016,2200228348,780.00,Antalis Ltd
http://statistics.data.gov.uk/id/local-authority/38,Oxfordshire County Council,PD COMM SUPP AB'DON,5899,Adult Social Care - Direct Payments,07/09/2016,3110137453,"1,367.12",Redacted Personal Data
http://statistics.data.gov.uk/id/local-authority/38,Oxfordshire County Council,LD CLIENTS SOUTH,5899,Adult Social Care - Direct Payments,07/09/2016,3110137241,"3,337.60",Redacted Personal Data
http://statistics.data.gov.uk/id/local-authority/38,Oxfordshire County Council,CSB - BANBURY,5899,Adult Social Care - Direct Payments,07/09/2016,3110137652,"5,412.00",Redacted Personal Data
http://statistics.data.gov.uk/id/local-authority/38,Oxfordshire County Council,LD CLIENTS SOUTH,5899,Adult Social Care - Direct Payments,07/09/2016,3110137712,768.00,Redacted Personal Data
http://statistics.data.gov.uk/id/local-authority/38,Oxfordshire County Council,MH COMMUNITY SUP'T,5691,,01/09/2016,3110135217,"1,309.96",Redacted Personal Data
http://statistics.data.gov.uk/id/local-authority/38,Oxfordshire County Council,MH COMMUNITY SUP'T,5691,,28/09/2016,3110145982,"2,029.88",Redacted Personal Data
http://statistics.data.gov.uk/id/local-authority/38,Oxfordshire County Council,S38 INSPECT & OTHER,3103,Other Training Courses and Qualification,29/09/2016,2200228125,"1,370.00",Apple Construction Training Ltd
http://statistics.data.gov.uk/id/local-authority/38,Oxfordshire County Council,NURSERY ED FUND,5537,Payments to Other Establishments,01/09/2016,3110135273,"6,535.96",Appleton Village Pre-School
http://statistics.data.gov.uk/id/local-authority/38,Oxfordshire County Council,GRASS CUTTING DIST.,5526,Payments to Private Contractors,15/09/2016,2200219827,572.91,Ardington and Lockinge Parish Counc
http://statistics.data.gov.uk/id/local-authority/38,Oxfordshire County Council,ContrO ASC Payments Control Account,5899,Adult Social Care - Direct Payments,28/09/2016,3110145244,"5,063.89",Redacted Personal Data
http://statistics.data.gov.uk/id/local-authority/38,Oxfordshire County Council,AIM HIGHER FUNDING,5195,Grant Aid and Donations,16/09/2016,2200220239,"2,850.00",Ark-T Centre
http://statistics.data.gov.uk/id/local-authority/38,Oxfordshire County Council,TM MISCELLANEOUS,5668,Technical and Professional Consultant F,13/09/2016,2200217388,"6,250.00",ARLINGCLOSE LTD
http://statistics.data.gov.uk/id/local-authority/38,Oxfordshire County Council,MAINSTREAM-SECONDARY,4322,"Season Tickets - Bus, Rail & Ferry",22/09/2016,3110144294,"1,218.00",ARRIVA THE SHIRES LIMITED
http://statistics.data.gov.uk/id/local-authority/38,Oxfordshire County Council,CONCESSIONARY FARES,5781,Payments to Transport Operators,16/09/2016,2200220792,"28,826.81",Arriva The Shires Ltd
http://statistics.data.gov.uk/id/local-authority/38,Oxfordshire County Council,SM DISABILITIES,5899,Adult Social Care - Direct Payments,28/09/2016,3110145107,846.30,Redacted Personal Data
http://statistics.data.gov.uk/id/local-authority/38,Oxfordshire County Council,NURSERY ED FUND,5537,Payments to Other Establishments,01/09/2016,3110135278,"10,263.62",Ascott-under-Wychwood Pre-School
http://statistics.data.gov.uk/id/local-authority/38,Oxfordshire County Council,FAMILY SUPPORT N'TH2,5227,Other Transport Arrangements,01/09/2016,3110136006,800.00,Ash Cars (UK) Ltd
http://statistics.data.gov.uk/id/local-authority/38,Oxfordshire County Council,FAMILY SUPPORT N'TH2,5227,Other Transport Arrangements,01/09/2016,3110136005,940.00,Ash Cars (UK) Ltd
http://statistics.data.gov.uk/id/local-authority/38,Oxfordshire County Council,MH COMMUNITY SUP'T,5691,,01/09/2016,3110135223,"1,860.00",Ashamber Homes Limited
http://statistics.data.gov.uk/id/local-authority/38,Oxfordshire County Council,CSB - CITY,5688,,13/09/2016,3110139803,"5,565.00",Ashamber Homes Limited
http://statistics.data.gov.uk/id/local-authority/38,Oxfordshire County Council,CARE HOME SPOT CITY,5686,,13/09/2016,3110139608,"11,778.56",Ashamber Homes Limited
http://statistics.data.gov.uk/id/local-authority/38,Oxfordshire County Council,OUT OF COUNTY,5537,Payments to Other Establishments,28/09/2016,3110145239,"6,383.33",Redacted Personal Data
http://statistics.data.gov.uk/id/local-authority/38,Oxfordshire County Council,NURSERY ED FUND,5537,Payments to Other Establishments,01/09/2016,3110135284,"1,738.46",Ashbury Pre-School (PFSU)
http://statistics.data.gov.uk/id/local-authority/38,Oxfordshire County Council,LD CLIENTS NORTH,5686,,13/09/2016,3110139629,"6,173.36",Ashgrange House
http://statistics.data.gov.uk/id/local-authority/38,Oxfordshire County Council,LD CLIENTS SOUTH,5899,Adult Social Care - Direct Payments,07/09/2016,3110137109,"3,339.32",Redacted Personal Data
http://statistics.data.gov.uk/id/local-authority/38,Oxfordshire County Council,LIBRARY COLLECTIONS,4539,"Books, DVDs and CDs",09/09/2016,3110139225,513.21,ASKEWS & HOLTS LIBRARY SERVICES LTD
http://statistics.data.gov.uk/id/local-authority/38,Oxfordshire County Council,LIBRARY COLLECTIONS,4539,"Books, DVDs and CDs",29/09/2016,3110146094,517.79,ASKEWS & HOLTS LIBRARY SERVICES LTD
http://statistics.data.gov.uk/id/local-authority/38,Oxfordshire County Council,LIBRARY COLLECTIONS,4539,"Books, DVDs and CDs",01/09/2016,3110136089,561.41,ASKEWS & HOLTS LIBRARY SERVICES LTD
http://statistics.data.gov.uk/id/local-authority/38,Oxfordshire County Council,LIBRARY COLLECTIONS,4539,"Books, DVDs and CDs",05/09/2016,3110136182,569.15,ASKEWS & HOLTS LIBRARY SERVICES LTD
http://statistics.data.gov.uk/id/local-authority/38,Oxfordshire County Council,LIBRARY COLLECTIONS,4539,"Books, DVDs and CDs",23/09/2016,3110141849,570.53,ASKEWS & HOLTS LIBRARY SERVICES LTD
http://statistics.data.gov.uk/id/local-authority/38,Oxfordshire County Council,LIBRARY COLLECTIONS,4539,"Books, DVDs and CDs",23/09/2016,3110141850,619.58,ASKEWS & HOLTS LIBRARY SERVICES LTD
http://statistics.data.gov.uk/id/local-authority/38,Oxfordshire County Council,LIBRARY COLLECTIONS,4539,"Books, DVDs and CDs",23/09/2016,3110141875,625.57,ASKEWS & HOLTS LIBRARY SERVICES LTD
http://statistics.data.gov.uk/id/local-authority/38,Oxfordshire County Council,LIBRARY COLLECTIONS,4539,"Books, DVDs and CDs",01/09/2016,3110136095,641.97,ASKEWS & HOLTS LIBRARY SERVICES LTD
http://statistics.data.gov.uk/id/local-authority/38,Oxfordshire County Council,LIBRARY COLLECTIONS,4539,"Books, DVDs and CDs",23/09/2016,3110141860,652.61,ASKEWS & HOLTS LIBRARY SERVICES LTD
http://statistics.data.gov.uk/id/local-authority/38,Oxfordshire County Council,LIBRARY COLLECTIONS,4539,"Books, DVDs and CDs",09/09/2016,3110139224,663.34,ASKEWS & HOLTS LIBRARY SERVICES LTD
http://statistics.data.gov.uk/id/local-authority/38,Oxfordshire County Council,LIBRARY COLLECTIONS,4539,"Books, DVDs and CDs",09/09/2016,3110139188,666.97,ASKEWS & HOLTS LIBRARY SERVICES LTD
http://statistics.data.gov.uk/id/local-authority/38,Oxfordshire County Council,LIBRARY COLLECTIONS,4539,"Books, DVDs and CDs",05/09/2016,3110136187,702.90,ASKEWS & HOLTS LIBRARY SERVICES LTD
http://statistics.data.gov.uk/id/local-authority/38,Oxfordshire County Council,LIBRARY COLLECTIONS,4539,"Books, DVDs and CDs",01/09/2016,3110136107,806.53,ASKEWS & HOLTS LIBRARY SERVICES LTD
http://statistics.data.gov.uk/id/local-authority/38,Oxfordshire County Council,BULLINGDON PRISON,4539,"Books, DVDs and CDs",08/09/2016,2200214914,835.51,ASKEWS & HOLTS LIBRARY SERVICES LTD
http://statistics.data.gov.uk/id/local-authority/38,Oxfordshire County Council,LIBRARY COLLECTIONS,4539,"Books, DVDs and CDs",05/09/2016,3110136211,871.02,ASKEWS & HOLTS LIBRARY SERVICES LTD
http://statistics.data.gov.uk/id/local-authority/38,Oxfordshire County Council,LIBRARY COLLECTIONS,4539,"Books, DVDs and CDs",23/09/2016,3110141841,874.39,ASKEWS & HOLTS LIBRARY SERVICES LTD
http://statistics.data.gov.uk/id/local-authority/38,Oxfordshire County Council,LIBRARY COLLECTIONS,4539,"Books, DVDs and CDs",29/09/2016,3110146128,888.45,ASKEWS & HOLTS LIBRARY SERVICES LTD
http://statistics.data.gov.uk/id/local-authority/38,Oxfordshire County Council,LIBRARY COLLECTIONS,4539,"Books, DVDs and CDs",29/09/2016,3110146103,893.96,ASKEWS & HOLTS LIBRARY SERVICES LTD
http://statistics.data.gov.uk/id/local-authority/38,Oxfordshire County Council,LIBRARY COLLECTIONS,4539,"Books, DVDs and CDs",05/09/2016,3110136205,957.02,ASKEWS & HOLTS LIBRARY SERVICES LTD
http://statistics.data.gov.uk/id/local-authority/38,Oxfordshire County Council,LIBRARY COLLECTIONS,4539,"Books, DVDs and CDs",09/09/2016,3110139226,"1,031.27",ASKEWS & HOLTS LIBRARY SERVICES LTD
http://statistics.data.gov.uk/id/local-authority/38,Oxfordshire County Council,LIBRARY COLLECTIONS,4539,"Books, DVDs and CDs",01/09/2016,3110136127,"1,055.45",ASKEWS & HOLTS LIBRARY SERVICES LTD
http://statistics.data.gov.uk/id/local-authority/38,Oxfordshire County Council,LIBRARY COLLECTIONS,4539,"Books, DVDs and CDs",23/09/2016,3110141858,"1,117.21",ASKEWS & HOLTS LIBRARY SERVICES LTD
http://statistics.data.gov.uk/id/local-authority/38,Oxfordshire County Council,LIBRARY COLLECTIONS,4539,"Books, DVDs and CDs",05/09/2016,3110136173,"1,184.19",ASKEWS & HOLTS LIBRARY SERVICES LTD
http://statistics.data.gov.uk/id/local-authority/38,Oxfordshire County Council,LIBRARY COLLECTIONS,4539,"Books, DVDs and CDs",23/09/2016,3110141865,"1,198.98",ASKEWS & HOLTS LIBRARY SERVICES LTD
http://statistics.data.gov.uk/id/local-authority/38,Oxfordshire County Council,LIBRARY COLLECTIONS,4539,"Books, DVDs and CDs",01/09/2016,3110136081,"1,204.78",ASKEWS & HOLTS LIBRARY SERVICES LTD
http://statistics.data.gov.uk/id/local-authority/38,Oxfordshire County Council,BULLINGDON PRISON,4539,"Books, DVDs and CDs",01/09/2016,2200211399,"1,222.31",ASKEWS & HOLTS LIBRARY SERVICES LTD
http://statistics.data.gov.uk/id/local-authority/38,Oxfordshire County Council,LIBRARY COLLECTIONS,4539,"Books, DVDs and CDs",01/09/2016,3110136099,"1,349.72",ASKEWS & HOLTS LIBRARY SERVICES LTD
http://statistics.data.gov.uk/id/local-authority/38,Oxfordshire County Council,LIBRARY COLLECTIONS,4539,"Books, DVDs and CDs",05/09/2016,3110136210,"1,444.51",ASKEWS & HOLTS LIBRARY SERVICES LTD
http://statistics.data.gov.uk/id/local-authority/38,Oxfordshire County Council,LIBRARY COLLECTIONS,4539,"Books, DVDs and CDs",01/09/2016,3110136141,"1,473.19",ASKEWS & HOLTS LIBRARY SERVICES LTD
http://statistics.data.gov.uk/id/local-authority/38,Oxfordshire County Council,LIBRARY COLLECTIONS,4539,"Books, DVDs and CDs",29/09/2016,3110146100,"1,574.30",ASKEWS & HOLTS LIBRARY SERVICES LTD
http://statistics.data.gov.uk/id/local-authority/38,Oxfordshire County Council,LIBRARY COLLECTIONS,4539,"Books, DVDs and CDs",29/09/2016,3110146096,"1,596.16",ASKEWS & HOLTS LIBRARY SERVICES LTD
http://statistics.data.gov.uk/id/local-authority/38,Oxfordshire County Council,LIBRARY COLLECTIONS,4539,"Books, DVDs and CDs",05/09/2016,3110136213,"1,657.17",ASKEWS & HOLTS LIBRARY SERVICES LTD
http://statistics.data.gov.uk/id/local-authority/38,Oxfordshire County Council,LD CLIENTS CITY,5688,,13/09/2016,3110139809,"5,142.86",Aspirations
http://statistics.data.gov.uk/id/local-authority/38,Oxfordshire County Council,LD CLIENTS NORTH,5688,,13/09/2016,3110139815,"4,449.60",Aspirations (North West Adults)
http://statistics.data.gov.uk/id/local-authority/38,Oxfordshire County Council,THE ROUNDABOUT CNTRE,3821,Grounds Maintenance Contracts,01/09/2016,2200212237,580.00,Aspire Oxfordshire
http://statistics.data.gov.uk/id/local-authority/38,Oxfordshire County Council,SURPLUS PROPERTY,4122,Other premises related costs,26/09/2016,2200225741,892.65,Aspire Oxfordshire
http://statistics.data.gov.uk/id/local-authority/38,Oxfordshire County Council,HILL END,4070,Cleaning services,16/09/2016,2200220302,"1,000.00",Aspire Oxfordshire
http://statistics.data.gov.uk/id/local-authority/38,Oxfordshire County Council,HILL END,4070,Cleaning services,16/09/2016,2200220311,"1,000.00",Aspire Oxfordshire
http://statistics.data.gov.uk/id/local-authority/38,Oxfordshire County Council,PUBLIC HEALTH GENERA,5190,Subscriptions,09/09/2016,2200215447,"3,050.00",Association of Directors of PH UK
http://statistics.data.gov.uk/id/local-authority/38,Oxfordshire County Council,NURSERY ED FUND,5537,Payments to Other Establishments,01/09/2016,3110135293,"7,923.38",Aston and Cote Pre-School Playgroup
http://statistics.data.gov.uk/id/local-authority/38,Oxfordshire County Council,CHERWELL & WEST,4940,Other Services,19/09/2016,2200220941,"1,200.00",ATKINS LIMITED
http://statistics.data.gov.uk/id/local-authority/38,Oxfordshire County Council,CHERWELL & WEST,4940,Other Services,15/09/2016,2200219514,"2,800.00",ATKINS LIMITED
http://statistics.data.gov.uk/id/local-authority/38,Oxfordshire County Council,SCIENCE VALE,4940,Other Services,15/09/2016,2200219515,"2,800.00",ATKINS LIMITED
http://statistics.data.gov.uk/id/local-authority/38,Oxfordshire County Council,ITS PROJECTS,4861,Hired and Contracted Services,02/09/2016,2200211580,"18,000.00",ATKINS LIMITED
http://statistics.data.gov.uk/id/local-authority/38,Oxfordshire County Council,HARD FM,3787,Premises Repairs,13/09/2016,2200218177,708.00,AUDIENCE SYSTEMS LTD
http://statistics.data.gov.uk/id/local-authority/38,Oxfordshire County Council,CSB - ABINGDON,5899,Adult Social Care - Direct Payments,07/09/2016,3110137892,586.48,Redacted Personal Data
http://statistics.data.gov.uk/id/local-authority/38,Oxfordshire County Council,LD CLIENTS SOUTH,5686,,02/09/2016,3110135993,"-65,516.94",Autism Care (Bedford) Ltd
http://statistics.data.gov.uk/id/local-authority/38,Oxfordshire County Council,LD CLIENTS NORTH,5686,,13/09/2016,3110139651,"34,285.67",Autism Care (Bedford) Ltd
http://statistics.data.gov.uk/id/local-authority/38,Oxfordshire County Council,LD CLIENTS NORTH,5688,,13/09/2016,3110139817,"8,755.71",AUTISM CARE (UK) LTD
http://statistics.data.gov.uk/id/local-authority/38,Oxfordshire County Council,MH COMMUNITY SUP'T,5691,,06/09/2016,3110136875,675.00,Autism Oxford
http://statistics.data.gov.uk/id/local-authority/38,Oxfordshire County Council,OUT OF COUNTY,5537,Payments to Other Establishments,29/09/2016,2200228288,"9,587.49",AUTISM WESSEX
http://statistics.data.gov.uk/id/local-authority/38,Oxfordshire County Council,OUT OF COUNTY,5537,Payments to Other Establishments,29/09/2016,2200228114,"31,120.02",AUTISM WESSEX
http://statistics.data.gov.uk/id/local-authority/38,Oxfordshire County Council,CSB - CITY,5899,Adult Social Care - Direct Payments,07/09/2016,3110137422,"2,544.88",Redacted Personal Data
http://statistics.data.gov.uk/id/local-authority/38,Oxfordshire County Council,LD CLIENTS CITY,5687,,13/09/2016,3110139682,"5,824.29",Avondale Care Home
http://statistics.data.gov.uk/id/local-authority/38,Oxfordshire County Council,CSB - BANBURY,5689,,21/09/2016,3110143706,511.68,AVR (Oxon) Ltd
http://statistics.data.gov.uk/id/local-authority/38,Oxfordshire County Council,CSB - BANBURY,5689,,21/09/2016,3110143710,716.25,AVR (Oxon) Ltd
http://statistics.data.gov.uk/id/local-authority/38,Oxfordshire County Council,CSB - BANBURY,5689,,21/09/2016,3110143713,761.17,AVR (Oxon) Ltd
http://statistics.data.gov.uk/id/local-authority/38,Oxfordshire County Council,CSB - BANBURY,5689,,21/09/2016,3110143707,801.10,AVR (Oxon) Ltd
http://statistics.data.gov.uk/id/local-authority/38,Oxfordshire County Council,CSB - BANBURY,5689,,21/09/2016,3110143711,838.05,AVR (Oxon) Ltd
http://statistics.data.gov.uk/id/local-authority/38,Oxfordshire County Council,CSB - BANBURY,5689,,21/09/2016,3110143709,864.90,AVR (Oxon) Ltd
http://statistics.data.gov.uk/id/local-authority/38,Oxfordshire County Council,CSB - BANBURY,5689,,21/09/2016,3110143705,939.03,AVR (Oxon) Ltd
http://statistics.data.gov.uk/id/local-authority/38,Oxfordshire County Council,CSB - BANBURY,5689,,21/09/2016,3110143716,954.42,AVR (Oxon) Ltd
http://statistics.data.gov.uk/id/local-authority/38,Oxfordshire County Council,CSB - BANBURY,5689,,21/09/2016,3110143714,"1,217.06",AVR (Oxon) Ltd
http://statistics.data.gov.uk/id/local-authority/38,Oxfordshire County Council,CSB - BANBURY,5689,,21/09/2016,3110143720,"1,256.09",AVR (Oxon) Ltd
http://statistics.data.gov.uk/id/local-authority/38,Oxfordshire County Council,PD COMM SUPP BANB,5689,,21/09/2016,3110143721,"1,715.48",AVR (Oxon) Ltd
http://statistics.data.gov.uk/id/local-authority/38,Oxfordshire County Council,CSB - BANBURY,5689,,21/09/2016,3110143708,"1,869.73",AVR (Oxon) Ltd
http://statistics.data.gov.uk/id/local-authority/38,Oxfordshire County Council,CSB - BANBURY,5689,,21/09/2016,3110143717,"2,302.64",AVR (Oxon) Ltd
http://statistics.data.gov.uk/id/local-authority/38,Oxfordshire County Council,MOTOR FLEET,3051,,16/09/2016,3110142058,648.94,AWP Body Repairs
http://statistics.data.gov.uk/id/local-authority/38,Oxfordshire County Council,MOTOR FLEET,3051,,06/09/2016,3110136856,898.44,AWP Body Repairs
http://statistics.data.gov.uk/id/local-authority/38,Oxfordshire County Council,RFID PROJECT,4495,IT Software,27/09/2016,2200226900,"23,145.60",AXIELL LTD
http://statistics.data.gov.uk/id/local-authority/38,Oxfordshire County Council,Lib ICT Supprt&Maint,5039,ITC Services,22/09/2016,2200224041,"36,638.30",AXIELL LTD
http://statistics.data.gov.uk/id/local-authority/38,Oxfordshire County Council,LD CLIENTS NORTH,5899,Adult Social Care - Direct Payments,07/09/2016,3110137728,"2,600.00",Redacted Personal Data
http://statistics.data.gov.uk/id/local-authority/38,Oxfordshire County Council,PDPB CONTCARE H SUPP,5691,,23/09/2016,3110145953,508.00,B CARERS LTD
http://statistics.data.gov.uk/id/local-authority/38,Oxfordshire County Council,OPPB CONTCARE H SUPP,5691,,12/09/2016,3110139382,511.65,B CARERS LTD
http://statistics.data.gov.uk/id/local-authority/38,Oxfordshire County Council,OPPB CONTCARE H SUPP,5691,,23/09/2016,3110145924,511.65,B CARERS LTD
http://statistics.data.gov.uk/id/local-authority/38,Oxfordshire County Council,OPPB CONTCARE H SUPP,5691,,23/09/2016,3110145925,511.65,B CARERS LTD
http://statistics.data.gov.uk/id/local-authority/38,Oxfordshire County Council,OPPB CONTCARE H SUPP,5691,,23/09/2016,3110145955,511.65,B CARERS LTD
http://statistics.data.gov.uk/id/local-authority/38,Oxfordshire County Council,OPPB CONTCARE H SUPP,5691,,23/09/2016,3110145956,511.65,B CARERS LTD
http://statistics.data.gov.uk/id/local-authority/38,Oxfordshire County Council,OPPB CONTCARE H SUPP,5691,,23/09/2016,3110145954,549.55,B CARERS LTD
http://statistics.data.gov.uk/id/local-authority/38,Oxfordshire County Council,MH SPOT FUNDING,5686,,13/09/2016,3110139751,"5,142.86",B O'CONNOR T/A DUNRAVEN
http://statistics.data.gov.uk/id/local-authority/38,Oxfordshire County Council,Mockingbird,5549,B*Fostering Allowance - Regulation 38,14/09/2016,3110139926,541.86,Redacted Personal Data
http://statistics.data.gov.uk/id/local-authority/38,Oxfordshire County Council,Mockingbird,5549,B*Fostering Allowance - Regulation 38,28/09/2016,3110145770,844.43,Redacted Personal Data
http://statistics.data.gov.uk/id/local-authority/38,Oxfordshire County Council,Mockingbird,5549,B*Fostering Allowance - Regulation 38,21/09/2016,3110142448,"1,113.38",Redacted Personal Data
http://statistics.data.gov.uk/id/local-authority/38,Oxfordshire County Council,PD RES PURC - VALE,5686,,13/09/2016,3110139636,"89,421.29",Badby Park Ltd
http://statistics.data.gov.uk/id/local-authority/38,Oxfordshire County Council,2 YEAR OLD FUNDING,5537,Payments to Other Establishments,13/09/2016,3110140448,"1,427.58",Badgemore Pre-School (PFSU)
http://statistics.data.gov.uk/id/local-authority/38,Oxfordshire County Council,NURSERY ED FUND,5537,Payments to Other Establishments,01/09/2016,3110135299,"5,750.30",Badgemore Pre-School (PFSU)
http://statistics.data.gov.uk/id/local-authority/38,Oxfordshire County Council,NURSERY ED FUND,5537,Payments to Other Establishments,01/09/2016,3110135307,"3,008.88",Balliol Day Nursery
http://statistics.data.gov.uk/id/local-authority/38,Oxfordshire County Council,PROCUREMENT,4685,Clothing and Uniforms,13/09/2016,2200217895,"24,099.50",Ballyclare LHD Ltd
http://statistics.data.gov.uk/id/local-authority/38,Oxfordshire County Council,HN EARLY YEARS,5537,Payments to Other Establishments,06/09/2016,3110136329,"2,000.00",Bampton CofE School
http://statistics.data.gov.uk/id/local-authority/38,Oxfordshire County Council,NURSERY ED FUND,5537,Payments to Other Establishments,01/09/2016,3110135314,"8,578.46",Bampton CofE School
http://statistics.data.gov.uk/id/local-authority/38,Oxfordshire County Council,CORPORATE LANDLORD,3945,Rent,26/09/2016,3500021853,"1,500.00",Bampton Exhibition Foundation
http://statistics.data.gov.uk/id/local-authority/38,Oxfordshire County Council,BANBURY HUB,4940,Other Services,20/09/2016,2200222465,"1,166.00",Banbury & District Comm Bus Project
http://statistics.data.gov.uk/id/local-authority/38,Oxfordshire County Council,RURAL CHILDRN CENTRE,5520,Payments to Voluntary bodies,26/09/2016,2200226243,"13,707.25",Banbury & District Comm Bus Project
http://statistics.data.gov.uk/id/local-authority/38,Oxfordshire County Council,VOLUNTEERING PROJECT,5394,Other Expenses,15/09/2016,3110141781,"14,025.95",Banbury Heights Nursing Home
http://statistics.data.gov.uk/id/local-authority/38,Oxfordshire County Council,OPPB CONTCARE RNCC,5687,,13/09/2016,3110139586,"97,835.61",Banbury Heights Nursing Home
http://statistics.data.gov.uk/id/local-authority/38,Oxfordshire County Council,2 YEAR OLD FUNDING,5537,Payments to Other Establishments,13/09/2016,3110140449,"4,542.30",Banbury School Day Nurse
http://statistics.data.gov.uk/id/local-authority/38,Oxfordshire County Council,NURSERY ED FUND,5537,Payments to Other Establishments,01/09/2016,3110135323,"12,537.00",Banbury School Day Nurse
http://statistics.data.gov.uk/id/local-authority/38,Oxfordshire County Council,HN IN SEC SCHOOLS,5537,Payments to Other Establishments,21/09/2016,3110144207,"3,827.00",Banbury Schools AAT
http://statistics.data.gov.uk/id/local-authority/38,Oxfordshire County Council,LD CLIENTS NORTH,5688,,13/09/2016,3110139790,"5,411.36",BANYA FAMILY PLACEMENT
http://statistics.data.gov.uk/id/local-authority/38,Oxfordshire County Council,CSB - BANBURY,5899,Adult Social Care - Direct Payments,07/09/2016,3110137174,"1,360.00",Redacted Personal Data
http://statistics.data.gov.uk/id/local-authority/38,Oxfordshire County Council,CSB - BANBURY,5899,Adult Social Care - Direct Payments,07/09/2016,3110137347,"1,432.12",Redacted Personal Data
http://statistics.data.gov.uk/id/local-authority/38,Oxfordshire County Council,CSB - BANBURY,5899,Adult Social Care - Direct Payments,07/09/2016,3110137407,"3,148.00",Redacted Personal Data
http://statistics.data.gov.uk/id/local-authority/38,Oxfordshire County Council,CARE HOME SPOT WEST,5686,,13/09/2016,3110139481,"194,115.64",Barchester Healthcare Homes Ltd
http://statistics.data.gov.uk/id/local-authority/38,Oxfordshire County Council,GRASS CUTTING DIST.,5526,Payments to Private Contractors,06/09/2016,3110136858,709.00,Barford St Michael and St John
http://statistics.data.gov.uk/id/local-authority/38,Oxfordshire County Council,LD CLIENTS NORTH,5899,Adult Social Care - Direct Payments,07/09/2016,3110137427,"2,261.00",Redacted Personal Data
http://statistics.data.gov.uk/id/local-authority/38,Oxfordshire County Council,SM DISABILITIES,5899,Adult Social Care - Direct Payments,28/09/2016,3110145268,"1,181.10",Redacted Personal Data
http://statistics.data.gov.uk/id/local-authority/38,Oxfordshire County Council,Mainstream Res,4859,Medical and Counselling Fees,19/09/2016,2200221158,"3,600.00",BARNARDO SERVICES LTD
http://statistics.data.gov.uk/id/local-authority/38,Oxfordshire County Council,AIM HIGHER FUNDING,4861,Hired and Contracted Services,05/09/2016,3500021437,"123,664.50",Barnardo's
http://statistics.data.gov.uk/id/local-authority/38,Oxfordshire County Council,AIM HIGHER FUNDING,5195,Grant Aid and Donations,15/09/2016,2200219747,"4,467.00",Barnardo's Community Short Breaks
http://statistics.data.gov.uk/id/local-authority/38,Oxfordshire County Council,NCS,5227,Other Transport Arrangements,01/09/2016,3110136010,542.50,Barnes Coaches Ltd
http://statistics.data.gov.uk/id/local-authority/38,Oxfordshire County Council,LD CLIENTS NORTH,5899,Adult Social Care - Direct Payments,07/09/2016,3110137202,840.68,Redacted Personal Data
http://statistics.data.gov.uk/id/local-authority/38,Oxfordshire County Council,GP + PHARMACY SERVS,4934,,19/09/2016,3110145589,700.00,Barton Pharmacy
http://statistics.data.gov.uk/id/local-authority/38,Oxfordshire County Council,STI TESTING+TREATMEN,4940,Other Services,01/09/2016,3110135971,"1,025.01",Barts Health NHS Trust
http://statistics.data.gov.uk/id/local-authority/38,Oxfordshire County Council,PRIM. STAT ASSESS.,5380,"Author, Speaker and Lecturer Fees",12/09/2016,2200217140,900.00,Basildon CE Primary School
http://statistics.data.gov.uk/id/local-authority/38,Oxfordshire County Council,CORPORATE LANDLORD,8102,Payments to main contractor,08/09/2016,2200214817,"5,249.00",Bates Office
http://statistics.data.gov.uk/id/local-authority/38,Oxfordshire County Council,CARE HOME SPOT CITY,5687,,13/09/2016,3110139745,"4,907.54",Bay View Res & Nursing
http://statistics.data.gov.uk/id/local-authority/38,Oxfordshire County Council,MINERALS & WASTE,4861,Hired and Contracted Services,26/09/2016,2200226264,"4,000.00",BBP CONSULTING
http://statistics.data.gov.uk/id/local-authority/38,Oxfordshire County Council,OPPB FAST TRACK,5687,,13/09/2016,3110139570,"22,525.41",Beacher Hall Nursing Centre
http://statistics.data.gov.uk/id/local-authority/38,Oxfordshire County Council,AIM HIGHER FUNDING,5195,Grant Aid and Donations,26/09/2016,2200225620,662.40,Beanstalk Nursery and Day Care
http://statistics.data.gov.uk/id/local-authority/38,Oxfordshire County Council,NURSERY ED FUND,5537,Payments to Other Establishments,01/09/2016,3110135337,"3,109.18",Beanstalk Nursery and Day Care
http://statistics.data.gov.uk/id/local-authority/38,Oxfordshire County Council,LD CLIENTS NORTH,5691,,14/09/2016,2200218564,504.00,BECKY & HAYLEY SUPPORT SERVICES LTD
http://statistics.data.gov.uk/id/local-authority/38,Oxfordshire County Council,OPPB CONTCARE RNCC,5687,,13/09/2016,3110139497,"18,541.78",Beech Court Nursing Home
http://statistics.data.gov.uk/id/local-authority/38,Oxfordshire County Council,CARE HOME SPOT VALE,5686,,13/09/2016,3110139572,"47,380.62",Beech Haven Care Home
http://statistics.data.gov.uk/id/local-authority/38,Oxfordshire County Council,INSTRU PURCHASE SCHM,4407,Equipment,15/09/2016,2200219370,"6,483.00",Beecher Acoustics Ltd
http://statistics.data.gov.uk/id/local-authority/38,Oxfordshire County Council,2 YEAR OLD FUNDING,5537,Payments to Other Establishments,13/09/2016,3110140450,"1,297.80",Begbroke Playgroup
http://statistics.data.gov.uk/id/local-authority/38,Oxfordshire County Council,NURSERY ED FUND,5537,Payments to Other Establishments,01/09/2016,3110135342,"6,619.54",Begbroke Playgroup
http://statistics.data.gov.uk/id/local-authority/38,Oxfordshire County Council,SM DISABILITIES,5899,Adult Social Care - Direct Payments,28/09/2016,3110145105,742.45,Redacted Personal Data
http://statistics.data.gov.uk/id/local-authority/38,Oxfordshire County Council,LD CLIENTS NORTH,5899,Adult Social Care - Direct Payments,07/09/2016,3110137781,756.00,Redacted Personal Data
http://statistics.data.gov.uk/id/local-authority/38,Oxfordshire County Council,SM DISABILITIES,5899,Adult Social Care - Direct Payments,28/09/2016,3110145213,564.20,Redacted Personal Data
http://statistics.data.gov.uk/id/local-authority/38,Oxfordshire County Council,COMM DRAWDOWN FUNDNG,8102,Payments to main contractor,08/09/2016,2200214385,"12,000.00",Bennington Green Ltd
http://statistics.data.gov.uk/id/local-authority/38,Oxfordshire County Council,2 YEAR OLD FUNDING,5537,Payments to Other Establishments,13/09/2016,3110140451,"5,450.76",Berinsfield Early Years Pre-School
http://statistics.data.gov.uk/id/local-authority/38,Oxfordshire County Council,NURSERY ED FUND,5537,Payments to Other Establishments,01/09/2016,3110135349,"7,522.20",Berinsfield Early Years Pre-School
http://statistics.data.gov.uk/id/local-authority/38,Oxfordshire County Council,NURSERY ED FUND,5537,Payments to Other Establishments,16/09/2016,3110141885,"7,522.20",Berinsfield Early Years Pre-School
http://statistics.data.gov.uk/id/local-authority/38,Oxfordshire County Council,LD CLIENTS SOUTH,5227,Other Transport Arrangements,12/09/2016,3110139273,840.00,Berkeley Executive Travel
http://statistics.data.gov.uk/id/local-authority/38,Oxfordshire County Council,LD CLIENTS SOUTH,5227,Other Transport Arrangements,19/09/2016,3110142071,910.00,Berkeley Executive Travel
http://statistics.data.gov.uk/id/local-authority/38,Oxfordshire County Council,2 YEAR OLD FUNDING,5537,Payments to Other Establishments,13/09/2016,3110140452,648.90,Bernetta Scarlett
http://statistics.data.gov.uk/id/local-authority/38,Oxfordshire County Council,,1162,VAT - Input Adjustment,06/09/2016,3110136855,"1,090.20",BERRYMANS LACE MAWER SOLICITORS
http://statistics.data.gov.uk/id/local-authority/38,Oxfordshire County Council,PD COMM SUPP DIDCOT,5899,Adult Social Care - Direct Payments,07/09/2016,3110137839,"3,428.00",Redacted Personal Data
http://statistics.data.gov.uk/id/local-authority/38,Oxfordshire County Council,LAC PUPIL PREMIUM,5380,"Author, Speaker and Lecturer Fees",08/09/2016,2200215126,"6,100.00",Betsy de Thierry Limited
http://statistics.data.gov.uk/id/local-authority/38,Oxfordshire County Council,CSB - ABINGDON,5899,Adult Social Care - Direct Payments,07/09/2016,3110137844,992.00,Redacted Personal Data
http://statistics.data.gov.uk/id/local-authority/38,Oxfordshire County Council,LAC PUPIL PREMIUM,5537,Payments to Other Establishments,13/09/2016,3110140370,"1,036.00",Bicester Learning Academy
http://statistics.data.gov.uk/id/local-authority/38,Oxfordshire County Council,HN EARLY YEARS,5537,Payments to Other Establishments,06/09/2016,3110136347,"2,000.00",Bicester Learning Academy
http://statistics.data.gov.uk/id/local-authority/38,Oxfordshire County Council,HN IN SEC SCHOOLS,5537,Payments to Other Establishments,21/09/2016,3110144216,"3,841.00",Bicester Learning Academy
http://statistics.data.gov.uk/id/local-authority/38,Oxfordshire County Council,CHC - CARE HOME PLAC,5689,,12/09/2016,2200216669,"2,382.94",Bicester PA and Care LLP
http://statistics.data.gov.uk/id/local-authority/38,Oxfordshire County Council,CORPORATE LANDLORD,3945,Rent,28/09/2016,3500022100,625.00,Bicester Town Council
http://statistics.data.gov.uk/id/local-authority/38,Oxfordshire County Council,CORPORATE LANDLORD,3945,Rent,28/09/2016,3500022101,"2,500.00",Bicester Town Council
http://statistics.data.gov.uk/id/local-authority/38,Oxfordshire County Council,COMM DRAWDOWN FUNDNG,8103,Payments to sub contractor,13/09/2016,2200218125,"7,875.00",Bill Harvey associates
http://statistics.data.gov.uk/id/local-authority/38,Oxfordshire County Council,SM DISABILITIES,5899,Adult Social Care - Direct Payments,28/09/2016,3110145246,"1,128.40",Redacted Personal Data
http://statistics.data.gov.uk/id/local-authority/38,Oxfordshire County Council,Carterton CC,2040,Agency Staff,26/09/2016,2200226178,546.00,Birth Baby Balance
http://statistics.data.gov.uk/id/local-authority/38,Oxfordshire County Council,2 YEAR OLD FUNDING,5537,Payments to Other Establishments,13/09/2016,3110140453,648.90,Bishopswood Day Nursery
http://statistics.data.gov.uk/id/local-authority/38,Oxfordshire County Council,NURSERY ED FUND,5537,Payments to Other Establishments,01/09/2016,3110135357,"14,743.51",Bishopswood Day Nursery
http://statistics.data.gov.uk/id/local-authority/38,Oxfordshire County Council,TRANSPORT COSTS,4330,Transport to School Activities,05/09/2016,3110136288,882.00,Black and White Cars T/A Banbury Ta
http://statistics.data.gov.uk/id/local-authority/38,Oxfordshire County Council,SEN TRANSPORT,4330,Transport to School Activities,05/09/2016,3110136323,"1,537.77",Black and White Cars T/A Banbury Ta
http://statistics.data.gov.uk/id/local-authority/38,Oxfordshire County Council,MEADOWBROOK TRANSPT,4330,Transport to School Activities,05/09/2016,3110136325,"2,480.00",Black and White Cars T/A Banbury Ta
http://statistics.data.gov.uk/id/local-authority/38,Oxfordshire County Council,OxLEP Marketing Cost Centre,4790,"Publicity, Promotions and Advertisement",13/09/2016,2200218035,500.00,Black Dog New Media Ltd
http://statistics.data.gov.uk/id/local-authority/38,Oxfordshire County Council,CARE HOME SPOT VALE,5686,,13/09/2016,3110139715,"2,764.29",Blackwood House
http://statistics.data.gov.uk/id/local-authority/38,Oxfordshire County Council,HN IN SEC SCHOOLS,5537,Payments to Other Establishments,21/09/2016,3110144235,"2,445.00",Blessed George Napier C School
http://statistics.data.gov.uk/id/local-authority/38,Oxfordshire County Council,NURSERY ED FUND,5537,Payments to Other Establishments,01/09/2016,3110135361,"6,418.94",Blewbury Pre-School Playgroup
http://statistics.data.gov.uk/id/local-authority/38,Oxfordshire County Council,GRASS CUTTING DIST.,5526,Payments to Private Contractors,06/09/2016,3110136857,"2,310.25",Bloxham Parish Council
http://statistics.data.gov.uk/id/local-authority/38,Oxfordshire County Council,NURSERY ED FUND,5537,Payments to Other Establishments,01/09/2016,3110135366,"19,958.90",Bloxham Pre-School
http://statistics.data.gov.uk/id/local-authority/38,Oxfordshire County Council,S38 INSPECT & OTHER,4835,Management Consultant Fees,01/09/2016,2200211434,"8,330.00",Blue Marble Group LLP
http://statistics.data.gov.uk/id/local-authority/38,Oxfordshire County Council,S38 INSPECT & OTHER,4835,Management Consultant Fees,26/09/2016,2200225630,"12,500.00",Blue Marble Group LLP
http://statistics.data.gov.uk/id/local-authority/38,Oxfordshire County Council,COMMUNICATIONS,2040,Agency Staff,15/09/2016,2200219324,"-5,500.00",Blue Skies Services Ltd
http://statistics.data.gov.uk/id/local-authority/38,Oxfordshire County Council,COMMUNICATIONS,2040,Agency Staff,15/09/2016,2200219686,"-1,513.80",Blue Skies Services Ltd
http://statistics.data.gov.uk/id/local-authority/38,Oxfordshire County Council,COMMUNICATIONS,2040,Agency Staff,21/09/2016,2200223910,880.00,Blue Skies Services Ltd
http://statistics.data.gov.uk/id/local-authority/38,Oxfordshire County Council,COMMUNICATIONS,2040,Agency Staff,21/09/2016,2200223911,880.00,Blue Skies Services Ltd
http://statistics.data.gov.uk/id/local-authority/38,Oxfordshire County Council,COMMUNICATIONS,2040,Agency Staff,22/09/2016,2200224288,"1,100.00",Blue Skies Services Ltd
http://statistics.data.gov.uk/id/local-authority/38,Oxfordshire County Council,COMMUNICATIONS,2040,Agency Staff,15/09/2016,2200219278,"1,513.80",Blue Skies Services Ltd
http://statistics.data.gov.uk/id/local-authority/38,Oxfordshire County Council,COMMUNICATIONS,2040,Agency Staff,13/09/2016,2200218005,"5,500.00",Blue Skies Services Ltd
http://statistics.data.gov.uk/id/local-authority/38,Oxfordshire County Council,COMMUNICATIONS,2040,Agency Staff,27/09/2016,2200226821,"5,500.00",Blue Skies Services Ltd
http://statistics.data.gov.uk/id/local-authority/38,Oxfordshire County Council,Independent Foster,1362,Creditors GR/IR -,28/09/2016,2200227099,"6,300.00",Blue Sky Fostering Ltd
http://statistics.data.gov.uk/id/local-authority/38,Oxfordshire County Council,Independent Foster,1362,Creditors GR/IR -,29/09/2016,2200227854,"6,510.00",Blue Sky Fostering Ltd
http://statistics.data.gov.uk/id/local-authority/38,Oxfordshire County Council,Independent Foster,1362,Creditors GR/IR -,30/09/2016,2200228735,"6,510.00",Blue Sky Fostering Ltd
http://statistics.data.gov.uk/id/local-authority/38,Oxfordshire County Council,OPPB CONTCARE DEL HE,5691,,20/09/2016,3110142236,830.80,Bluebird Care
http://statistics.data.gov.uk/id/local-authority/38,Oxfordshire County Council,OPPB CONTCARE DEL HE,5691,,20/09/2016,3110142235,"1,246.20",Bluebird Care
http://statistics.data.gov.uk/id/local-authority/38,Oxfordshire County Council,OPPB CONTCARE H SUPP,5691,,23/09/2016,3110145959,"2,449.80",Bluebird Care
http://statistics.data.gov.uk/id/local-authority/38,Oxfordshire County Council,OPPB FAST TRACK,5691,,08/09/2016,3110139011,"2,756.00",Bluebird Care
http://statistics.data.gov.uk/id/local-authority/38,Oxfordshire County Council,OPPB CONTCARE H SUPP,5691,,28/09/2016,3110145996,"4,754.50",Bluebird Care
http://statistics.data.gov.uk/id/local-authority/38,Oxfordshire County Council,OPPB CONTCARE H SUPP,5691,,28/09/2016,3110145997,"4,768.50",Bluebird Care
http://statistics.data.gov.uk/id/local-authority/38,Oxfordshire County Council,OPPB CONTCARE H SUPP,5691,,28/09/2016,3110145995,"5,053.50",Bluebird Care
http://statistics.data.gov.uk/id/local-authority/38,Oxfordshire County Council,OPPB CONTCARE DEL HE,5691,,20/09/2016,3110142239,531.10,Bluebird Care (Oxford South & West)
http://statistics.data.gov.uk/id/local-authority/38,Oxfordshire County Council,OPPB FAST TRACK,5691,,20/09/2016,3110142264,620.20,Bluebird Care (Oxford South & West)
http://statistics.data.gov.uk/id/local-authority/38,Oxfordshire County Council,OPPB FAST TRACK,5691,,28/09/2016,3110146062,"1,961.70",Bluebird Care (Oxford South & West)
http://statistics.data.gov.uk/id/local-authority/38,Oxfordshire County Council,PDPB CONTCARE H SUPP,5691,,28/09/2016,3110145990,"2,047.30",Bluebird Care (Oxford South & West)
http://statistics.data.gov.uk/id/local-authority/38,Oxfordshire County Council,OPPB FAST TRACK,5691,,23/09/2016,3110145918,"2,178.90",Bluebird Care (Oxford South & West)
http://statistics.data.gov.uk/id/local-authority/38,Oxfordshire County Council,OPPB FAST TRACK,5691,,28/09/2016,3110146061,"2,178.90",Bluebird Care (Oxford South & West)
http://statistics.data.gov.uk/id/local-authority/38,Oxfordshire County Council,OPPB CONTCARE H SUPP,5691,,12/09/2016,3110139383,"2,310.40",Bluebird Care (Oxford South & West)
http://statistics.data.gov.uk/id/local-authority/38,Oxfordshire County Council,OPPB CONTCARE H SUPP,5691,,23/09/2016,3110145930,"2,379.05",Bluebird Care (Oxford South & West)
http://statistics.data.gov.uk/id/local-authority/38,Oxfordshire County Council,PDPB CONTCARE H SUPP,5691,,28/09/2016,3110145991,"2,402.31",Bluebird Care (Oxford South & West)
http://statistics.data.gov.uk/id/local-authority/38,Oxfordshire County Council,OPPB CONTCARE H SUPP,5691,,23/09/2016,3110145929,"2,533.18",Bluebird Care (Oxford South & West)
http://statistics.data.gov.uk/id/local-authority/38,Oxfordshire County Council,OPERATIONS,4407,Equipment,05/09/2016,2200212295,513.92,Boc Ltd
http://statistics.data.gov.uk/id/local-authority/38,Oxfordshire County Council,LIBRARY COLLECTIONS,4539,"Books, DVDs and CDs",22/09/2016,2200224369,759.05,Bolinda UK Ltd
http://statistics.data.gov.uk/id/local-authority/38,Oxfordshire County Council,LIBRARY COLLECTIONS,4539,"Books, DVDs and CDs",22/09/2016,2200224381,799.00,Bolinda UK Ltd
http://statistics.data.gov.uk/id/local-authority/38,Oxfordshire County Council,LIBRARY COLLECTIONS,4539,"Books, DVDs and CDs",22/09/2016,2200224770,799.00,Bolinda UK Ltd
http://statistics.data.gov.uk/id/local-authority/38,Oxfordshire County Council,LIBRARY COLLECTIONS,4539,"Books, DVDs and CDs",22/09/2016,2200224803,799.00,Bolinda UK Ltd
http://statistics.data.gov.uk/id/local-authority/38,Oxfordshire County Council,LIBRARY COLLECTIONS,4539,"Books, DVDs and CDs",22/09/2016,2200224815,799.00,Bolinda UK Ltd
http://statistics.data.gov.uk/id/local-authority/38,Oxfordshire County Council,LIBRARY COLLECTIONS,4706,Stationery and other office consumables,27/09/2016,2200227007,519.77,BOOK PROTECTORS & CO
http://statistics.data.gov.uk/id/local-authority/38,Oxfordshire County Council,HARM REDUC SERVICES,4934,,19/09/2016,3110145605,793.65,Boots the Chemist
http://statistics.data.gov.uk/id/local-authority/38,Oxfordshire County Council,GP + PHARMACY SERVS,4934,,19/09/2016,3110145621,"1,064.00",Boswells of Oxford Pharmacy
http://statistics.data.gov.uk/id/local-authority/38,Oxfordshire County Council,2 YEAR OLD FUNDING,5537,Payments to Other Establishments,13/09/2016,3110140454,648.90,Bowood Nursery School
http://statistics.data.gov.uk/id/local-authority/38,Oxfordshire County Council,NURSERY ED FUND,5537,Payments to Other Establishments,01/09/2016,3110135371,"13,205.64",Bowood Nursery School
http://statistics.data.gov.uk/id/local-authority/38,Oxfordshire County Council,DIRECTOR'S OFFICE,3100,Educational and Vocational Training,20/09/2016,2200222582,"12,500.00",Bracknell Forest Borough Council
http://statistics.data.gov.uk/id/local-authority/38,Oxfordshire County Council,LD CLIENTS CITY,5686,,13/09/2016,3110139613,"2,860.85",Bradbury House Organisation
http://statistics.data.gov.uk/id/local-authority/38,Oxfordshire County Council,SPECIAL GUARDIANSHIP,5664,B*Holiday Allowance,28/09/2016,3110145577,"1,259.48",Redacted Personal Data
http://statistics.data.gov.uk/id/local-authority/38,Oxfordshire County Council,2 YEAR OLD FUNDING,5537,Payments to Other Establishments,13/09/2016,3110140455,"1,297.80",Bramleys Day Nursery and Nursery
http://statistics.data.gov.uk/id/local-authority/38,Oxfordshire County Council,NURSERY ED FUND,5537,Payments to Other Establishments,01/09/2016,3110135376,"9,026.64",Bramleys Day Nursery and Nursery
http://statistics.data.gov.uk/id/local-authority/38,Oxfordshire County Council,LAC PUPIL PREMIUM,5537,Payments to Other Establishments,22/09/2016,3110144283,720.00,Bredon Hill Academy
http://statistics.data.gov.uk/id/local-authority/38,Oxfordshire County Council,PD COMM SUPP - CITY,5899,Adult Social Care - Direct Payments,07/09/2016,3110137831,"3,160.00",Redacted Personal Data
http://statistics.data.gov.uk/id/local-authority/38,Oxfordshire County Council,OPPB INTER FUND,5686,,13/09/2016,3110139674,"59,814.05",Bridge House
http://statistics.data.gov.uk/id/local-authority/38,Oxfordshire County Council,LIBRARY COLLECTIONS,5190,Subscriptions,09/09/2016,2200215815,"15,876.00",Bridgeall Libraries limited
http://statistics.data.gov.uk/id/local-authority/38,Oxfordshire County Council,NURSERY ED FUND,5537,Payments to Other Establishments,13/09/2016,3110142090,972.72,Bridges Childcare
http://statistics.data.gov.uk/id/local-authority/38,Oxfordshire County Council,2 YEAR OLD FUNDING,5537,Payments to Other Establishments,13/09/2016,3110140529,"4,672.08",Bridges Childcare
http://statistics.data.gov.uk/id/local-authority/38,Oxfordshire County Council,CSB - DIDCOT,5689,,15/09/2016,3110141445,507.94,Bridges Home Care Ltd
http://statistics.data.gov.uk/id/local-authority/38,Oxfordshire County Council,CSB - DIDCOT,5689,,15/09/2016,3110141415,535.84,Bridges Home Care Ltd
http://statistics.data.gov.uk/id/local-authority/38,Oxfordshire County Council,PD COMM SUPP DIDCOT,5689,,15/09/2016,3110141461,536.99,Bridges Home Care Ltd
http://statistics.data.gov.uk/id/local-authority/38,Oxfordshire County Council,CSB - DIDCOT,5689,,15/09/2016,3110141432,541.96,Bridges Home Care Ltd
http://statistics.data.gov.uk/id/local-authority/38,Oxfordshire County Council,CSB - DIDCOT,5689,,15/09/2016,3110141409,542.72,Bridges Home Care Ltd
http://statistics.data.gov.uk/id/local-authority/38,Oxfordshire County Council,CSB - DIDCOT,5689,,15/09/2016,3110141457,554.19,Bridges Home Care Ltd
http://statistics.data.gov.uk/id/local-authority/38,Oxfordshire County Council,CSB - DIDCOT,5689,,15/09/2016,3110141427,567.95,Bridges Home Care Ltd
http://statistics.data.gov.uk/id/local-authority/38,Oxfordshire County Council,CSB - DIDCOT,5689,,15/09/2016,3110141407,600.44,Bridges Home Care Ltd
http://statistics.data.gov.uk/id/local-authority/38,Oxfordshire County Council,CSB - DIDCOT,5689,,15/09/2016,3110141449,612.28,Bridges Home Care Ltd
http://statistics.data.gov.uk/id/local-authority/38,Oxfordshire County Council,CSB - DIDCOT,5689,,15/09/2016,3110141454,631.39,Bridges Home Care Ltd
http://statistics.data.gov.uk/id/local-authority/38,Oxfordshire County Council,CSB - DIDCOT,5689,,15/09/2016,3110141411,642.86,Bridges Home Care Ltd
http://statistics.data.gov.uk/id/local-authority/38,Oxfordshire County Council,CSB - DIDCOT,5689,,15/09/2016,3110141428,670.76,Bridges Home Care Ltd
http://statistics.data.gov.uk/id/local-authority/38,Oxfordshire County Council,CSB - DIDCOT,5689,,15/09/2016,3110141425,674.58,Bridges Home Care Ltd
http://statistics.data.gov.uk/id/local-authority/38,Oxfordshire County Council,LD CLIENTS SOUTH,5689,,15/09/2016,3110141460,679.17,Bridges Home Care Ltd
http://statistics.data.gov.uk/id/local-authority/38,Oxfordshire County Council,CSB - DIDCOT,5689,,15/09/2016,3110141404,681.08,Bridges Home Care Ltd
http://statistics.data.gov.uk/id/local-authority/38,Oxfordshire County Council,CSB - DIDCOT,5689,,15/09/2016,3110141440,694.08,Bridges Home Care Ltd
http://statistics.data.gov.uk/id/local-authority/38,Oxfordshire County Council,CSB - DIDCOT,5689,,15/09/2016,3110141456,704.39,Bridges Home Care Ltd
http://statistics.data.gov.uk/id/local-authority/38,Oxfordshire County Council,CSB - DIDCOT,5689,,15/09/2016,3110141450,744.53,Bridges Home Care Ltd
http://statistics.data.gov.uk/id/local-authority/38,Oxfordshire County Council,CSB - DIDCOT,5689,,15/09/2016,3110141437,759.43,Bridges Home Care Ltd
http://statistics.data.gov.uk/id/local-authority/38,Oxfordshire County Council,CSB - DIDCOT,5689,,15/09/2016,3110141403,800.33,Bridges Home Care Ltd
http://statistics.data.gov.uk/id/local-authority/38,Oxfordshire County Council,CSB - DIDCOT,5689,,15/09/2016,3110141434,816.38,Bridges Home Care Ltd
http://statistics.data.gov.uk/id/local-authority/38,Oxfordshire County Council,CSB - DIDCOT,5689,,15/09/2016,3110141417,855.36,Bridges Home Care Ltd
http://statistics.data.gov.uk/id/local-authority/38,Oxfordshire County Council,CSB - DIDCOT,5689,,15/09/2016,3110141419,860.33,Bridges Home Care Ltd
http://statistics.data.gov.uk/id/local-authority/38,Oxfordshire County Council,CSB - DIDCOT,5689,,15/09/2016,3110141406,877.53,Bridges Home Care Ltd
http://statistics.data.gov.uk/id/local-authority/38,Oxfordshire County Council,CSB - DIDCOT,5689,,15/09/2016,3110141433,891.67,Bridges Home Care Ltd
http://statistics.data.gov.uk/id/local-authority/38,Oxfordshire County Council,CSB - DIDCOT,5689,,15/09/2016,3110141420,915.75,Bridges Home Care Ltd
http://statistics.data.gov.uk/id/local-authority/38,Oxfordshire County Council,CSB - DIDCOT,5689,,15/09/2016,3110141413,930.66,Bridges Home Care Ltd
http://statistics.data.gov.uk/id/local-authority/38,Oxfordshire County Council,CSB - DIDCOT,5689,,15/09/2016,3110141444,"1,025.44",Bridges Home Care Ltd
http://statistics.data.gov.uk/id/local-authority/38,Oxfordshire County Council,CSB - DIDCOT,5689,,15/09/2016,3110141397,"1,026.97",Bridges Home Care Ltd
http://statistics.data.gov.uk/id/local-authority/38,Oxfordshire County Council,CSB - DIDCOT,5689,,15/09/2016,3110141405,"1,030.79",Bridges Home Care Ltd
http://statistics.data.gov.uk/id/local-authority/38,Oxfordshire County Council,CSB - DIDCOT,5689,,15/09/2016,3110141441,"1,078.19",Bridges Home Care Ltd
http://statistics.data.gov.uk/id/local-authority/38,Oxfordshire County Council,CSB - DIDCOT,5689,,15/09/2016,3110141423,"1,083.92",Bridges Home Care Ltd
http://statistics.data.gov.uk/id/local-authority/38,Oxfordshire County Council,CSB - DIDCOT,5689,,15/09/2016,3110141412,"1,260.88",Bridges Home Care Ltd
http://statistics.data.gov.uk/id/local-authority/38,Oxfordshire County Council,PD COMM SUPP DIDCOT,5689,,15/09/2016,3110141466,"1,263.55",Bridges Home Care Ltd
http://statistics.data.gov.uk/id/local-authority/38,Oxfordshire County Council,CSB - DIDCOT,5689,,15/09/2016,3110141401,"1,326.62",Bridges Home Care Ltd
http://statistics.data.gov.uk/id/local-authority/38,Oxfordshire County Council,CSB - DIDCOT,5689,,15/09/2016,3110141398,"1,386.24",Bridges Home Care Ltd
http://statistics.data.gov.uk/id/local-authority/38,Oxfordshire County Council,CSB - DIDCOT,5689,,15/09/2016,3110141395,"1,499.83",Bridges Home Care Ltd
http://statistics.data.gov.uk/id/local-authority/38,Oxfordshire County Council,CSB - DIDCOT,5689,,15/09/2016,3110141430,"1,534.53",Bridges Home Care Ltd
http://statistics.data.gov.uk/id/local-authority/38,Oxfordshire County Council,CSB - DIDCOT,5689,,15/09/2016,3110141408,"1,611.74",Bridges Home Care Ltd
http://statistics.data.gov.uk/id/local-authority/38,Oxfordshire County Council,CSB - DIDCOT,5689,,15/09/2016,3110141396,"1,705.76",Bridges Home Care Ltd
http://statistics.data.gov.uk/id/local-authority/38,Oxfordshire County Council,CSB - DIDCOT,5689,,15/09/2016,3110141435,"1,834.94",Bridges Home Care Ltd
http://statistics.data.gov.uk/id/local-authority/38,Oxfordshire County Council,CSB - DIDCOT,5689,,15/09/2016,3110141447,"2,100.19",Bridges Home Care Ltd
http://statistics.data.gov.uk/id/local-authority/38,Oxfordshire County Council,CSB - DIDCOT,5689,,15/09/2016,3110141436,"2,339.06",Bridges Home Care Ltd
http://statistics.data.gov.uk/id/local-authority/38,Oxfordshire County Council,PD COMM SUPP DIDCOT,5689,,15/09/2016,3110141465,"2,395.25",Bridges Home Care Ltd
http://statistics.data.gov.uk/id/local-authority/38,Oxfordshire County Council,CSB - DIDCOT,5689,,15/09/2016,3110141439,"2,419.71",Bridges Home Care Ltd
http://statistics.data.gov.uk/id/local-authority/38,Oxfordshire County Council,PD COMM SUPP DIDCOT,5689,,15/09/2016,3110141463,"2,424.29",Bridges Home Care Ltd
http://statistics.data.gov.uk/id/local-authority/38,Oxfordshire County Council,PD COMM SUPP DIDCOT,5689,,15/09/2016,3110141462,"2,446.46",Bridges Home Care Ltd
http://statistics.data.gov.uk/id/local-authority/38,Oxfordshire County Council,CSB - DIDCOT,5689,,15/09/2016,3110141443,"2,469.01",Bridges Home Care Ltd
http://statistics.data.gov.uk/id/local-authority/38,Oxfordshire County Council,CSB - DIDCOT,5689,,15/09/2016,3110141410,"2,542.01",Bridges Home Care Ltd
http://statistics.data.gov.uk/id/local-authority/38,Oxfordshire County Council,ContrO ASC Payments Control Account,5689,,15/09/2016,3110141467,"14,819.00",Bridges Home Care Ltd
http://statistics.data.gov.uk/id/local-authority/38,Oxfordshire County Council,LD CLIENTS NORTH,5899,Adult Social Care - Direct Payments,07/09/2016,3110137194,"10,452.48",Redacted Personal Data
http://statistics.data.gov.uk/id/local-authority/38,Oxfordshire County Council,PLAYGROUP FEES,5537,Payments to Other Establishments,27/09/2016,3110145021,805.00,Bright Horizons Milton Park Nursery
http://statistics.data.gov.uk/id/local-authority/38,Oxfordshire County Council,DEPUTY DIRECTOR &MAN,3103,Other Training Courses and Qualification,23/09/2016,2200225206,"1,169.00",Bright Ideas Business Gifts Ltd
http://statistics.data.gov.uk/id/local-authority/38,Oxfordshire County Council,2 YEAR OLD FUNDING,5537,Payments to Other Establishments,13/09/2016,3110140456,648.90,Bright Stars Childcare
http://statistics.data.gov.uk/id/local-authority/38,Oxfordshire County Council,2 YEAR OLD FUNDING,5537,Payments to Other Establishments,13/09/2016,3110140457,"4,449.60",Bright Start Pre-school
http://statistics.data.gov.uk/id/local-authority/38,Oxfordshire County Council,NURSERY ED FUND,5537,Payments to Other Establishments,01/09/2016,3110135403,"10,531.08",Bright Start Pre-school
http://statistics.data.gov.uk/id/local-authority/38,Oxfordshire County Council,INTER-AGENCY,5500,Payments to Other Local Authorities,12/09/2016,2200217284,"27,000.00",Brighton and Hove City Council
http://statistics.data.gov.uk/id/local-authority/38,Oxfordshire County Council,ICT Operations & Maintenance,5039,ITC Services,20/09/2016,2200222802,"1,260.45",Britannic Technologies Limited
http://statistics.data.gov.uk/id/local-authority/38,Oxfordshire County Council,GRASS CUTTING DIST.,5526,Payments to Private Contractors,29/09/2016,2200228461,828.00,Brize Norton Parish Council
http://statistics.data.gov.uk/id/local-authority/38,Oxfordshire County Council,2 YEAR OLD FUNDING,5537,Payments to Other Establishments,13/09/2016,3110140458,"2,011.59",Brize Norton Village Pre
http://statistics.data.gov.uk/id/local-authority/38,Oxfordshire County Council,NURSERY ED FUND,5537,Payments to Other Establishments,01/09/2016,3110135409,"7,121.02",Brize Norton Village Pre
http://statistics.data.gov.uk/id/local-authority/38,Oxfordshire County Council,COMMUNICATIONS,5186,Licences,19/09/2016,2200220964,"1,560.00",Broadcast Insight Ltd
http://statistics.data.gov.uk/id/local-authority/38,Oxfordshire County Council,2 YEAR OLD FUNDING,5537,Payments to Other Establishments,13/09/2016,3110140459,"1,816.92",Broadhill Pre-School
http://statistics.data.gov.uk/id/local-authority/38,Oxfordshire County Council,NURSERY ED FUND,5537,Payments to Other Establishments,01/09/2016,3110135415,"11,734.63",Broadhill Pre-School
http://statistics.data.gov.uk/id/local-authority/38,Oxfordshire County Council,Mainstream Res,1362,Creditors GR/IR -,26/09/2016,2200225745,"4,971.40",Broadlands Hall Ltd
http://statistics.data.gov.uk/id/local-authority/38,Oxfordshire County Council,AGENCY RESID - DISAB,1362,Creditors GR/IR -,23/09/2016,2200225500,"6,371.30",Broadlands Hall Ltd
http://statistics.data.gov.uk/id/local-authority/38,Oxfordshire County Council,Mainstream Res,5558,,26/09/2016,2200226337,"9,685.60",Broadlands Hall Ltd
http://statistics.data.gov.uk/id/local-authority/38,Oxfordshire County Council,Mainstream Res,1362,Creditors GR/IR -,21/09/2016,2200223081,"11,138.44",Broadlands Hall Ltd
http://statistics.data.gov.uk/id/local-authority/38,Oxfordshire County Council,Mainstream Res,1362,Creditors GR/IR -,22/09/2016,2200224262,"11,434.22",Broadlands Hall Ltd
http://statistics.data.gov.uk/id/local-authority/38,Oxfordshire County Council,OUT OF COUNTY,5537,Payments to Other Establishments,13/09/2016,2200218205,"13,160.00",Broadlands Hall Ltd
http://statistics.data.gov.uk/id/local-authority/38,Oxfordshire County Council,Mainstream Res,1362,Creditors GR/IR -,26/09/2016,2200225760,"13,560.00",Broadlands Hall Ltd
http://statistics.data.gov.uk/id/local-authority/38,Oxfordshire County Council,AGENCY RESID - DISAB,1362,Creditors GR/IR -,21/09/2016,2200223080,"14,653.99",Broadlands Hall Ltd
http://statistics.data.gov.uk/id/local-authority/38,Oxfordshire County Council,Mainstream Res,1362,Creditors GR/IR -,26/09/2016,2200225757,"16,950.00",Broadlands Hall Ltd
http://statistics.data.gov.uk/id/local-authority/38,Oxfordshire County Council,Mainstream Res,1362,Creditors GR/IR -,19/09/2016,2200220966,"17,400.00",Broadlands Hall Ltd
http://statistics.data.gov.uk/id/local-authority/38,Oxfordshire County Council,AGENCY RESID - DISAB,1362,Creditors GR/IR -,26/09/2016,2200225763,"17,840.00",Broadlands Hall Ltd
http://statistics.data.gov.uk/id/local-authority/38,Oxfordshire County Council,2 YEAR OLD FUNDING,5537,Payments to Other Establishments,13/09/2016,3110140460,"2,206.26",Broadshires Pre-School
http://statistics.data.gov.uk/id/local-authority/38,Oxfordshire County Council,NURSERY ED FUND,5537,Payments to Other Establishments,01/09/2016,3110135419,"6,719.83",Broadshires Pre-School
http://statistics.data.gov.uk/id/local-authority/38,Oxfordshire County Council,RESIDENTIAL TREATMEN,5686,,14/09/2016,2200218423,"2,900.00",BROADWAY LODGE LTD
http://statistics.data.gov.uk/id/local-authority/38,Oxfordshire County Council,RESIDENTIAL TREATMEN,5686,,14/09/2016,2200218426,"3,199.60",BROADWAY LODGE LTD
http://statistics.data.gov.uk/id/local-authority/38,Oxfordshire County Council,LD EXT RESP CONTRACT,5544,B*Fostering - Temp/Respite,13/09/2016,3110139598,"1,928.91",Bromford Support
http://statistics.data.gov.uk/id/local-authority/38,Oxfordshire County Council,LD CLIENTS SOUTH,5688,,13/09/2016,3110139805,"3,687.00",Brook House Residential
http://statistics.data.gov.uk/id/local-authority/38,Oxfordshire County Council,LD CLIENTS SOUTH,5686,,13/09/2016,3110139611,"15,484.25",Brook House Residential
http://statistics.data.gov.uk/id/local-authority/38,Oxfordshire County Council,MH SPOT FUNDING,5686,,13/09/2016,3110139580,"28,941.98",Brookdale Care
http://statistics.data.gov.uk/id/local-authority/38,Oxfordshire County Council,OPPB CONTCARE H SUPP,5899,Adult Social Care - Direct Payments,07/09/2016,3110137337,"5,932.96",Redacted Personal Data
http://statistics.data.gov.uk/id/local-authority/38,Oxfordshire County Council,LD CLIENTS CITY,5686,,13/09/2016,3110139597,"5,402.14",Redacted Personal Data
http://statistics.data.gov.uk/id/local-authority/38,Oxfordshire County Council,2 YEAR OLD FUNDING,5537,Payments to Other Establishments,13/09/2016,3110140461,"1,297.80",Bubbles Pre School
http://statistics.data.gov.uk/id/local-authority/38,Oxfordshire County Council,NURSERY ED FUND,5537,Payments to Other Establishments,01/09/2016,3110135424,"10,531.08",Bubbles Pre School
http://statistics.data.gov.uk/id/local-authority/38,Oxfordshire County Council,LD CLIENTS SOUTH,5690,,13/09/2016,3110139783,"1,958.36",Buckinghamshire County Council
http://statistics.data.gov.uk/id/local-authority/38,Oxfordshire County Council,STI TESTING+TREATMEN,4940,Other Services,12/09/2016,3110139306,"12,260.83",Buckinghamshire Healthcare NHS Trus
http://statistics.data.gov.uk/id/local-authority/38,Oxfordshire County Council,HN EARLY YEARS,5537,Payments to Other Establishments,06/09/2016,3110136333,"2,427.00",Buckland Primary School
http://statistics.data.gov.uk/id/local-authority/38,Oxfordshire County Council,NURSERY ED FUND,5537,Payments to Other Establishments,01/09/2016,3110135428,"4,215.12",Buckland Primary School
http://statistics.data.gov.uk/id/local-authority/38,Oxfordshire County Council,MUSIC UNALLOCABLE,4665,Catering,09/09/2016,2200216105,912.00,Bunny's
http://statistics.data.gov.uk/id/local-authority/38,Oxfordshire County Council,CARE HOME SPOT CITY,5686,,13/09/2016,3110139441,"1,920.47",BUPA CARE SERVICES
http://statistics.data.gov.uk/id/local-authority/38,Oxfordshire County Council,LAC PUPIL PREMIUM,5537,Payments to Other Establishments,13/09/2016,3110140390,500.00,Burford Academy
http://statistics.data.gov.uk/id/local-authority/38,Oxfordshire County Council,LAC PUPIL PREMIUM,5537,Payments to Other Establishments,13/09/2016,3110140391,600.00,Burford Academy
http://statistics.data.gov.uk/id/local-authority/38,Oxfordshire County Council,HN IN SEC SCHOOLS,5537,Payments to Other Establishments,21/09/2016,3110144217,"3,235.00",Burford Academy
http://statistics.data.gov.uk/id/local-authority/38,Oxfordshire County Council,2 YEAR OLD FUNDING,5537,Payments to Other Establishments,13/09/2016,3110140462,648.90,Burford Pre-School
http://statistics.data.gov.uk/id/local-authority/38,Oxfordshire County Council,NURSERY ED FUND,5537,Payments to Other Establishments,01/09/2016,3110135432,"5,716.87",Burford Pre-School
http://statistics.data.gov.uk/id/local-authority/38,Oxfordshire County Council,HN EARLY YEARS,5537,Payments to Other Establishments,06/09/2016,3110136335,"2,000.00",Burford Primary School (Academy)
http://statistics.data.gov.uk/id/local-authority/38,Oxfordshire County Council,NURSERY ED FUND,5537,Payments to Other Establishments,01/09/2016,3110135435,"3,404.52",Burford Primary School (Academy)
http://statistics.data.gov.uk/id/local-authority/38,Oxfordshire County Council,LD CLIENTS NORTH,5688,,13/09/2016,3110139816,685.71,Burgess Care Ltd.
http://statistics.data.gov.uk/id/local-authority/38,Oxfordshire County Council,LD CLIENTS NORTH,5686,,13/09/2016,3110139704,"25,714.33",Burgess Care Ltd.
http://statistics.data.gov.uk/id/local-authority/38,Oxfordshire County Council,FLEET OPERATIONS,4270,HTM / Other Vehicle - Hire Charges,12/09/2016,2200216576,-797.99,BURNT TREE GROUP LTD
http://statistics.data.gov.uk/id/local-authority/38,Oxfordshire County Council,FLEET OPERATIONS,4270,HTM / Other Vehicle - Hire Charges,12/09/2016,2200216571,797.99,BURNT TREE GROUP LTD
http://statistics.data.gov.uk/id/local-authority/38,Oxfordshire County Council,LOWER WINDRUSH PROJ,4940,Other Services,20/09/2016,2200222436,"3,000.00",Buryhook Countryside Management
http://statistics.data.gov.uk/id/local-authority/38,Oxfordshire County Council,THAMES PATH,4407,Equipment,13/09/2016,2200217335,"4,465.00",Buryhook Countryside Management
http://statistics.data.gov.uk/id/local-authority/38,Oxfordshire County Council,ROW MAINT,4861,Hired and Contracted Services,22/09/2016,2200224101,"10,223.35",Buryhook Countryside Management
http://statistics.data.gov.uk/id/local-authority/38,Oxfordshire County Council,2 YEAR OLD FUNDING,5537,Payments to Other Establishments,13/09/2016,3110140463,"2,379.30",Busy Bees at Oxford
http://statistics.data.gov.uk/id/local-authority/38,Oxfordshire County Council,NURSERY ED FUND,5537,Payments to Other Establishments,01/09/2016,3110135437,"2,500.24",Busy Bees at Oxford
http://statistics.data.gov.uk/id/local-authority/38,Oxfordshire County Council,2 YEAR OLD FUNDING,5537,Payments to Other Establishments,13/09/2016,3110140464,"6,489.00",Busy Bees Day Nursery (Bicester)
http://statistics.data.gov.uk/id/local-authority/38,Oxfordshire County Council,NURSERY ED FUND,5537,Payments to Other Establishments,01/09/2016,3110135439,"16,716.00",Busy Bees Day Nursery (Bicester)
http://statistics.data.gov.uk/id/local-authority/38,Oxfordshire County Council,2 YEAR OLD FUNDING,5537,Payments to Other Establishments,13/09/2016,3110140465,648.90,Busy Bees Playgroup (Thame)
http://statistics.data.gov.uk/id/local-authority/38,Oxfordshire County Council,NURSERY ED FUND,5537,Payments to Other Establishments,01/09/2016,3110135441,"11,985.37",Busy Bees Playgroup (Thame)
http://statistics.data.gov.uk/id/local-authority/38,Oxfordshire County Council,Independent Foster,5559,,19/09/2016,2200221466,"-4,503.57",BY THE BRIDGE
http://statistics.data.gov.uk/id/local-authority/38,Oxfordshire County Council,Independent Foster,1362,Creditors GR/IR -,20/09/2016,2200222460,"2,539.62",BY THE BRIDGE
http://statistics.data.gov.uk/id/local-authority/38,Oxfordshire County Council,Independent Foster,1362,Creditors GR/IR -,13/09/2016,2200217339,"4,078.16",BY THE BRIDGE
http://statistics.data.gov.uk/id/local-authority/38,Oxfordshire County Council,Independent Foster,1362,Creditors GR/IR -,22/09/2016,2200224269,"4,214.10",BY THE BRIDGE
http://statistics.data.gov.uk/id/local-authority/38,Oxfordshire County Council,Independent Foster,1362,Creditors GR/IR -,12/09/2016,2200217302,"4,335.57",BY THE BRIDGE
http://statistics.data.gov.uk/id/local-authority/38,Oxfordshire County Council,Independent Foster,1362,Creditors GR/IR -,22/09/2016,2200224270,"4,335.57",BY THE BRIDGE
http://statistics.data.gov.uk/id/local-authority/38,Oxfordshire County Council,Independent Foster,1362,Creditors GR/IR -,13/09/2016,2200217372,"4,344.43",BY THE BRIDGE
http://statistics.data.gov.uk/id/local-authority/38,Oxfordshire County Council,Independent Foster,1362,Creditors GR/IR -,20/09/2016,2200222455,"4,344.43",BY THE BRIDGE
http://statistics.data.gov.uk/id/local-authority/38,Oxfordshire County Council,Independent Foster,1362,Creditors GR/IR -,20/09/2016,2200222463,"4,344.43",BY THE BRIDGE
http://statistics.data.gov.uk/id/local-authority/38,Oxfordshire County Council,Independent Foster,1362,Creditors GR/IR -,16/09/2016,2200220436,"4,574.71",BY THE BRIDGE
http://statistics.data.gov.uk/id/local-authority/38,Oxfordshire County Council,Independent Foster,1362,Creditors GR/IR -,20/09/2016,2200222453,"4,574.71",BY THE BRIDGE
http://statistics.data.gov.uk/id/local-authority/38,Oxfordshire County Council,Independent Foster,1362,Creditors GR/IR -,22/09/2016,2200224268,"4,574.71",BY THE BRIDGE
http://statistics.data.gov.uk/id/local-authority/38,Oxfordshire County Council,Independent Foster,1362,Creditors GR/IR -,20/09/2016,2200222459,"5,690.71",BY THE BRIDGE
http://statistics.data.gov.uk/id/local-authority/38,Oxfordshire County Council,LEGAL SERVICES,4495,IT Software,27/09/2016,2200226777,627.96,Bytes Software Servioces
http://statistics.data.gov.uk/id/local-authority/38,Oxfordshire County Council,FOSTERING MAIN,5549,B*Fostering Allowance - Regulation 38,07/09/2016,3110138680,613.92,Redacted Personal Data
http://statistics.data.gov.uk/id/local-authority/38,Oxfordshire County Council,FOSTERING MAIN,5549,B*Fostering Allowance - Regulation 38,14/09/2016,3110139969,613.92,Redacted Personal Data
http://statistics.data.gov.uk/id/local-authority/38,Oxfordshire County Council,FOSTERING MAIN,5549,B*Fostering Allowance - Regulation 38,21/09/2016,3110142492,613.92,Redacted Personal Data
http://statistics.data.gov.uk/id/local-authority/38,Oxfordshire County Council,TRANSPORT COSTS,4330,Transport to School Activities,28/09/2016,3110145814,"1,208.89",Redacted Personal Data
http://statistics.data.gov.uk/id/local-authority/38,Oxfordshire County Council,FOSTERING MAIN,5542,B*Payments to carers,07/09/2016,3110138631,701.79,Redacted Personal Data
http://statistics.data.gov.uk/id/local-authority/38,Oxfordshire County Council,FOSTERING MAIN,5542,B*Payments to carers,14/09/2016,3110139918,701.79,Redacted Personal Data
http://statistics.data.gov.uk/id/local-authority/38,Oxfordshire County Council,FOSTERING MAIN,5542,B*Payments to carers,21/09/2016,3110142439,701.79,Redacted Personal Data
http://statistics.data.gov.uk/id/local-authority/38,Oxfordshire County Council,FOSTERING MAIN,5542,B*Payments to carers,28/09/2016,3110145760,701.79,Redacted Personal Data
http://statistics.data.gov.uk/id/local-authority/38,Oxfordshire County Council,FOSTERING MAIN,5542,B*Payments to carers,14/09/2016,3110139922,922.82,Redacted Personal Data
http://statistics.data.gov.uk/id/local-authority/38,Oxfordshire County Council,FOSTERING MAIN,5542,B*Payments to carers,21/09/2016,3110142445,982.38,Redacted Personal Data
http://statistics.data.gov.uk/id/local-authority/38,Oxfordshire County Council,LOOKED AFTER SOUTH,5394,Other Expenses,07/09/2016,3110138635,"1,106.52",Redacted Personal Data
http://statistics.data.gov.uk/id/local-authority/38,Oxfordshire County Council,FOSTERING MAIN,5542,B*Payments to carers,28/09/2016,3110145766,"1,339.79",Redacted Personal Data
http://statistics.data.gov.uk/id/local-authority/38,Oxfordshire County Council,SPECIAL GUARDIANSHIP,5664,B*Holiday Allowance,07/09/2016,3110137212,568.56,Redacted Personal Data
http://statistics.data.gov.uk/id/local-authority/38,Oxfordshire County Council,SPECIAL GUARDIANSHIP,5664,B*Holiday Allowance,14/09/2016,3110140183,568.56,Redacted Personal Data
http://statistics.data.gov.uk/id/local-authority/38,Oxfordshire County Council,SPECIAL GUARDIANSHIP,5664,B*Holiday Allowance,21/09/2016,3110142686,568.56,Redacted Personal Data
http://statistics.data.gov.uk/id/local-authority/38,Oxfordshire County Council,SPECIAL GUARDIANSHIP,5664,B*Holiday Allowance,28/09/2016,3110145471,568.56,Redacted Personal Data
http://statistics.data.gov.uk/id/local-authority/38,Oxfordshire County Council,LD CLIENTS SOUTH,5227,Other Transport Arrangements,19/09/2016,3110141952,"1,320.00",C S Comley
http://statistics.data.gov.uk/id/local-authority/38,Oxfordshire County Council,FOSTERING MAIN,5549,B*Fostering Allowance - Regulation 38,21/09/2016,3110142460,818.10,Redacted Personal Data
http://statistics.data.gov.uk/id/local-authority/38,Oxfordshire County Council,DISABILITIES TEAM S,5227,Other Transport Arrangements,19/09/2016,3110141948,660.00,C V OSullivan
http://statistics.data.gov.uk/id/local-authority/38,Oxfordshire County Council,LD CLIENTS SOUTH,5227,Other Transport Arrangements,12/09/2016,3110139315,"2,715.19",C&M Management Services Ltd
http://statistics.data.gov.uk/id/local-authority/38,Oxfordshire County Council,OPPB FAST TRACK,5691,,28/09/2016,3110146056,504.00,C3Care Ltd
http://statistics.data.gov.uk/id/local-authority/38,Oxfordshire County Council,OPPB FAST TRACK,5691,,06/09/2016,3110136328,644.00,C3Care Ltd
http://statistics.data.gov.uk/id/local-authority/38,Oxfordshire County Council,OPPB FAST TRACK,5691,,20/09/2016,3110142250,644.00,C3Care Ltd
http://statistics.data.gov.uk/id/local-authority/38,Oxfordshire County Council,OPPB FAST TRACK,5691,,20/09/2016,3110142254,644.00,C3Care Ltd
http://statistics.data.gov.uk/id/local-authority/38,Oxfordshire County Council,OPPB FAST TRACK,5691,,22/09/2016,3110144328,644.00,C3Care Ltd
http://statistics.data.gov.uk/id/local-authority/38,Oxfordshire County Council,OPPB FAST TRACK,5691,,28/09/2016,3110146051,644.00,C3Care Ltd
http://statistics.data.gov.uk/id/local-authority/38,Oxfordshire County Council,OPPB FAST TRACK,5691,,20/09/2016,3110142258,648.00,C3Care Ltd
http://statistics.data.gov.uk/id/local-authority/38,Oxfordshire County Council,OPPB FAST TRACK,5691,,08/09/2016,3110139079,690.00,C3Care Ltd
http://statistics.data.gov.uk/id/local-authority/38,Oxfordshire County Council,OPPB FAST TRACK,5691,,22/09/2016,3110144327,816.30,C3Care Ltd
http://statistics.data.gov.uk/id/local-authority/38,Oxfordshire County Council,OPPB FAST TRACK,5691,,06/09/2016,3110136344,840.00,C3Care Ltd
http://statistics.data.gov.uk/id/local-authority/38,Oxfordshire County Council,OPPB FAST TRACK,5691,,20/09/2016,3110142256,840.00,C3Care Ltd
http://statistics.data.gov.uk/id/local-authority/38,Oxfordshire County Council,OPPB FAST TRACK,5691,,20/09/2016,3110142257,840.00,C3Care Ltd
http://statistics.data.gov.uk/id/local-authority/38,Oxfordshire County Council,OPPB FAST TRACK,5691,,28/09/2016,3110146050,840.00,C3Care Ltd
http://statistics.data.gov.uk/id/local-authority/38,Oxfordshire County Council,OPPB CONTCARE H SUPP,5691,,15/09/2016,3110141817,882.00,C3Care Ltd
http://statistics.data.gov.uk/id/local-authority/38,Oxfordshire County Council,OPPB CONTCARE H SUPP,5691,,23/09/2016,3110145962,882.00,C3Care Ltd
http://statistics.data.gov.uk/id/local-authority/38,Oxfordshire County Council,OPPB CONTCARE H SUPP,5691,,23/09/2016,3110145964,882.00,C3Care Ltd
http://statistics.data.gov.uk/id/local-authority/38,Oxfordshire County Council,OPPB FAST TRACK,5691,,08/09/2016,3110139077,900.00,C3Care Ltd
http://statistics.data.gov.uk/id/local-authority/38,Oxfordshire County Council,OPPB CONTCARE H SUPP,5691,,15/09/2016,3110141816,926.10,C3Care Ltd
http://statistics.data.gov.uk/id/local-authority/38,Oxfordshire County Council,OPPB CONTCARE H SUPP,5691,,20/09/2016,3110142231,926.10,C3Care Ltd
http://statistics.data.gov.uk/id/local-authority/38,Oxfordshire County Council,PDPB CONTCARE H SUPP,5691,,23/09/2016,3110145961,952.00,C3Care Ltd
http://statistics.data.gov.uk/id/local-authority/38,Oxfordshire County Council,OPPB CONTCARE H SUPP,5691,,12/09/2016,3110139376,952.70,C3Care Ltd
http://statistics.data.gov.uk/id/local-authority/38,Oxfordshire County Council,PDPB CONTCARE H SUPP,5691,,23/09/2016,3110145927,"1,020.00",C3Care Ltd
http://statistics.data.gov.uk/id/local-authority/38,Oxfordshire County Council,OPPB CONTCARE H SUPP,5691,,28/09/2016,3110145988,"1,217.30",C3Care Ltd
http://statistics.data.gov.uk/id/local-authority/38,Oxfordshire County Council,OPPB CONTCARE H SUPP,5691,,28/09/2016,3110145989,"1,217.30",C3Care Ltd
http://statistics.data.gov.uk/id/local-authority/38,Oxfordshire County Council,OPPB CONTCARE H SUPP,5691,,28/09/2016,3110145998,"3,256.55",C3Care Ltd
http://statistics.data.gov.uk/id/local-authority/38,Oxfordshire County Council,2 YEAR OLD FUNDING,5537,Payments to Other Establishments,13/09/2016,3110140466,"1,297.80",Cabin Pre-School
http://statistics.data.gov.uk/id/local-authority/38,Oxfordshire County Council,NURSERY ED FUND,5537,Payments to Other Establishments,01/09/2016,3110135443,"8,441.58",Cabin Pre-School
http://statistics.data.gov.uk/id/local-authority/38,Oxfordshire County Council,PLACEMENTS- RELEVANT,5785,Client Lodgings and Accommodation,26/09/2016,2200226362,"7,465.50",CALCOT SERVICES FOR CHILDREN
http://statistics.data.gov.uk/id/local-authority/38,Oxfordshire County Council,PLACEMENTS- RELEVANT,5785,Client Lodgings and Accommodation,01/09/2016,2200225791,"7,714.35",CALCOT SERVICES FOR CHILDREN
http://statistics.data.gov.uk/id/local-authority/38,Oxfordshire County Council,PLACEMENTS- RELEVANT,5785,Client Lodgings and Accommodation,30/09/2016,2200229108,"7,714.35",CALCOT SERVICES FOR CHILDREN
http://statistics.data.gov.uk/id/local-authority/38,Oxfordshire County Council,PLACEMENTS- RELEVANT,5785,Client Lodgings and Accommodation,26/09/2016,2200226363,"9,844.28",CALCOT SERVICES FOR CHILDREN
http://statistics.data.gov.uk/id/local-authority/38,Oxfordshire County Council,PLACEMENTS- RELEVANT,5785,Client Lodgings and Accommodation,30/09/2016,2200229110,"9,844.28",CALCOT SERVICES FOR CHILDREN
http://statistics.data.gov.uk/id/local-authority/38,Oxfordshire County Council,PLACEMENTS- RELEVANT,5785,Client Lodgings and Accommodation,01/09/2016,2200225792,"10,172.42",CALCOT SERVICES FOR CHILDREN
http://statistics.data.gov.uk/id/local-authority/38,Oxfordshire County Council,PLACEMENTS- RELEVANT,5785,Client Lodgings and Accommodation,30/09/2016,2200229105,"12,214.28",CALCOT SERVICES FOR CHILDREN
http://statistics.data.gov.uk/id/local-authority/38,Oxfordshire County Council,Mainstream Res,5558,,15/09/2016,2200219371,"14,142.85",Calcot Services For Children
http://statistics.data.gov.uk/id/local-authority/38,Oxfordshire County Council,Mainstream Res,5558,,15/09/2016,2200219374,"20,631.42",Calcot Services For Children
http://statistics.data.gov.uk/id/local-authority/38,Oxfordshire County Council,Mainstream Res,1362,Creditors GR/IR -,22/09/2016,2200224274,"20,663.57",Calcot Services For Children
http://statistics.data.gov.uk/id/local-authority/38,Oxfordshire County Council,Mainstream Res,1362,Creditors GR/IR -,28/09/2016,2200227185,"21,352.35",Calcot Services For Children
http://statistics.data.gov.uk/id/local-authority/38,Oxfordshire County Council,Mainstream Res,5558,,15/09/2016,2200219378,"33,061.70",Calcot Services For Children
http://statistics.data.gov.uk/id/local-authority/38,Oxfordshire County Council,PD COMM SUPP DIDCOT,5899,Adult Social Care - Direct Payments,07/09/2016,3110137721,"1,152.00",Redacted Personal Data
http://statistics.data.gov.uk/id/local-authority/38,Oxfordshire County Council,LD CLIENTS NORTH,5686,,13/09/2016,3110139472,"14,835.17",Cambian Autism Services Ltd
http://statistics.data.gov.uk/id/local-authority/38,Oxfordshire County Council,OUT OF COUNTY,5537,Payments to Other Establishments,16/09/2016,2200220415,"55,789.96",Cambian Autism Services Ltd
http://statistics.data.gov.uk/id/local-authority/38,Oxfordshire County Council,Mainstream Res,1362,Creditors GR/IR -,22/09/2016,2200224711,"12,000.00",Cambian Childcare Ltd
http://statistics.data.gov.uk/id/local-authority/38,Oxfordshire County Council,Mainstream Res,1362,Creditors GR/IR -,22/09/2016,2200224418,"12,400.00",Cambian Childcare Ltd
http://statistics.data.gov.uk/id/local-authority/38,Oxfordshire County Council,Mainstream Res,1362,Creditors GR/IR -,22/09/2016,2200224276,"13,928.70",Cambian Childcare Ltd
http://statistics.data.gov.uk/id/local-authority/38,Oxfordshire County Council,Mainstream Res,1362,Creditors GR/IR -,22/09/2016,2200224708,"13,928.70",Cambian Childcare Ltd
http://statistics.data.gov.uk/id/local-authority/38,Oxfordshire County Council,Mainstream Res,1362,Creditors GR/IR -,22/09/2016,2200224281,"14,392.99",Cambian Childcare Ltd
http://statistics.data.gov.uk/id/local-authority/38,Oxfordshire County Council,Mainstream Res,1362,Creditors GR/IR -,22/09/2016,2200224282,"14,392.99",Cambian Childcare Ltd
http://statistics.data.gov.uk/id/local-authority/38,Oxfordshire County Council,Mainstream Res,1362,Creditors GR/IR -,22/09/2016,2200224419,"14,392.99",Cambian Childcare Ltd
http://statistics.data.gov.uk/id/local-authority/38,Oxfordshire County Council,Mainstream Res,1362,Creditors GR/IR -,22/09/2016,2200224712,"14,857.28",Cambian Childcare Ltd
http://statistics.data.gov.uk/id/local-authority/38,Oxfordshire County Council,Mainstream Res,1362,Creditors GR/IR -,22/09/2016,2200224283,"18,000.00",Cambian Childcare Ltd
http://statistics.data.gov.uk/id/local-authority/38,Oxfordshire County Council,Mainstream Res,1362,Creditors GR/IR -,22/09/2016,2200224285,"18,428.70",Cambian Childcare Ltd
http://statistics.data.gov.uk/id/local-authority/38,Oxfordshire County Council,Mainstream Res,1362,Creditors GR/IR -,22/09/2016,2200224709,"18,428.70",Cambian Childcare Ltd
http://statistics.data.gov.uk/id/local-authority/38,Oxfordshire County Council,Mainstream Res,1362,Creditors GR/IR -,22/09/2016,2200224279,"18,600.00",Cambian Childcare Ltd
http://statistics.data.gov.uk/id/local-authority/38,Oxfordshire County Council,LD CLIENTS SOUTH,5686,,13/09/2016,3110139467,"37,769.91",CAMBIAN LEARNING DISABILITIES LTD
http://statistics.data.gov.uk/id/local-authority/38,Oxfordshire County Council,2 YEAR OLD FUNDING,5537,Payments to Other Establishments,13/09/2016,3110140467,"3,612.21",Camel Pre-School (PFSU)
http://statistics.data.gov.uk/id/local-authority/38,Oxfordshire County Council,NURSERY ED FUND,5537,Payments to Other Establishments,01/09/2016,3110135445,"15,607.97",Camel Pre-School (PFSU)
http://statistics.data.gov.uk/id/local-authority/38,Oxfordshire County Council,LD CLIENTS SOUTH,5899,Adult Social Care - Direct Payments,07/09/2016,3110137800,736.00,Redacted Personal Data
http://statistics.data.gov.uk/id/local-authority/38,Oxfordshire County Council,AIM HIGHER FUNDING,5195,Grant Aid and Donations,09/09/2016,2200215339,500.00,Camp Kef
http://statistics.data.gov.uk/id/local-authority/38,Oxfordshire County Council,LD CLIENTS NORTH,5688,,13/09/2016,3110139804,"3,704.67",Camphill Communities Thornbury
http://statistics.data.gov.uk/id/local-authority/38,Oxfordshire County Council,YP TREATMENT&SERVS,5195,Grant Aid and Donations,27/09/2016,3500021878,"28,333.33",CAN
http://statistics.data.gov.uk/id/local-authority/38,Oxfordshire County Council,HISTORY SERVICE,4861,Hired and Contracted Services,12/09/2016,2200217082,"2,281.42",Capita Business Services Ltd T/A
http://statistics.data.gov.uk/id/local-authority/38,Oxfordshire County Council,FIRE PROJECTS,4861,Hired and Contracted Services,02/09/2016,2200211647,"29,876.00",CAPITA SECURE INFORMATION SOLUTIONS
http://statistics.data.gov.uk/id/local-authority/38,Oxfordshire County Council,Independent Foster,1362,Creditors GR/IR -,22/09/2016,2200224301,"3,563.27",Capstone Foster Care(South West) Li
http://statistics.data.gov.uk/id/local-authority/38,Oxfordshire County Council,UASC 16&17,5559,,26/09/2016,2200226367,"3,214.20",Capstone Vision Foster Care Ltd
http://statistics.data.gov.uk/id/local-authority/38,Oxfordshire County Council,PD COMM SUPP DIDCOT,5899,Adult Social Care - Direct Payments,07/09/2016,3110137121,"3,720.00",Redacted Personal Data
http://statistics.data.gov.uk/id/local-authority/38,Oxfordshire County Council,LD CLIENTS NORTH,5899,Adult Social Care - Direct Payments,07/09/2016,3110137562,916.00,Redacted Personal Data
http://statistics.data.gov.uk/id/local-authority/38,Oxfordshire County Council,OPERATIONS,4407,Equipment,21/09/2016,2200223086,"4,957.50",Cardiac Science Holdings (UK) Ltd
http://statistics.data.gov.uk/id/local-authority/38,Oxfordshire County Council,PD COMM SUPP - CITY,5689,,15/09/2016,3110141093,513.06,Care Outlook Ltd
http://statistics.data.gov.uk/id/local-authority/38,Oxfordshire County Council,CSB - CITY,5689,,15/09/2016,3110141066,518.72,Care Outlook Ltd
http://statistics.data.gov.uk/id/local-authority/38,Oxfordshire County Council,CSB - CITY,5689,,15/09/2016,3110141089,519.86,Care Outlook Ltd
http://statistics.data.gov.uk/id/local-authority/38,Oxfordshire County Council,CSB - CITY,5689,,15/09/2016,3110141049,526.37,Care Outlook Ltd
http://statistics.data.gov.uk/id/local-authority/38,Oxfordshire County Council,CSB - CITY,5689,,15/09/2016,3110141063,530.62,Care Outlook Ltd
http://statistics.data.gov.uk/id/local-authority/38,Oxfordshire County Council,CSB - CITY,5689,,15/09/2016,3110141061,558.38,Care Outlook Ltd
http://statistics.data.gov.uk/id/local-authority/38,Oxfordshire County Council,CSB - CITY,5689,,15/09/2016,3110141080,566.03,Care Outlook Ltd
http://statistics.data.gov.uk/id/local-authority/38,Oxfordshire County Council,CSB - CITY,5689,,15/09/2016,3110141065,590.96,Care Outlook Ltd
http://statistics.data.gov.uk/id/local-authority/38,Oxfordshire County Council,CSB - CITY,5689,,15/09/2016,3110141076,610.23,Care Outlook Ltd
http://statistics.data.gov.uk/id/local-authority/38,Oxfordshire County Council,CSB - CITY,5689,,15/09/2016,3110141055,613.34,Care Outlook Ltd
http://statistics.data.gov.uk/id/local-authority/38,Oxfordshire County Council,CSB - CITY,5689,,15/09/2016,3110141087,632.04,Care Outlook Ltd
http://statistics.data.gov.uk/id/local-authority/38,Oxfordshire County Council,CSB - CITY,5689,,15/09/2016,3110141083,638.27,Care Outlook Ltd
http://statistics.data.gov.uk/id/local-authority/38,Oxfordshire County Council,PD COMM SUPP - CITY,5689,,15/09/2016,3110141094,670.29,Care Outlook Ltd
http://statistics.data.gov.uk/id/local-authority/38,Oxfordshire County Council,CSB - BANBURY,5689,,21/09/2016,3110143245,699.00,Care Outlook Ltd
http://statistics.data.gov.uk/id/local-authority/38,Oxfordshire County Council,CSB - BANBURY,5689,,21/09/2016,3110143243,708.00,Care Outlook Ltd
http://statistics.data.gov.uk/id/local-authority/38,Oxfordshire County Council,CSB - CITY,5689,,15/09/2016,3110141064,715.05,Care Outlook Ltd
http://statistics.data.gov.uk/id/local-authority/38,Oxfordshire County Council,CSB - CITY,5689,,15/09/2016,3110141051,715.33,Care Outlook Ltd
http://statistics.data.gov.uk/id/local-authority/38,Oxfordshire County Council,CSB - CITY,5689,,15/09/2016,3110141050,794.66,Care Outlook Ltd
http://statistics.data.gov.uk/id/local-authority/38,Oxfordshire County Council,CSB - CITY,5689,,15/09/2016,3110141082,919.88,Care Outlook Ltd
http://statistics.data.gov.uk/id/local-authority/38,Oxfordshire County Council,CSB - CITY,5689,,15/09/2016,3110141074,"1,123.85",Care Outlook Ltd
http://statistics.data.gov.uk/id/local-authority/38,Oxfordshire County Council,CSB - CITY,5689,,15/09/2016,3110141070,"1,253.60",Care Outlook Ltd
http://statistics.data.gov.uk/id/local-authority/38,Oxfordshire County Council,CSB - BANBURY,5689,,21/09/2016,3110143244,"1,417.75",Care Outlook Ltd
http://statistics.data.gov.uk/id/local-authority/38,Oxfordshire County Council,CSB - CITY,5689,,15/09/2016,3110141077,"1,475.99",Care Outlook Ltd
http://statistics.data.gov.uk/id/local-authority/38,Oxfordshire County Council,CSB - CITY,5689,,15/09/2016,3110141085,"1,807.46",Care Outlook Ltd
http://statistics.data.gov.uk/id/local-authority/38,Oxfordshire County Council,CSB - BANBURY,5689,,21/09/2016,3110143246,"2,393.75",Care Outlook Ltd
http://statistics.data.gov.uk/id/local-authority/38,Oxfordshire County Council,LAUNDRY SERVICE,4861,Hired and Contracted Services,19/09/2016,2200221324,"5,471.70",Care Outlook Ltd
http://statistics.data.gov.uk/id/local-authority/38,Oxfordshire County Council,LD CLIENTS NORTH,5686,,13/09/2016,3110139673,"9,262.50",Care UK
http://statistics.data.gov.uk/id/local-authority/38,Oxfordshire County Council,LD CLIENTS NORTH,5686,,13/09/2016,3110139525,"12,330.99",Care UK Learning Disabilities
http://statistics.data.gov.uk/id/local-authority/38,Oxfordshire County Council,CMPB WITNEY,5689,,22/09/2016,3110144938,607.05,Care with Care Ltd
http://statistics.data.gov.uk/id/local-authority/38,Oxfordshire County Council,CMPB WITNEY,5689,,22/09/2016,3110144937,660.30,Care with Care Ltd
http://statistics.data.gov.uk/id/local-authority/38,Oxfordshire County Council,OPPB FAST TRACK,5691,,28/09/2016,3110146072,873.30,Care with Care Ltd
http://statistics.data.gov.uk/id/local-authority/38,Oxfordshire County Council,CMPB WITNEY,5689,,22/09/2016,3110144939,979.80,Care with Care Ltd
http://statistics.data.gov.uk/id/local-authority/38,Oxfordshire County Council,OPPB CONTCARE H SUPP,5691,,23/09/2016,3110145941,"1,107.60",Care with Care Ltd
http://statistics.data.gov.uk/id/local-authority/38,Oxfordshire County Council,CSB - DIDCOT,5689,,21/09/2016,3110143767,512.30,Care2Care Ltd
http://statistics.data.gov.uk/id/local-authority/38,Oxfordshire County Council,CSB - ABINGDON,5689,,21/09/2016,3110143794,515.25,Care2Care Ltd
http://statistics.data.gov.uk/id/local-authority/38,Oxfordshire County Council,CSB - ABINGDON,5689,,21/09/2016,3110143817,530.58,Care2Care Ltd
http://statistics.data.gov.uk/id/local-authority/38,Oxfordshire County Council,CSB - DIDCOT,5689,,21/09/2016,3110143752,540.48,Care2Care Ltd
http://statistics.data.gov.uk/id/local-authority/38,Oxfordshire County Council,CSB - ABINGDON,5689,,21/09/2016,3110143804,564.13,Care2Care Ltd
http://statistics.data.gov.uk/id/local-authority/38,Oxfordshire County Council,CSB - DIDCOT,5689,,21/09/2016,3110143743,571.42,Care2Care Ltd
http://statistics.data.gov.uk/id/local-authority/38,Oxfordshire County Council,CSB - ABINGDON,5689,,21/09/2016,3110143822,572.59,Care2Care Ltd
http://statistics.data.gov.uk/id/local-authority/38,Oxfordshire County Council,CSB - DIDCOT,5689,,21/09/2016,3110143733,588.06,Care2Care Ltd
http://statistics.data.gov.uk/id/local-authority/38,Oxfordshire County Council,CSB - ABINGDON,5689,,21/09/2016,3110143814,615.63,Care2Care Ltd
http://statistics.data.gov.uk/id/local-authority/38,Oxfordshire County Council,CSB - ABINGDON,5689,,21/09/2016,3110143795,650.55,Care2Care Ltd
http://statistics.data.gov.uk/id/local-authority/38,Oxfordshire County Council,CSB - DIDCOT,5689,,21/09/2016,3110143749,671.89,Care2Care Ltd
http://statistics.data.gov.uk/id/local-authority/38,Oxfordshire County Council,PD COMM SUPP DIDCOT,5689,,21/09/2016,3110143826,692.89,Care2Care Ltd
http://statistics.data.gov.uk/id/local-authority/38,Oxfordshire County Council,CSB - ABINGDON,5689,,21/09/2016,3110143819,732.21,Care2Care Ltd
http://statistics.data.gov.uk/id/local-authority/38,Oxfordshire County Council,CSB - DIDCOT,5689,,21/09/2016,3110143785,751.74,Care2Care Ltd
http://statistics.data.gov.uk/id/local-authority/38,Oxfordshire County Council,CSB - DIDCOT,5689,,21/09/2016,3110143756,824.61,Care2Care Ltd
http://statistics.data.gov.uk/id/local-authority/38,Oxfordshire County Council,CSB - DIDCOT,5689,,21/09/2016,3110143770,830.18,Care2Care Ltd
http://statistics.data.gov.uk/id/local-authority/38,Oxfordshire County Council,PD COMM SUPP DIDCOT,5689,,21/09/2016,3110143824,864.69,Care2Care Ltd
http://statistics.data.gov.uk/id/local-authority/38,Oxfordshire County Council,CSB - DIDCOT,5689,,21/09/2016,3110143742,892.95,Care2Care Ltd
http://statistics.data.gov.uk/id/local-authority/38,Oxfordshire County Council,CSB - ABINGDON,5689,,21/09/2016,3110143815,930.21,Care2Care Ltd
http://statistics.data.gov.uk/id/local-authority/38,Oxfordshire County Council,CSB - DIDCOT,5689,,21/09/2016,3110143735,995.18,Care2Care Ltd
http://statistics.data.gov.uk/id/local-authority/38,Oxfordshire County Council,CSB - ABINGDON,5689,,21/09/2016,3110143803,"1,028.24",Care2Care Ltd
http://statistics.data.gov.uk/id/local-authority/38,Oxfordshire County Council,CSB - DIDCOT,5689,,21/09/2016,3110143741,"1,076.88",Care2Care Ltd
http://statistics.data.gov.uk/id/local-authority/38,Oxfordshire County Council,CSB - DIDCOT,5689,,21/09/2016,3110143744,"1,105.23",Care2Care Ltd
http://statistics.data.gov.uk/id/local-authority/38,Oxfordshire County Council,CSB - ABINGDON,5689,,21/09/2016,3110143802,"1,114.92",Care2Care Ltd
http://statistics.data.gov.uk/id/local-authority/38,Oxfordshire County Council,CSB - DIDCOT,5689,,21/09/2016,3110143747,"1,187.45",Care2Care Ltd
http://statistics.data.gov.uk/id/local-authority/38,Oxfordshire County Council,CSB - DIDCOT,5689,,21/09/2016,3110143784,"1,328.04",Care2Care Ltd
http://statistics.data.gov.uk/id/local-authority/38,Oxfordshire County Council,CSB - DIDCOT,5689,,21/09/2016,3110143763,"1,337.45",Care2Care Ltd
http://statistics.data.gov.uk/id/local-authority/38,Oxfordshire County Council,CSB - DIDCOT,5689,,21/09/2016,3110143788,"1,338.97",Care2Care Ltd
http://statistics.data.gov.uk/id/local-authority/38,Oxfordshire County Council,CSB - DIDCOT,5689,,21/09/2016,3110143776,"1,373.03",Care2Care Ltd
http://statistics.data.gov.uk/id/local-authority/38,Oxfordshire County Council,CSB - DIDCOT,5689,,21/09/2016,3110143761,"1,381.66",Care2Care Ltd
http://statistics.data.gov.uk/id/local-authority/38,Oxfordshire County Council,CSB - DIDCOT,5689,,21/09/2016,3110143755,"1,435.15",Care2Care Ltd
http://statistics.data.gov.uk/id/local-authority/38,Oxfordshire County Council,CSB - DIDCOT,5689,,21/09/2016,3110143750,"1,436.45",Care2Care Ltd
http://statistics.data.gov.uk/id/local-authority/38,Oxfordshire County Council,CSB - DIDCOT,5689,,21/09/2016,3110143781,"1,572.16",Care2Care Ltd
http://statistics.data.gov.uk/id/local-authority/38,Oxfordshire County Council,CSB - DIDCOT,5689,,21/09/2016,3110143778,"1,594.78",Care2Care Ltd
http://statistics.data.gov.uk/id/local-authority/38,Oxfordshire County Council,CSB - DIDCOT,5689,,21/09/2016,3110143745,"1,655.27",Care2Care Ltd
http://statistics.data.gov.uk/id/local-authority/38,Oxfordshire County Council,CSB - ABINGDON,5689,,21/09/2016,3110143800,"1,919.27",Care2Care Ltd
http://statistics.data.gov.uk/id/local-authority/38,Oxfordshire County Council,OPPB CONTCARE RNCC,5687,,13/09/2016,3110139610,"163,614.86",Carebase (Abingdon) Limited
http://statistics.data.gov.uk/id/local-authority/38,Oxfordshire County Council,CMPB WITNEY,5689,,21/09/2016,3110143202,565.76,Caremark (West Oxfordshire & Cherwe
http://statistics.data.gov.uk/id/local-authority/38,Oxfordshire County Council,CMPB WITNEY,5689,,21/09/2016,3110143226,566.83,Caremark (West Oxfordshire & Cherwe
http://statistics.data.gov.uk/id/local-authority/38,Oxfordshire County Council,CMPB WITNEY,5689,,21/09/2016,3110143225,570.06,Caremark (West Oxfordshire & Cherwe
http://statistics.data.gov.uk/id/local-authority/38,Oxfordshire County Council,CSB - BANBURY,5689,,21/09/2016,3110143179,586.54,Caremark (West Oxfordshire & Cherwe
http://statistics.data.gov.uk/id/local-authority/38,Oxfordshire County Council,CMPB WITNEY,5689,,21/09/2016,3110143220,588.69,Caremark (West Oxfordshire & Cherwe
http://statistics.data.gov.uk/id/local-authority/38,Oxfordshire County Council,OPPB CONTCARE DEL HE,5689,,21/09/2016,3110143166,589.40,Caremark (West Oxfordshire & Cherwe
http://statistics.data.gov.uk/id/local-authority/38,Oxfordshire County Council,PD COMM SUPP WITNEY,5689,,21/09/2016,3110143237,589.40,Caremark (West Oxfordshire & Cherwe
http://statistics.data.gov.uk/id/local-authority/38,Oxfordshire County Council,CSB - BANBURY,5689,,21/09/2016,3110143175,591.20,Caremark (West Oxfordshire & Cherwe
http://statistics.data.gov.uk/id/local-authority/38,Oxfordshire County Council,CMPB WITNEY,5689,,21/09/2016,3110143190,596.93,Caremark (West Oxfordshire & Cherwe
http://statistics.data.gov.uk/id/local-authority/38,Oxfordshire County Council,CMPB WITNEY,5689,,21/09/2016,3110143201,599.44,Caremark (West Oxfordshire & Cherwe
http://statistics.data.gov.uk/id/local-authority/38,Oxfordshire County Council,CMPB WITNEY,5689,,21/09/2016,3110143203,610.18,Caremark (West Oxfordshire & Cherwe
http://statistics.data.gov.uk/id/local-authority/38,Oxfordshire County Council,CMPB WITNEY,5689,,21/09/2016,3110143214,694.74,Caremark (West Oxfordshire & Cherwe
http://statistics.data.gov.uk/id/local-authority/38,Oxfordshire County Council,CSB - BANBURY,5689,,21/09/2016,3110143184,703.34,Caremark (West Oxfordshire & Cherwe
http://statistics.data.gov.uk/id/local-authority/38,Oxfordshire County Council,CMPB WITNEY,5689,,21/09/2016,3110143188,717.32,Caremark (West Oxfordshire & Cherwe
http://statistics.data.gov.uk/id/local-authority/38,Oxfordshire County Council,OPPB CONTCARE DEL HE,5689,,21/09/2016,3110143165,732.01,Caremark (West Oxfordshire & Cherwe
http://statistics.data.gov.uk/id/local-authority/38,Oxfordshire County Council,CMPB WITNEY,5689,,21/09/2016,3110143217,744.19,Caremark (West Oxfordshire & Cherwe
http://statistics.data.gov.uk/id/local-authority/38,Oxfordshire County Council,CMPB WITNEY,5689,,21/09/2016,3110143204,773.21,Caremark (West Oxfordshire & Cherwe
http://statistics.data.gov.uk/id/local-authority/38,Oxfordshire County Council,CMPB WITNEY,5689,,21/09/2016,3110143216,840.21,Caremark (West Oxfordshire & Cherwe
http://statistics.data.gov.uk/id/local-authority/38,Oxfordshire County Council,CSB - BANBURY,5689,,21/09/2016,3110143177,857.05,Caremark (West Oxfordshire & Cherwe
http://statistics.data.gov.uk/id/local-authority/38,Oxfordshire County Council,PD COMM SUPP WITNEY,5689,,21/09/2016,3110143235,866.73,Caremark (West Oxfordshire & Cherwe
http://statistics.data.gov.uk/id/local-authority/38,Oxfordshire County Council,CMPB WITNEY,5689,,21/09/2016,3110143200,891.09,Caremark (West Oxfordshire & Cherwe
http://statistics.data.gov.uk/id/local-authority/38,Oxfordshire County Council,CMPB WITNEY,5689,,21/09/2016,3110143210,936.60,Caremark (West Oxfordshire & Cherwe
http://statistics.data.gov.uk/id/local-authority/38,Oxfordshire County Council,CMPB WITNEY,5689,,21/09/2016,3110143222,986.76,Caremark (West Oxfordshire & Cherwe
http://statistics.data.gov.uk/id/local-authority/38,Oxfordshire County Council,CMPB WITNEY,5689,,21/09/2016,3110143227,"1,129.72",Caremark (West Oxfordshire & Cherwe
http://statistics.data.gov.uk/id/local-authority/38,Oxfordshire County Council,CMPB WITNEY,5689,,21/09/2016,3110143196,"1,142.62",Caremark (West Oxfordshire & Cherwe
http://statistics.data.gov.uk/id/local-authority/38,Oxfordshire County Council,CSB - BANBURY,5689,,21/09/2016,3110143178,"1,156.59",Caremark (West Oxfordshire & Cherwe
http://statistics.data.gov.uk/id/local-authority/38,Oxfordshire County Council,CMPB WITNEY,5689,,21/09/2016,3110143194,"1,180.24",Caremark (West Oxfordshire & Cherwe
http://statistics.data.gov.uk/id/local-authority/38,Oxfordshire County Council,CMPB WITNEY,5689,,21/09/2016,3110143212,"1,181.32",Caremark (West Oxfordshire & Cherwe
http://statistics.data.gov.uk/id/local-authority/38,Oxfordshire County Council,CMPB WITNEY,5689,,21/09/2016,3110143213,"1,211.77",Caremark (West Oxfordshire & Cherwe
http://statistics.data.gov.uk/id/local-authority/38,Oxfordshire County Council,PDPB CONTCARE H SUPP,5689,,21/09/2016,3110143232,"1,268.74",Caremark (West Oxfordshire & Cherwe
http://statistics.data.gov.uk/id/local-authority/38,Oxfordshire County Council,CMPB WITNEY,5689,,21/09/2016,3110143224,"1,359.75",Caremark (West Oxfordshire & Cherwe
http://statistics.data.gov.uk/id/local-authority/38,Oxfordshire County Council,CMPB WITNEY,5689,,21/09/2016,3110143211,"1,380.53",Caremark (West Oxfordshire & Cherwe
http://statistics.data.gov.uk/id/local-authority/38,Oxfordshire County Council,CSB - BANBURY,5689,,21/09/2016,3110143176,"1,432.13",Caremark (West Oxfordshire & Cherwe
http://statistics.data.gov.uk/id/local-authority/38,Oxfordshire County Council,CMPB WITNEY,5689,,21/09/2016,3110143198,"1,454.34",Caremark (West Oxfordshire & Cherwe
http://statistics.data.gov.uk/id/local-authority/38,Oxfordshire County Council,CMPB WITNEY,5689,,21/09/2016,3110143209,"1,507.37",Caremark (West Oxfordshire & Cherwe
http://statistics.data.gov.uk/id/local-authority/38,Oxfordshire County Council,CSB - BANBURY,5689,,21/09/2016,3110143183,"1,606.62",Caremark (West Oxfordshire & Cherwe
http://statistics.data.gov.uk/id/local-authority/38,Oxfordshire County Council,CMPB WITNEY,5689,,21/09/2016,3110143199,"1,790.43",Caremark (West Oxfordshire & Cherwe
http://statistics.data.gov.uk/id/local-authority/38,Oxfordshire County Council,PD COMM SUPP BANB,5689,,21/09/2016,3110143233,"2,027.62",Caremark (West Oxfordshire & Cherwe
http://statistics.data.gov.uk/id/local-authority/38,Oxfordshire County Council,CMPB WITNEY,5689,,21/09/2016,3110143195,"2,116.12",Caremark (West Oxfordshire & Cherwe
http://statistics.data.gov.uk/id/local-authority/38,Oxfordshire County Council,PD COMM SUPP WITNEY,5689,,21/09/2016,3110143234,"2,207.84",Caremark (West Oxfordshire & Cherwe
http://statistics.data.gov.uk/id/local-authority/38,Oxfordshire County Council,CMPB WITNEY,5689,,21/09/2016,3110143193,"2,210.35",Caremark (West Oxfordshire & Cherwe
http://statistics.data.gov.uk/id/local-authority/38,Oxfordshire County Council,CMPB WITNEY,5689,,21/09/2016,3110143218,"2,807.28",Caremark (West Oxfordshire & Cherwe
http://statistics.data.gov.uk/id/local-authority/38,Oxfordshire County Council,CMPB WITNEY,5689,,09/09/2016,3110139112,"4,709.27",Caremark (West Oxfordshire & Cherwe
http://statistics.data.gov.uk/id/local-authority/38,Oxfordshire County Council,LD CLIENTS NORTH,5688,,13/09/2016,3110139795,"8,487.60",Caretech Community Services Ltd
http://statistics.data.gov.uk/id/local-authority/38,Oxfordshire County Council,LD CLIENTS NORTH,5686,,13/09/2016,3110139483,"24,571.03",Caretech Community Services Ltd
http://statistics.data.gov.uk/id/local-authority/38,Oxfordshire County Council,CSB - DIDCOT,5689,,21/09/2016,3110143595,545.86,Caretree Ltd
http://statistics.data.gov.uk/id/local-authority/38,Oxfordshire County Council,CSB - ABINGDON,5689,,21/09/2016,3110143608,664.21,Caretree Ltd
http://statistics.data.gov.uk/id/local-authority/38,Oxfordshire County Council,CSB - DIDCOT,5689,,21/09/2016,3110143594,714.65,Caretree Ltd
http://statistics.data.gov.uk/id/local-authority/38,Oxfordshire County Council,CSB - DIDCOT,5689,,21/09/2016,3110143599,872.03,Caretree Ltd
http://statistics.data.gov.uk/id/local-authority/38,Oxfordshire County Council,CSB - ABINGDON,5689,,21/09/2016,3110143603,"1,078.36",Caretree Ltd
http://statistics.data.gov.uk/id/local-authority/38,Oxfordshire County Council,CSB - ABINGDON,5689,,21/09/2016,3110143606,"1,191.30",Caretree Ltd
http://statistics.data.gov.uk/id/local-authority/38,Oxfordshire County Council,CSB - DIDCOT,5689,,21/09/2016,3110143601,"1,233.78",Caretree Ltd
http://statistics.data.gov.uk/id/local-authority/38,Oxfordshire County Council,OPPB CONTCARE DEL HE,5689,,21/09/2016,3110143587,"1,253.10",Caretree Ltd
http://statistics.data.gov.uk/id/local-authority/38,Oxfordshire County Council,CSB - ABINGDON,5689,,21/09/2016,3110143607,"1,474.21",Caretree Ltd
http://statistics.data.gov.uk/id/local-authority/38,Oxfordshire County Council,CSB - ABINGDON,5689,,21/09/2016,3110143604,"2,239.38",Caretree Ltd
http://statistics.data.gov.uk/id/local-authority/38,Oxfordshire County Council,CSB - DIDCOT,5689,,21/09/2016,3110143592,"2,666.41",Caretree Ltd
http://statistics.data.gov.uk/id/local-authority/38,Oxfordshire County Council,CSB - DIDCOT,5689,,21/09/2016,3110143593,"2,712.29",Caretree Ltd
http://statistics.data.gov.uk/id/local-authority/38,Oxfordshire County Council,CSB - ABINGDON,5689,,21/09/2016,3110143602,"2,766.38",Caretree Ltd
http://statistics.data.gov.uk/id/local-authority/38,Oxfordshire County Council,PD COMM SUPP DIDCOT,5689,,21/09/2016,3110143609,"2,842.66",Caretree Ltd
http://statistics.data.gov.uk/id/local-authority/38,Oxfordshire County Council,CSB - DIDCOT,5689,,21/09/2016,3110143598,"3,166.72",Caretree Ltd
http://statistics.data.gov.uk/id/local-authority/38,Oxfordshire County Council,CSB - DIDCOT,5689,,21/09/2016,3110143597,"3,372.82",Caretree Ltd
http://statistics.data.gov.uk/id/local-authority/38,Oxfordshire County Council,OUT OF COUNTY,5537,Payments to Other Establishments,26/09/2016,2200225740,"4,400.00",Carfax College
http://statistics.data.gov.uk/id/local-authority/38,Oxfordshire County Council,BICESTER DC,4092,General Refuse Collection and Disposal,06/09/2016,2200213168,616.20,Carillion
http://statistics.data.gov.uk/id/local-authority/38,Oxfordshire County Council,CNTRACT & PERF MGMNT,5526,Payments to Private Contractors,21/09/2016,2200223143,"-24,661.98",Carillion LGS Ltd
http://statistics.data.gov.uk/id/local-authority/38,Oxfordshire County Council,CAP CHRGES-PREM,8102,Payments to main contractor,16/09/2016,2200220589,"-10,462.90",Carillion LGS Ltd
http://statistics.data.gov.uk/id/local-authority/38,Oxfordshire County Council,ASTON & COTE  BAMPTO,3787,Premises Repairs,23/09/2016,2200225233,616.00,Carillion LGS Ltd
http://statistics.data.gov.uk/id/local-authority/38,Oxfordshire County Council,LONGFIELDS  BICESTER,3787,Premises Repairs,23/09/2016,2200225226,621.60,Carillion LGS Ltd
http://statistics.data.gov.uk/id/local-authority/38,Oxfordshire County Council,HARD FM,3787,Premises Repairs,15/09/2016,2200219423,644.57,Carillion LGS Ltd
http://statistics.data.gov.uk/id/local-authority/38,Oxfordshire County Council,SCHOOLS FM,3787,Premises Repairs,15/09/2016,2200220157,649.55,Carillion LGS Ltd
http://statistics.data.gov.uk/id/local-authority/38,Oxfordshire County Council,THE LEYS CC,4861,Hired and Contracted Services,13/09/2016,2200217693,675.00,Carillion LGS Ltd
http://statistics.data.gov.uk/id/local-authority/38,Oxfordshire County Council,THE LEYS CC,4861,Hired and Contracted Services,26/09/2016,2200225973,675.00,Carillion LGS Ltd
http://statistics.data.gov.uk/id/local-authority/38,Oxfordshire County Council,SCHOOLS FM,3787,Premises Repairs,16/09/2016,2200220229,693.68,Carillion LGS Ltd
http://statistics.data.gov.uk/id/local-authority/38,Oxfordshire County Council,WILLIAM MORRIS  BANB,3787,Premises Repairs,23/09/2016,2200225218,694.40,Carillion LGS Ltd
http://statistics.data.gov.uk/id/local-authority/38,Oxfordshire County Council,CORPORATE LANDLORD,4070,Cleaning services,09/09/2016,2200215792,871.42,Carillion LGS Ltd
http://statistics.data.gov.uk/id/local-authority/38,Oxfordshire County Council,HARD FM,3787,Premises Repairs,22/09/2016,2200224784,883.98,Carillion LGS Ltd
http://statistics.data.gov.uk/id/local-authority/38,Oxfordshire County Council,HARD FM,3787,Premises Repairs,12/09/2016,2200217264,940.17,Carillion LGS Ltd
http://statistics.data.gov.uk/id/local-authority/38,Oxfordshire County Council,SCHOOLS FM,3787,Premises Repairs,16/09/2016,2200220811,"1,007.98",Carillion LGS Ltd
http://statistics.data.gov.uk/id/local-authority/38,Oxfordshire County Council,SCHOOLS FM,4665,Catering,14/09/2016,2200218357,"1,010.20",Carillion LGS Ltd
http://statistics.data.gov.uk/id/local-authority/38,Oxfordshire County Council,CNTRACT & PERF MGMNT,3787,Premises Repairs,15/09/2016,2200219333,"1,043.58",Carillion LGS Ltd
http://statistics.data.gov.uk/id/local-authority/38,Oxfordshire County Council,CNTRACT & PERF MGMNT,3787,Premises Repairs,15/09/2016,2200219343,"1,043.58",Carillion LGS Ltd
http://statistics.data.gov.uk/id/local-authority/38,Oxfordshire County Council,CNTRACT & PERF MGMNT,3787,Premises Repairs,15/09/2016,2200219344,"1,043.58",Carillion LGS Ltd
http://statistics.data.gov.uk/id/local-authority/38,Oxfordshire County Council,CNTRACT & PERF MGMNT,3787,Premises Repairs,15/09/2016,2200219386,"1,043.58",Carillion LGS Ltd
http://statistics.data.gov.uk/id/local-authority/38,Oxfordshire County Council,CNTRACT & PERF MGMNT,3787,Premises Repairs,15/09/2016,2200219407,"1,043.58",Carillion LGS Ltd
http://statistics.data.gov.uk/id/local-authority/38,Oxfordshire County Council,CNTRACT & PERF MGMNT,3787,Premises Repairs,15/09/2016,2200219410,"1,043.58",Carillion LGS Ltd
http://statistics.data.gov.uk/id/local-authority/38,Oxfordshire County Council,CNTRACT & PERF MGMNT,3787,Premises Repairs,15/09/2016,2200219449,"1,043.58",Carillion LGS Ltd
http://statistics.data.gov.uk/id/local-authority/38,Oxfordshire County Council,CNTRACT & PERF MGMNT,3787,Premises Repairs,15/09/2016,2200219496,"1,043.58",Carillion LGS Ltd
http://statistics.data.gov.uk/id/local-authority/38,Oxfordshire County Council,CNTRACT & PERF MGMNT,3787,Premises Repairs,15/09/2016,2200219497,"1,043.58",Carillion LGS Ltd
http://statistics.data.gov.uk/id/local-authority/38,Oxfordshire County Council,CNTRACT & PERF MGMNT,3787,Premises Repairs,15/09/2016,2200219544,"1,043.58",Carillion LGS Ltd
http://statistics.data.gov.uk/id/local-authority/38,Oxfordshire County Council,CNTRACT & PERF MGMNT,3787,Premises Repairs,15/09/2016,2200219546,"1,043.58",Carillion LGS Ltd
http://statistics.data.gov.uk/id/local-authority/38,Oxfordshire County Council,CNTRACT & PERF MGMNT,3787,Premises Repairs,15/09/2016,2200220014,"1,043.58",Carillion LGS Ltd
http://statistics.data.gov.uk/id/local-authority/38,Oxfordshire County Council,CNTRACT & PERF MGMNT,3787,Premises Repairs,15/09/2016,2200219535,"1,104.97",Carillion LGS Ltd
http://statistics.data.gov.uk/id/local-authority/38,Oxfordshire County Council,SALIX FUNDED ENERGY,8102,Payments to main contractor,22/09/2016,2200224422,"1,159.20",Carillion LGS Ltd
http://statistics.data.gov.uk/id/local-authority/38,Oxfordshire County Council,ST ANDREWS  CHINNOR,3787,Premises Repairs,23/09/2016,2200225087,"1,164.80",Carillion LGS Ltd
http://statistics.data.gov.uk/id/local-authority/38,Oxfordshire County Council,CNTRACT & PERF MGMNT,3787,Premises Repairs,15/09/2016,2200219337,"1,227.74",Carillion LGS Ltd
http://statistics.data.gov.uk/id/local-authority/38,Oxfordshire County Council,HARD FM,3787,Premises Repairs,22/09/2016,2200224756,"1,280.41",Carillion LGS Ltd
http://statistics.data.gov.uk/id/local-authority/38,Oxfordshire County Council,HARD FM,3787,Premises Repairs,15/09/2016,2200219746,"1,289.13",Carillion LGS Ltd
http://statistics.data.gov.uk/id/local-authority/38,Oxfordshire County Council,CNTRACT & PERF MGMNT,3787,Premises Repairs,22/09/2016,2200224315,"1,289.13",Carillion LGS Ltd
http://statistics.data.gov.uk/id/local-authority/38,Oxfordshire County Council,HARD FM,3787,Premises Repairs,12/09/2016,2200217214,"1,332.83",Carillion LGS Ltd
http://statistics.data.gov.uk/id/local-authority/38,Oxfordshire County Council,THE MILL,5394,Other Expenses,15/09/2016,2200219543,"1,349.29",Carillion LGS Ltd
http://statistics.data.gov.uk/id/local-authority/38,Oxfordshire County Council,ICKNIELD COMM COLLEG,3787,Premises Repairs,23/09/2016,2200225242,"1,411.20",Carillion LGS Ltd
http://statistics.data.gov.uk/id/local-authority/38,Oxfordshire County Council,CNTRACT & PERF MGMNT,3787,Premises Repairs,15/09/2016,2200219345,"1,473.29",Carillion LGS Ltd
http://statistics.data.gov.uk/id/local-authority/38,Oxfordshire County Council,WITNEY CP SCHOOL,3787,Premises Repairs,23/09/2016,2200225212,"1,814.40",Carillion LGS Ltd
http://statistics.data.gov.uk/id/local-authority/38,Oxfordshire County Council,CNTRACT & PERF MGMNT,3787,Premises Repairs,15/09/2016,2200219384,"1,841.62",Carillion LGS Ltd
http://statistics.data.gov.uk/id/local-authority/38,Oxfordshire County Council,HARD FM,3787,Premises Repairs,15/09/2016,2200219411,"2,141.42",Carillion LGS Ltd
http://statistics.data.gov.uk/id/local-authority/38,Oxfordshire County Council,PROGRAMME OFFICE,5526,Payments to Private Contractors,13/09/2016,2200218226,"2,291.67",Carillion LGS Ltd
http://statistics.data.gov.uk/id/local-authority/38,Oxfordshire County Council,CORPORATE LANDLORD,3787,Premises Repairs,15/09/2016,2200219531,"2,332.71",Carillion LGS Ltd
http://statistics.data.gov.uk/id/local-authority/38,Oxfordshire County Council,SOFT FM,3787,Premises Repairs,15/09/2016,2200219418,"2,724.59",Carillion LGS Ltd
http://statistics.data.gov.uk/id/local-authority/38,Oxfordshire County Council,CORPORATE LANDLORD,8102,Payments to main contractor,16/09/2016,2200220569,"2,741.37",Carillion LGS Ltd
http://statistics.data.gov.uk/id/local-authority/38,Oxfordshire County Council,HARD FM,4122,Other premises related costs,14/09/2016,2200218358,"3,518.74",Carillion LGS Ltd
http://statistics.data.gov.uk/id/local-authority/38,Oxfordshire County Council,HARD FM,3787,Premises Repairs,22/09/2016,2200224302,"3,726.16",Carillion LGS Ltd
http://statistics.data.gov.uk/id/local-authority/38,Oxfordshire County Council,HARD FM,3787,Premises Repairs,12/09/2016,2200217271,"4,103.76",Carillion LGS Ltd
http://statistics.data.gov.uk/id/local-authority/38,Oxfordshire County Council,COMMUNICATIONS,4122,Other premises related costs,22/09/2016,2200224714,"4,428.48",Carillion LGS Ltd
http://statistics.data.gov.uk/id/local-authority/38,Oxfordshire County Council,SOFT FM,4070,Cleaning services,26/09/2016,2200226234,"4,920.02",Carillion LGS Ltd
http://statistics.data.gov.uk/id/local-authority/38,Oxfordshire County Council,SCHOOLS FM,4531,Materials,16/09/2016,2200220263,"5,461.66",Carillion LGS Ltd
http://statistics.data.gov.uk/id/local-authority/38,Oxfordshire County Council,HARD FM,4122,Other premises related costs,15/09/2016,2200219557,"5,547.18",Carillion LGS Ltd
http://statistics.data.gov.uk/id/local-authority/38,Oxfordshire County Council,HIGHWAYS GENERAL,8102,Payments to main contractor,14/09/2016,2200218681,"5,623.51",Carillion LGS Ltd
http://statistics.data.gov.uk/id/local-authority/38,Oxfordshire County Council,HARD FM,3787,Premises Repairs,12/09/2016,2200217278,"5,626.71",Carillion LGS Ltd
http://statistics.data.gov.uk/id/local-authority/38,Oxfordshire County Council,RESOURCE EFFICIENCY,5526,Payments to Private Contractors,22/09/2016,2200224421,"5,790.20",Carillion LGS Ltd
http://statistics.data.gov.uk/id/local-authority/38,Oxfordshire County Council,CNTRACT & PERF MGMNT,5526,Payments to Private Contractors,14/09/2016,2200218367,"5,817.50",Carillion LGS Ltd
http://statistics.data.gov.uk/id/local-authority/38,Oxfordshire County Council,CNTRACT & PERF MGMNT,5526,Payments to Private Contractors,13/09/2016,2200217917,"6,190.17",Carillion LGS Ltd
http://statistics.data.gov.uk/id/local-authority/38,Oxfordshire County Council,CORPORATE LANDLORD,8102,Payments to main contractor,16/09/2016,2200220461,"6,806.50",Carillion LGS Ltd
http://statistics.data.gov.uk/id/local-authority/38,Oxfordshire County Council,HARD FM,3787,Premises Repairs,12/09/2016,2200217216,"7,201.13",Carillion LGS Ltd
http://statistics.data.gov.uk/id/local-authority/38,Oxfordshire County Council,CORPORATE LANDLORD,8102,Payments to main contractor,16/09/2016,2200220590,"7,388.13",Carillion LGS Ltd
http://statistics.data.gov.uk/id/local-authority/38,Oxfordshire County Council,SCHOOLS FM,4122,Other premises related costs,16/09/2016,2200220814,"7,408.21",Carillion LGS Ltd
http://statistics.data.gov.uk/id/local-authority/38,Oxfordshire County Council,HARD FM,3787,Premises Repairs,15/09/2016,2200219409,"7,825.17",Carillion LGS Ltd
http://statistics.data.gov.uk/id/local-authority/38,Oxfordshire County Council,HARD FM,3787,Premises Repairs,15/09/2016,2200219562,"8,525.92",Carillion LGS Ltd
http://statistics.data.gov.uk/id/local-authority/38,Oxfordshire County Council,CAP CHRGES-PREM,8102,Payments to main contractor,16/09/2016,2200220392,"10,462.90",Carillion LGS Ltd
http://statistics.data.gov.uk/id/local-authority/38,Oxfordshire County Council,CAP CHRGES-PREM,8102,Payments to main contractor,16/09/2016,2200220457,"10,462.90",Carillion LGS Ltd
http://statistics.data.gov.uk/id/local-authority/38,Oxfordshire County Council,CAP CHRGES-PREM,8102,Payments to main contractor,16/09/2016,2200220463,"10,462.90",Carillion LGS Ltd
http://statistics.data.gov.uk/id/local-authority/38,Oxfordshire County Council,CAP CHRGES-PREM,8102,Payments to main contractor,16/09/2016,2200220593,"10,462.90",Carillion LGS Ltd
http://statistics.data.gov.uk/id/local-authority/38,Oxfordshire County Council,CAP CHRGES-PREM,8102,Payments to main contractor,16/09/2016,2200220604,"10,462.90",Carillion LGS Ltd
http://statistics.data.gov.uk/id/local-authority/38,Oxfordshire County Council,CAP CHRGES-PREM,8102,Payments to main contractor,16/09/2016,2200220689,"10,462.90",Carillion LGS Ltd
http://statistics.data.gov.uk/id/local-authority/38,Oxfordshire County Council,CAP CHRGES-PREM,8102,Payments to main contractor,20/09/2016,2200222887,"10,462.90",Carillion LGS Ltd
http://statistics.data.gov.uk/id/local-authority/38,Oxfordshire County Council,CAP CHRGES-PREM,8102,Payments to main contractor,22/09/2016,2200224312,"10,462.90",Carillion LGS Ltd
http://statistics.data.gov.uk/id/local-authority/38,Oxfordshire County Council,CNTRACT & PERF MGMNT,5526,Payments to Private Contractors,14/09/2016,2200218364,"11,205.60",Carillion LGS Ltd
http://statistics.data.gov.uk/id/local-authority/38,Oxfordshire County Council,CORPORATE LANDLORD,3942,Hire of Accommodation and Facilities,14/09/2016,2200218691,"11,320.66",Carillion LGS Ltd
http://statistics.data.gov.uk/id/local-authority/38,Oxfordshire County Council,SCHOOLS FM,3787,Premises Repairs,15/09/2016,2200220107,"12,067.87",Carillion LGS Ltd
http://statistics.data.gov.uk/id/local-authority/38,Oxfordshire County Council,HARD FM,3787,Premises Repairs,12/09/2016,2200217219,"13,108.44",Carillion LGS Ltd
http://statistics.data.gov.uk/id/local-authority/38,Oxfordshire County Council,HARD FM,3787,Premises Repairs,12/09/2016,2200217265,"13,640.20",Carillion LGS Ltd
http://statistics.data.gov.uk/id/local-authority/38,Oxfordshire County Council,HIGHWAYS GENERAL,8102,Payments to main contractor,14/09/2016,2200218686,"13,655.91",Carillion LGS Ltd
http://statistics.data.gov.uk/id/local-authority/38,Oxfordshire County Council,HARD FM,3787,Premises Repairs,15/09/2016,2200219711,"13,793.25",Carillion LGS Ltd
http://statistics.data.gov.uk/id/local-authority/38,Oxfordshire County Council,CNTRACT & PERF MGMNT,5526,Payments to Private Contractors,26/09/2016,2200226343,"14,153.83",Carillion LGS Ltd
http://statistics.data.gov.uk/id/local-authority/38,Oxfordshire County Council,HARD FM,5526,Payments to Private Contractors,20/09/2016,2200222968,"14,689.08",Carillion LGS Ltd
http://statistics.data.gov.uk/id/local-authority/38,Oxfordshire County Council,HARD FM,3787,Premises Repairs,15/09/2016,2200219772,"17,704.51",Carillion LGS Ltd
http://statistics.data.gov.uk/id/local-authority/38,Oxfordshire County Council,CNTRACT & PERF MGMNT,5526,Payments to Private Contractors,19/09/2016,2200221240,"22,916.67",Carillion LGS Ltd
http://statistics.data.gov.uk/id/local-authority/38,Oxfordshire County Council,SOFT FM,5526,Payments to Private Contractors,23/09/2016,2200225005,"23,414.52",Carillion LGS Ltd
http://statistics.data.gov.uk/id/local-authority/38,Oxfordshire County Council,HARD FM,3787,Premises Repairs,16/09/2016,2200220450,"26,494.31",Carillion LGS Ltd
http://statistics.data.gov.uk/id/local-authority/38,Oxfordshire County Council,CNTRACT & PERF MGMNT,5526,Payments to Private Contractors,19/09/2016,2200221229,"26,681.71",Carillion LGS Ltd
http://statistics.data.gov.uk/id/local-authority/38,Oxfordshire County Council,CORPORATE LANDLORD,8102,Payments to main contractor,22/09/2016,2200224310,"47,322.20",Carillion LGS Ltd
http://statistics.data.gov.uk/id/local-authority/38,Oxfordshire County Council,PROGRAMME OFFICE,5526,Payments to Private Contractors,09/09/2016,2200215286,"59,866.33",Carillion LGS Ltd
http://statistics.data.gov.uk/id/local-authority/38,Oxfordshire County Council,PROGRAMME OFFICE,5526,Payments to Private Contractors,14/09/2016,2200218368,"59,866.33",Carillion LGS Ltd
http://statistics.data.gov.uk/id/local-authority/38,Oxfordshire County Council,CNTRACT & PERF MGMNT,5526,Payments to Private Contractors,14/09/2016,2200218365,"70,491.08",Carillion LGS Ltd
http://statistics.data.gov.uk/id/local-authority/38,Oxfordshire County Council,CAP CHRGES-PREM,8102,Payments to main contractor,14/09/2016,2200218485,"80,536.49",Carillion LGS Ltd
http://statistics.data.gov.uk/id/local-authority/38,Oxfordshire County Council,SOFT FM,5526,Payments to Private Contractors,23/09/2016,2200224955,"102,532.53",Carillion LGS Ltd
http://statistics.data.gov.uk/id/local-authority/38,Oxfordshire County Council,HARD FM,3787,Premises Repairs,19/09/2016,2200221242,"114,425.50",Carillion LGS Ltd
http://statistics.data.gov.uk/id/local-authority/38,Oxfordshire County Council,CAP CHRGES-PREM,8102,Payments to main contractor,14/09/2016,2200218698,"150,421.60",Carillion LGS Ltd
http://statistics.data.gov.uk/id/local-authority/38,Oxfordshire County Council,FPT SOUTH/VALE,2040,Agency Staff,15/09/2016,2200219187,"-2,174.00",Caritas Recruitment Ltd
http://statistics.data.gov.uk/id/local-authority/38,Oxfordshire County Council,EMERGENCY DUTY TEAM,2040,Agency Staff,05/09/2016,2200212667,"-1,800.00",Caritas Recruitment Ltd
http://statistics.data.gov.uk/id/local-authority/38,Oxfordshire County Council,ASSESS TEAM CITY,2040,Agency Staff,15/09/2016,2200219194,"-1,439.30",Caritas Recruitment Ltd
http://statistics.data.gov.uk/id/local-authority/38,Oxfordshire County Council,ASSESS TEAM CITY,2040,Agency Staff,15/09/2016,2200219195,"-1,439.30",Caritas Recruitment Ltd
http://statistics.data.gov.uk/id/local-authority/38,Oxfordshire County Council,FAM SUPP CITY 2,2040,Agency Staff,23/09/2016,2200225356,"-1,254.30",Caritas Recruitment Ltd
http://statistics.data.gov.uk/id/local-authority/38,Oxfordshire County Council,LOCALITY TEAM - CITY,2040,Agency Staff,07/09/2016,2200213704,"-1,217.30",Caritas Recruitment Ltd
http://statistics.data.gov.uk/id/local-authority/38,Oxfordshire County Council,THRIVING FAMILY SOTH,2040,Agency Staff,15/09/2016,2200219190,"-1,092.00",Caritas Recruitment Ltd
http://statistics.data.gov.uk/id/local-authority/38,Oxfordshire County Council,ASSESS TEAM CITY,2040,Agency Staff,15/09/2016,2200219181,-691.60,Caritas Recruitment Ltd
http://statistics.data.gov.uk/id/local-authority/38,Oxfordshire County Council,ASSESS TEAM CITY,2040,Agency Staff,13/09/2016,3110141505,509.60,Caritas Recruitment Ltd
http://statistics.data.gov.uk/id/local-authority/38,Oxfordshire County Council,LITTLEMORE HUB,2040,Agency Staff,08/09/2016,2200214675,540.00,Caritas Recruitment Ltd
http://statistics.data.gov.uk/id/local-authority/38,Oxfordshire County Council,THRIVING FAMILY SOTH,2040,Agency Staff,12/09/2016,2200217286,546.00,Caritas Recruitment Ltd
http://statistics.data.gov.uk/id/local-authority/38,Oxfordshire County Council,DIDCOT HUB,2040,Agency Staff,22/09/2016,2200224359,585.60,Caritas Recruitment Ltd
http://statistics.data.gov.uk/id/local-authority/38,Oxfordshire County Council,ASSESS TEAM CITY,2040,Agency Staff,13/09/2016,3110141506,691.60,Caritas Recruitment Ltd
http://statistics.data.gov.uk/id/local-authority/38,Oxfordshire County Council,LOCALITY TEAM - CITY,2040,Agency Staff,13/09/2016,3110141603,740.25,Caritas Recruitment Ltd
http://statistics.data.gov.uk/id/local-authority/38,Oxfordshire County Council,EMERGENCY DUTY TEAM,2040,Agency Staff,07/09/2016,2200213738,800.00,Caritas Recruitment Ltd
http://statistics.data.gov.uk/id/local-authority/38,Oxfordshire County Council,FAM SUPP NORTH,2040,Agency Staff,15/09/2016,2200219274,819.00,Caritas Recruitment Ltd
http://statistics.data.gov.uk/id/local-authority/38,Oxfordshire County Council,MASH PROJECT,2040,Agency Staff,06/09/2016,2200213236,873.60,Caritas Recruitment Ltd
http://statistics.data.gov.uk/id/local-authority/38,Oxfordshire County Council,ASSESS TEAM CITY,2040,Agency Staff,13/09/2016,3110141572,875.25,Caritas Recruitment Ltd
http://statistics.data.gov.uk/id/local-authority/38,Oxfordshire County Council,EMERGENCY DUTY TEAM,2040,Agency Staff,13/09/2016,3110141511,900.00,Caritas Recruitment Ltd
http://statistics.data.gov.uk/id/local-authority/38,Oxfordshire County Council,ASSESS TEAM CITY,2040,Agency Staff,08/09/2016,2200214672,920.25,Caritas Recruitment Ltd
http://statistics.data.gov.uk/id/local-authority/38,Oxfordshire County Council,FAM SUPP CITY 1,2040,Agency Staff,22/09/2016,2200224335,935.25,Caritas Recruitment Ltd
http://statistics.data.gov.uk/id/local-authority/38,Oxfordshire County Council,FPT SOUTH/VALE,2040,Agency Staff,13/09/2016,3110141519,964.60,Caritas Recruitment Ltd
http://statistics.data.gov.uk/id/local-authority/38,Oxfordshire County Council,LOCALITY TEAM - CITY,2040,Agency Staff,15/09/2016,2200219300,987.00,Caritas Recruitment Ltd
http://statistics.data.gov.uk/id/local-authority/38,Oxfordshire County Council,LOOKED AFTER NORTH,2040,Agency Staff,13/09/2016,3110141587,"1,001.00",Caritas Recruitment Ltd
http://statistics.data.gov.uk/id/local-authority/38,Oxfordshire County Council,ASSESSMENT TEAM NORT,2040,Agency Staff,15/09/2016,2200219214,"1,048.79",Caritas Recruitment Ltd
http://statistics.data.gov.uk/id/local-authority/38,Oxfordshire County Council,LOCALITY TEAM - CITY,2040,Agency Staff,22/09/2016,2200224754,"1,052.80",Caritas Recruitment Ltd
http://statistics.data.gov.uk/id/local-authority/38,Oxfordshire County Council,FAM SUPP NORTH,2040,Agency Staff,29/09/2016,2200228302,"1,073.80",Caritas Recruitment Ltd
http://statistics.data.gov.uk/id/local-authority/38,Oxfordshire County Council,FAMILY SUPPORT N'TH2,2040,Agency Staff,29/09/2016,2200228058,"1,076.75",Caritas Recruitment Ltd
http://statistics.data.gov.uk/id/local-authority/38,Oxfordshire County Council,FAM SUPP CITY 2,2040,Agency Staff,09/09/2016,2200215858,"1,080.00",Caritas Recruitment Ltd
http://statistics.data.gov.uk/id/local-authority/38,Oxfordshire County Council,LOCALITY TEAM - CITY,2040,Agency Staff,13/09/2016,3110141605,"1,085.70",Caritas Recruitment Ltd
http://statistics.data.gov.uk/id/local-authority/38,Oxfordshire County Council,LOOKED AFTER NORTH,2040,Agency Staff,13/09/2016,3110141589,"1,090.00",Caritas Recruitment Ltd
http://statistics.data.gov.uk/id/local-authority/38,Oxfordshire County Council,FAMILY SUPPORT S'TH2,2040,Agency Staff,12/09/2016,2200216372,"1,092.00",Caritas Recruitment Ltd
http://statistics.data.gov.uk/id/local-authority/38,Oxfordshire County Council,LOOKED AFTER NORTH,2040,Agency Staff,15/09/2016,2200219380,"1,092.00",Caritas Recruitment Ltd
http://statistics.data.gov.uk/id/local-authority/38,Oxfordshire County Council,ASSESSMENT TEAM NORT,2040,Agency Staff,13/09/2016,3110141513,"1,092.00",Caritas Recruitment Ltd
http://statistics.data.gov.uk/id/local-authority/38,Oxfordshire County Council,THRIVING FAMILY SOTH,2040,Agency Staff,13/09/2016,3110141540,"1,092.00",Caritas Recruitment Ltd
http://statistics.data.gov.uk/id/local-authority/38,Oxfordshire County Council,FAMILY SUPPORT N'TH2,2040,Agency Staff,29/09/2016,2200228206,"1,095.00",Caritas Recruitment Ltd
http://statistics.data.gov.uk/id/local-authority/38,Oxfordshire County Council,FAMILY SUPPORT N'TH2,2040,Agency Staff,13/09/2016,3110141549,"1,095.00",Caritas Recruitment Ltd
http://statistics.data.gov.uk/id/local-authority/38,Oxfordshire County Council,FAMILY SUPPORT N'TH2,2040,Agency Staff,13/09/2016,3110141590,"1,095.00",Caritas Recruitment Ltd
http://statistics.data.gov.uk/id/local-authority/38,Oxfordshire County Council,FAMILY SUPPORT N'TH2,2040,Agency Staff,13/09/2016,3110141592,"1,095.00",Caritas Recruitment Ltd
http://statistics.data.gov.uk/id/local-authority/38,Oxfordshire County Council,MASH PROJECT,2040,Agency Staff,22/09/2016,2200224341,"1,128.40",Caritas Recruitment Ltd
http://statistics.data.gov.uk/id/local-authority/38,Oxfordshire County Council,FAMILY SUPPORT S'TH2,2040,Agency Staff,30/09/2016,2200229041,"1,128.40",Caritas Recruitment Ltd
http://statistics.data.gov.uk/id/local-authority/38,Oxfordshire County Council,ASSESS TEAM CITY,2040,Agency Staff,13/09/2016,3110141503,"1,128.40",Caritas Recruitment Ltd
http://statistics.data.gov.uk/id/local-authority/38,Oxfordshire County Council,ASSESSMENT TEAM NORT,2040,Agency Staff,22/09/2016,2200224363,"1,135.84",Caritas Recruitment Ltd
http://statistics.data.gov.uk/id/local-authority/38,Oxfordshire County Council,FAM SUPP NORTH,2040,Agency Staff,22/09/2016,2200224367,"1,168.51",Caritas Recruitment Ltd
http://statistics.data.gov.uk/id/local-authority/38,Oxfordshire County Council,ASSESS TEAM SOUTH,2040,Agency Staff,30/09/2016,2200229090,"1,180.80",Caritas Recruitment Ltd
http://statistics.data.gov.uk/id/local-authority/38,Oxfordshire County Council,FAM SUPP CITY 1,2040,Agency Staff,30/09/2016,2200228776,"1,199.70",Caritas Recruitment Ltd
http://statistics.data.gov.uk/id/local-authority/38,Oxfordshire County Council,FAM SUPP CITY 1,2040,Agency Staff,13/09/2016,3110141538,"1,204.50",Caritas Recruitment Ltd
http://statistics.data.gov.uk/id/local-authority/38,Oxfordshire County Council,ASSESS TEAM CITY,2040,Agency Staff,13/09/2016,3110141579,"1,206.55",Caritas Recruitment Ltd
http://statistics.data.gov.uk/id/local-authority/38,Oxfordshire County Council,LOCALITY TEAM - CITY,2040,Agency Staff,06/09/2016,2200212943,"1,217.30",Caritas Recruitment Ltd
http://statistics.data.gov.uk/id/local-authority/38,Oxfordshire County Council,LOCALITY TEAM - CITY,2040,Agency Staff,07/09/2016,2200214246,"1,217.30",Caritas Recruitment Ltd
http://statistics.data.gov.uk/id/local-authority/38,Oxfordshire County Council,LOCALITY TEAM - CITY,2040,Agency Staff,15/09/2016,2200219223,"1,217.30",Caritas Recruitment Ltd
http://statistics.data.gov.uk/id/local-authority/38,Oxfordshire County Council,ABINGDON HUB,2040,Agency Staff,22/09/2016,2200224752,"1,217.30",Caritas Recruitment Ltd
http://statistics.data.gov.uk/id/local-authority/38,Oxfordshire County Council,LOCALITY TEAM - CITY,2040,Agency Staff,29/09/2016,2200228168,"1,217.30",Caritas Recruitment Ltd
http://statistics.data.gov.uk/id/local-authority/38,Oxfordshire County Council,LOCALITY TEAM - CITY,2040,Agency Staff,13/09/2016,3110141604,"1,217.30",Caritas Recruitment Ltd
http://statistics.data.gov.uk/id/local-authority/38,Oxfordshire County Council,LOCALITY TEAM - CITY,2040,Agency Staff,08/09/2016,2200214670,"1,240.73",Caritas Recruitment Ltd
http://statistics.data.gov.uk/id/local-authority/38,Oxfordshire County Council,LOCALITY TEAM - CITY,2040,Agency Staff,13/09/2016,3110141608,"1,249.46",Caritas Recruitment Ltd
http://statistics.data.gov.uk/id/local-authority/38,Oxfordshire County Council,FAM SUPP CITY 2,2040,Agency Staff,22/09/2016,2200224336,"1,254.30",Caritas Recruitment Ltd
http://statistics.data.gov.uk/id/local-authority/38,Oxfordshire County Council,THRIVING FAMILY SOTH,2040,Agency Staff,13/09/2016,3110141541,"1,254.30",Caritas Recruitment Ltd
http://statistics.data.gov.uk/id/local-authority/38,Oxfordshire County Council,LOOKED AFTER NORTH,2040,Agency Staff,13/09/2016,3110141586,"1,254.30",Caritas Recruitment Ltd
http://statistics.data.gov.uk/id/local-authority/38,Oxfordshire County Council,FAM SUPP CITY 2,2040,Agency Staff,13/09/2016,3110141611,"1,254.30",Caritas Recruitment Ltd
http://statistics.data.gov.uk/id/local-authority/38,Oxfordshire County Council,ASSESS TEAM CITY,2040,Agency Staff,29/09/2016,2200228256,"1,308.80",Caritas Recruitment Ltd
http://statistics.data.gov.uk/id/local-authority/38,Oxfordshire County Council,FAM SUPP CITY 1,2040,Agency Staff,13/09/2016,3110141537,"1,314.00",Caritas Recruitment Ltd
http://statistics.data.gov.uk/id/local-authority/38,Oxfordshire County Council,LOCALITY TEAM - CITY,2040,Agency Staff,13/09/2016,3110141606,"1,328.10",Caritas Recruitment Ltd
http://statistics.data.gov.uk/id/local-authority/38,Oxfordshire County Council,ASSESS TEAM CITY,2040,Agency Staff,29/09/2016,2200228264,"1,342.05",Caritas Recruitment Ltd
http://statistics.data.gov.uk/id/local-authority/38,Oxfordshire County Council,FAM SUPP NORTH,2040,Agency Staff,02/09/2016,2200212095,"1,346.80",Caritas Recruitment Ltd
http://statistics.data.gov.uk/id/local-authority/38,Oxfordshire County Council,FAM SUPP NORTH,2040,Agency Staff,06/09/2016,2200212786,"1,346.80",Caritas Recruitment Ltd
http://statistics.data.gov.uk/id/local-authority/38,Oxfordshire County Council,LOOKED AFTER NORTH,2040,Agency Staff,06/09/2016,2200212898,"1,346.80",Caritas Recruitment Ltd
http://statistics.data.gov.uk/id/local-authority/38,Oxfordshire County Council,MASH PROJECT,2040,Agency Staff,09/09/2016,2200215330,"1,346.80",Caritas Recruitment Ltd
http://statistics.data.gov.uk/id/local-authority/38,Oxfordshire County Council,FAMILY SUPPORT S'TH2,2040,Agency Staff,21/09/2016,2200223802,"1,346.80",Caritas Recruitment Ltd
http://statistics.data.gov.uk/id/local-authority/38,Oxfordshire County Council,DIDCOT HUB,2040,Agency Staff,21/09/2016,2200223896,"1,346.80",Caritas Recruitment Ltd
http://statistics.data.gov.uk/id/local-authority/38,Oxfordshire County Council,FAM SUPP NORTH,2040,Agency Staff,29/09/2016,2200228267,"1,346.80",Caritas Recruitment Ltd
http://statistics.data.gov.uk/id/local-authority/38,Oxfordshire County Council,FAMILY SUPPORT S'TH2,2040,Agency Staff,30/09/2016,2200229092,"1,346.80",Caritas Recruitment Ltd
http://statistics.data.gov.uk/id/local-authority/38,Oxfordshire County Council,ASSESS TEAM CITY,2040,Agency Staff,13/09/2016,3110141492,"1,346.80",Caritas Recruitment Ltd
http://statistics.data.gov.uk/id/local-authority/38,Oxfordshire County Council,ASSESS TEAM CITY,2040,Agency Staff,13/09/2016,3110141494,"1,346.80",Caritas Recruitment Ltd
http://statistics.data.gov.uk/id/local-authority/38,Oxfordshire County Council,ASSESS TEAM CITY,2040,Agency Staff,13/09/2016,3110141495,"1,346.80",Caritas Recruitment Ltd
http://statistics.data.gov.uk/id/local-authority/38,Oxfordshire County Council,ASSESS TEAM CITY,2040,Agency Staff,13/09/2016,3110141497,"1,346.80",Caritas Recruitment Ltd
http://statistics.data.gov.uk/id/local-authority/38,Oxfordshire County Council,FPT SOUTH/VALE,2040,Agency Staff,13/09/2016,3110141522,"1,346.80",Caritas Recruitment Ltd
http://statistics.data.gov.uk/id/local-authority/38,Oxfordshire County Council,FPT SOUTH/VALE,2040,Agency Staff,13/09/2016,3110141524,"1,346.80",Caritas Recruitment Ltd
http://statistics.data.gov.uk/id/local-authority/38,Oxfordshire County Council,FPT SOUTH/VALE,2040,Agency Staff,13/09/2016,3110141526,"1,346.80",Caritas Recruitment Ltd
http://statistics.data.gov.uk/id/local-authority/38,Oxfordshire County Council,ASSESSMENT TEAM NORT,2040,Agency Staff,13/09/2016,3110141556,"1,346.80",Caritas Recruitment Ltd
http://statistics.data.gov.uk/id/local-authority/38,Oxfordshire County Council,ASSESSMENT TEAM NORT,2040,Agency Staff,13/09/2016,3110141559,"1,346.80",Caritas Recruitment Ltd
http://statistics.data.gov.uk/id/local-authority/38,Oxfordshire County Council,EMERGENCY DUTY TEAM,2040,Agency Staff,13/09/2016,3110141564,"1,346.80",Caritas Recruitment Ltd
http://statistics.data.gov.uk/id/local-authority/38,Oxfordshire County Council,LOOKED AFTER NORTH,2040,Agency Staff,13/09/2016,3110141581,"1,346.80",Caritas Recruitment Ltd
http://statistics.data.gov.uk/id/local-authority/38,Oxfordshire County Council,FAMILY SUPPORT N'TH2,2040,Agency Staff,15/09/2016,2200219206,"1,350.50",Caritas Recruitment Ltd
http://statistics.data.gov.uk/id/local-authority/38,Oxfordshire County Council,FAMILY SUPPORT N'TH2,2040,Agency Staff,26/09/2016,2200225756,"1,350.50",Caritas Recruitment Ltd
http://statistics.data.gov.uk/id/local-authority/38,Oxfordshire County Council,FAMILY SUPPORT N'TH2,2040,Agency Staff,28/09/2016,2200227218,"1,350.50",Caritas Recruitment Ltd
http://statistics.data.gov.uk/id/local-authority/38,Oxfordshire County Council,EMERGENCY DUTY TEAM,2040,Agency Staff,13/09/2016,3110141532,"1,350.50",Caritas Recruitment Ltd
